Workbook

Sheet Help
C3: UQ Costing & Pricing Tool Version 3.9 updated Oct 2023.
C4: Check for the latest version of the Costing & Pricing Tool and help resources Under 'Budget Preparation'
B5: a. Intro & Further Help | C5: 2 | D5: 3 | E5: 4 | F5: 5
B6: a. Intro & Further Help | D6: The Costing & Pricing tool has been designed to assist researchers in building, collating, and accurately calculating their project budgets.
B7: a. Intro & Further Help | D7: The tool does not offer any embedded advice on how to go about costing your project; it would not be possible to cater for all users.
B8: a. Intro & Further Help | D8: This is because there are many different norms and expectations dependant on a range of factors such as your discipline/org unit/granting scheme/partner organisations etc.
B9: a. Intro & Further Help | D9: For this nuanced and specialist advice, please get in touch with the right team to help you, using the contact details below.
B10: a. Intro & Further Help
B11: a. Intro & Further Help | D11: Research Grants
B12: a. Intro & Further Help | D12: For budgeting advice on grants, please consult the relevant Research Office contact:
B13: a. Intro & Further Help | D13: Research Office contact points
B14: a. Intro & Further Help
B15: a. Intro & Further Help | D15: Consultancy contacts
B16: a. Intro & Further Help | D16: For consultancy advice, including costing your consultancy project, please contact:
B17: a. Intro & Further Help | D17: Consulting and Research Expertise
B18: a. Intro & Further Help
B19: a. Intro & Further Help | D19: Further research contacts
B20: a. Intro & Further Help | D20: For general budgeting advice, please consult your HR and Finance Professional Services teams or your Research Partnerships Manager:
B21: a. Intro & Further Help | D21: Finance Professional Services Teams
B22: a. Intro & Further Help | D22: HR Professional Services Teams
B23: a. Intro & Further Help | D23: Research Partnerships Manager
B24: a. Intro & Further Help
B25: a. Intro & Further Help | D25: For enquiries on the UQ Costing and Pricing Tool:
B26: a. Intro & Further Help | D26: grants-manager@research.uq.edu.au
B27: a. Intro & Further Help
B28: a. Intro & Further Help | D28: Costing Research Infrastructure/Equipment
B29: a. Intro & Further Help | D29: Research Infrastructure Guide to Grants
B30: a. Intro & Further Help | D30: Gatton Crop and Field Research Unit (New)
B31: a. Intro & Further Help | D31: Gatton Grazing and Animal Production Units (New)
B32: a. Intro & Further Help
B33: a. Intro & Further Help | D33: Find a broad range of UQ resources relating to Research Management:
B34: a. Intro & Further Help | D34: Research Management homepage
B35: a. Intro & Further Help
B36: a. Intro & Further Help | D36: Consult the relevant UQ Policies and Procedures:
B37: a. Intro & Further Help | D37: Research and Consultancy Costing and Pricing - UQ Procedure
B38: a. Intro & Further Help | D38: Administration of Research Funding - UQ Policy
B39: a. Intro & Further Help | D39: Contract Research and Grants Financial Management - UQ Procedures
B40: a. Intro & Further Help | D40: Consultancy, Secondary Employment and Internal Work - UQ Policy
B41: a. Intro & Further Help
B42: a. Intro & Further Help
B43: b. Before you Cost & Price your Project | C43: Before you Cost & Price your Project
B44: b. Before you Cost & Price your Project | D44: Orientate yourself to this tool
B45: b. Before you Cost & Price your Project | D45: • The header section contains a number of required data entry fields which will affect the way your totals are calculated.
B46: b. Before you Cost & Price your Project | D46: • In addition, there are 3 data entry tables to input all required budget data for all project calendar years. These are:
B47: b. Before you Cost & Price your Project | D47: o Data Entry for Personnel;
B48: b. Before you Cost & Price your Project | D48: o Data Entry for Other Costs;
B49: b. Before you Cost & Price your Project | D49: o Data Entry for Cash Contributions
B50: b. Before you Cost & Price your Project | D50: • There are 3 groups of columns which can be hidden/expanded depending on the requirements of your project. The placement of these are indicated with clickable text in Rows 61 & 62.
B51: b. Before you Cost & Price your Project | D51: o Input Currency: Columns A-D
B52: b. Before you Cost & Price your Project | D52: o Salary Oncosts: Columns AK-AT
B53: b. Before you Cost & Price your Project | D53: o Year Apportionments: Columns AU-AY
B54: b. Before you Cost & Price your Project | D54: • Columns in the 3 data entry tables are aligned, however as not all columns are applicable in each table there are some gaps.
B55: b. Before you Cost & Price your Project | D55: • Table cells with a white background are calculated based on formulas and should not be directly overwritten.
B56: b. Before you Cost & Price your Project | D56: • You can click on the header of each column for a description of what should be entered.
B57: b. Before you Cost & Price your Project | D57: • The Milestone table at the bottom presents the totals, and can be split by Amounts or Percentages as required.
B58: b. Before you Cost & Price your Project
B59: b. Before you Cost & Price your Project | D59: General Data Entry Tips:
B60: b. Before you Cost & Price your Project | D60: • Click on column headings in the data entry tables for tips as you go, and hover over the 🛈 symbols for further descriptions and help.
B61: b. Before you Cost & Price your Project | D61: • Use the ‘Add Row’ button to add as many rows as required, this will fill the row with the correct formulas.
B62: b. Before you Cost & Price your Project | D62: • You can use all standard excel functions, e.g. show more decimal places, expand column widths etc. as required.
B63: b. Before you Cost & Price your Project | D63: • Cells in the table are not protected to enable custom values to be entered, and to ensure macros can run. If you overwrite a cell formula by accident, you can always restore it by clicking the 'Add row' button, and copy or fill the formula from the new row.
B64: b. Before you Cost & Price your Project | D64: • Delete any unused rows from the table by right-clicking on the row number at the left of the spreadsheet and select 'Delete'.
B65: b. Before you Cost & Price your Project | D65: • If you are adding additional info to blank cells in the data entry sheets, make sure it is not directly next to a table. Excel will add it as a table column, which will disrupt the macro calculations based on the data entry tables when running reports.
B66: b. Before you Cost & Price your Project
B67: b. Before you Cost & Price your Project
B68: c. Enter Basic Project Info | C68: Enter Basic Project Info
B69: c. Enter Basic Project Info | D69: 1. Enter a project Title. This information will copy over to Cost Summary pivot reports and Client Summary pivot reports.
B70: c. Enter Basic Project Info | D70: 2. Enter a project ID e.g. the RM number. Leave blank if n/a, as this information will copy over to Cost Summary pivot reports and Client Summary pivot reports.
B71: c. Enter Basic Project Info | D71: 3. Indicate whether the project is Contract Research, Research Grants, or Consultancy. In order for a project to be considered Research it must meet the definition of research as defined in HERDC. If your project does not meet this definition, it may be considered Consultancy. This informs the default behaviour of the tables, e.g. the percentage of markup which should be applied for a particular cost category. | E71: Definition of research | F71: Definition of consultancy
B72: c. Enter Basic Project Info | D72: 4. Indicate whether the project will include the following types of costs: Personnel; Other (non-personnel); Cash Contributions. This informs the Working Totals and the Pivot Report macros which Data Entry Tables should be included. e.g. Some projects will not include personnel, while other may only involve personnel costs.
B73: c. Enter Basic Project Info | D73: 5. Select the currency that the budget will be displayed in. This option relates to the output currency. You can toggle between AUD and a selected Output currency at any point.
B74: c. Enter Basic Project Info | D74: 6. Indicate whether GST is applicable on this project. GST will be applicable to the majority of grants where services and payments occur within Australia. If you are unsure if GST is applicable on your project, please consult with your professional support staff.
B75: c. Enter Basic Project Info | D75: 7. Indicate whether this project has a mandate for 30% oncosts for personnel. Select whether an oncosts exception applies (No or 30%). Many competitive funding schemes require the inclusion of 30% oncosts. If there is no exception, standard UQ oncost rates will be applied.
B76: c. Enter Basic Project Info | D76: 8. Indicate whether the Service Recovery Rate (New) applies to the project. Currently, the SCR rate applies to Rural Research And Development Corporation (RDC) projects, but it may also apply to other grant schemes in the future. If you are unsure whether the SCR rate will apply to your project, please consult with your professional support staff. By selecting 'Yes,' the current indirect cost recovery rate of 50% on Direct Cost will be replaced by the SCR rate, while the remainder of 50% will be treated as UQ's In-Kind contribution.
B77: c. Enter Basic Project Info | D77: 9. Indicate whether 15% of the Total Markup will be retained by the organisational unit (OU). It currently applies to consultancy project type only.
B78: c. Enter Basic Project Info | D78: 10. Indicate whether tuition fee should be charged on Industry-Funded HDR student to offset the cost of training a research student. (New) If tuition fee is allowed to be recovered from the granting body, at least 50% of the tuition fee must be included in the price.
B79: c. Enter Basic Project Info
B80: c. Enter Basic Project Info
B81: d. Step-by-step how to enter Personnel Data | C81: Step-by-step how to enter Personnel Data
B82: d. Step-by-step how to enter Personnel Data | D82: If your project will include personnel data, enter data into the ‘Data Entry for Personnel’ table.
B83: d. Step-by-step how to enter Personnel Data | D83: 1. Optionally, Columns A-D will assist you to record the conversion of costs from an alternative currency, and calculate the resulting equivalent in AUD in column Q. You will still need to enter the desired value into the AUD Cost per Unit.
B84: d. Step-by-step how to enter Personnel Data | D84: 2. Select Type from list: Cost; In Kind Support; Outgoing Payment; Direct Cost w Indirect Cost as In Kind Support
B85: d. Step-by-step how to enter Personnel Data | D85: 3. Select Category from list: Personnel; Personnel – HDR. Oncosts do not apply to HDRs.
B86: d. Step-by-step how to enter Personnel Data | D86: 4. Enter a title for the Budget Item. This may be the name of the individual or role description.
B87: d. Step-by-step how to enter Personnel Data | D87: 5. Optionally enter additional details in Notes.
B88: d. Step-by-step how to enter Personnel Data | D88: 6. Enter Calendar Year
B89: d. Step-by-step how to enter Personnel Data | D89: 7. Apportion to Start & End Dates within the calendar year
B90: d. Step-by-step how to enter Personnel Data | D90: 8. Select a standard Salary Code from the drop down list (e.g. Academic B2; HEW 6 2; HDR Stipend), or select 'Senior Administrative Salary’ or ‘Other’ to enter a custom amount.
B91: d. Step-by-step how to enter Personnel Data | D91: 9. Select Unit of Pay from drop down list: Annual Salary; Days; Hours; Casual Hours.
B92: d. Step-by-step how to enter Personnel Data | D92: 10. Add percentage Salary Loading or leave as default 0%.
B93: d. Step-by-step how to enter Personnel Data | D93: 11. If the row has a calendar year, salary code, and unit of pay selected, the Cost per Unit should be automatically returned. If you have selected ‘Other’ for a custom salary amount, write directly into the Cost per Unit column.
B94: d. Step-by-step how to enter Personnel Data | D94: 12. Enter the No of Units. This can be a whole number or a decimal, e.g. 10 Days, or 0.8 (FTE) of an Annual Salary.
B95: d. Step-by-step how to enter Personnel Data | D95: 13. Select option to apportion units from the drop-down menu. 'Yes - Pro Rata' will apportion the units to the Start and End Dates within the calendar year. 'Yes - Per Week' will apportion Pro Rata and then multiply by the number of weeks in the specified period. Select ‘No’ to make no adjustment to the entered No of Units.
B96: d. Step-by-step how to enter Personnel Data | D96: 14. Optionally overwrite the default Indirect Costs %.
B97: d. Step-by-step how to enter Personnel Data | D97: 15. Optionally overwrite the default Markup %. For consultancy projects, the default markup for personnel rounds to 43%, but is actually 42.8571429%, which represents twice the base costs.
B98: d. Step-by-step how to enter Personnel Data
B99: d. Step-by-step how to enter Personnel Data
B100: e. Step-by-step how to enter Other (non-personnel) data | C100: Step-by-step how to enter Other (non-personnel) data
B101: e. Step-by-step how to enter Other (non-personnel) data | D101: If your project will include Other (non-personnel) data, enter data into the ‘Data Entry for Other Costs’ table.
B102: e. Step-by-step how to enter Other (non-personnel) data | D102: 1. Optionally, Columns A-D will assist you to record the conversion of costs from an alternative currency, and calculate the resulting equivalent in AUD in column Q. You will still need to enter the desired value into the AUD Cost per Unit.
B103: e. Step-by-step how to enter Other (non-personnel) data | D103: 2. Select Type from list: Cost; In Kind Support; Outgoing Payment
B104: e. Step-by-step how to enter Other (non-personnel) data | D104: 3. Select Category from list: Consumables; Equipment; Travel – Domestic; Travel – International; Hospitality; Collaborator Payments; Subcontracts; Other
B105: e. Step-by-step how to enter Other (non-personnel) data | D105: 4. Enter a title for the Budget Item.
B106: e. Step-by-step how to enter Other (non-personnel) data | D106: 5. Optionally enter additional details in Notes.
B107: e. Step-by-step how to enter Other (non-personnel) data | D107: 6. Enter Calendar Year
B108: e. Step-by-step how to enter Other (non-personnel) data | D108: 7. Apportion to a Start & End Dates within the calendar year
B109: e. Step-by-step how to enter Other (non-personnel) data | D109: 8. Enter the Cost per Unit.
B110: e. Step-by-step how to enter Other (non-personnel) data | D110: 9. Enter the No of Units. This can be a whole number or a decimal.
B111: e. Step-by-step how to enter Other (non-personnel) data | D111: 10. Select option to apportion units from the drop-down menu. 'Yes - Pro Rata' will apportion the units to the Start and End Dates within the calendar year. 'Yes - Per Week' will apportion Pro Rata and then multiply by the number of weeks in the specified period. Select ‘No’ to make no adjustment to the entered No of Units – this is the default for non-personnel costs.
B112: e. Step-by-step how to enter Other (non-personnel) data | D112: 11. Optionally overwrite the default Indirect Costs %
B113: e. Step-by-step how to enter Other (non-personnel) data | D113: 12. Optionally overwrite the default Markup %
B114: e. Step-by-step how to enter Other (non-personnel) data
B115: e. Step-by-step how to enter Other (non-personnel) data
B116: f. Step-by-step how to enter Cash Contributions | C116: Step-by-step how to enter Cash Contributions
B117: f. Step-by-step how to enter Cash Contributions | D117: If your project will include cash contributions, enter data into the ‘Data Entry for Cash Contributions' table.
B118: f. Step-by-step how to enter Cash Contributions | D118: 1. Optionally, Columns A-D will assist you to record the conversion of costs from an alternative currency, and calculate the resulting equivalent in AUD in column Q. You will still need to enter the desired value into the Cost per Unit.
B119: f. Step-by-step how to enter Cash Contributions | D119: 2. Select Type from list: Cash Contribution
B120: f. Step-by-step how to enter Cash Contributions | D120: 3. Select Category from list: UQ Central; UQ Faculty; UQ School or Other Cash Support.
B121: f. Step-by-step how to enter Cash Contributions | D121: 4. Enter a title for the Budget Item, e.g. 'Cash Contribution from UQ' or 'Cash Contribution from Funder A'.
B122: f. Step-by-step how to enter Cash Contributions | D122: 6. Optionally enter additional details in Notes.
B123: f. Step-by-step how to enter Cash Contributions | D123: 7. Enter Calendar Year
B124: f. Step-by-step how to enter Cash Contributions | D124: 8. Apportion to a Start & End Dates within the calendar year
B125: f. Step-by-step how to enter Cash Contributions | D125: 9. Enter the Cost per Unit.
B126: f. Step-by-step how to enter Cash Contributions | D126: 10. Enter the No of Units. This can be a whole number or a decimal.
B127: f. Step-by-step how to enter Cash Contributions | D127: 11. Select option to apportion units from the drop-down menu. 'Yes - Pro Rata' will apportion the units to the Start and End Dates within the calendar year. 'Yes - Per Week' will apportion Pro Rata and then multiply by the number of weeks in the specified period. Select ‘No’ to make no adjustment to the entered No of Units – this is the default for non-personnel costs.
B128: f. Step-by-step how to enter Cash Contributions
B129: f. Step-by-step how to enter Cash Contributions
B130: g. Check & Review | C130: Check & Review
B131: g. Check & Review | D131: Once you have entered all your project data, review the Working Totals: Costing & Pricing Components (from Row 37), and Working Totals: Internal allocation of Recovered Costs & Markup (from Row 45).
B132: g. Check & Review | D132: If your totals do not look quite right, common mistakes to check for are:
B133: g. Check & Review | D133: • Ensure that you have correctly indicated whether each of the Data Entry Tables - Personnel; Other (non-personnel); and Cash Contributions - are being utilised (at Q4 in the Basic Project Details section).
B134: g. Check & Review | D134: • For table which are being utilised, ensure that any unused rows at the end of the table is deleted.
B135: g. Check & Review | D135: • Check that for each row with data, you have not missed any of the following critical columns: Type; Category; Budget item; Calendar year; AUD Cost per Unit; & Number of Units.
B136: g. Check & Review | D136: • (New) A data validation button has been added to tab "Data Entry" as an optional function. It is recommended to run before generating reports. The validation button does two things at the moment: 1. It checks if all the data entry tables have been completed based on the answer in Question 4 under project details section. Any missing critical data cell will be circled out in red color. 2. It resets all the formula of those white cell in the table to the default one.
B137: g. Check & Review | D137: • The Pivot reports are created using macros which read the data entry tables. For this reason, make sure you have not added/rearranged/renamed any table columns.
B138: g. Check & Review
B139: g. Check & Review
B140: h. Milestone Totals | C140: Milestone Totals
B141: h. Milestone Totals | D141: • You can create Milestones and review cost components using the Milestone Table.
B142: h. Milestone Totals | D142: • Optionally, enter information into the Milestone Title; Year; and Funding Provider (the blue columns).
B143: h. Milestone Totals | D143: • The essential information is to set the Milestone value either by placing a dollar value in the Set by Amount column, OR by entering the percentage in the Set by Percentage column (green columns).
B144: h. Milestone Totals | D144: • Do not overwrite any figures in the while columns (J onward), as these cells contain formulas that will calculate automatically.
B145: h. Milestone Totals | D145: • The slicer filters above the table will assist you to subtotal values by Year or Funding Provider.
B146: h. Milestone Totals
B147: h. Milestone Totals
B148: i. Pivot Report Tips | C148: Pivot Report Tips
B149: i. Pivot Report Tips | D149: The 'Cost Summary' and 'Client Report' are the two key reports which you can automate from your data entry. Relevant drop down options are provided, such as whether you want an item included in the report.
B150: i. Pivot Report Tips | D150: • The 'Cost Summary' and 'Client Report' are the two key reports which you can automate from your data entry. Select options from the drop down menus.
B151: i. Pivot Report Tips | D151: • It is worth noting that Pivot Tables are a standard excel function, and as such there is an endless amount of online help about this feature.
B152: i. Pivot Report Tips | D152: • You can use normal pivot table functionality if you prefer a different type of view e.g. subtotals and grant totals on/off, switch between compact and outline form.
B153: i. Pivot Report Tips | D153: • If the pivot table results do not match the Working Totals on the data entry tab, revisit the tips above under 'Check & Review'.
B154: i. Pivot Report Tips
B155: i. Pivot Report Tips
B156: j. Goal Seek Tips | C156: Goal Seek Tips
B157: j. Goal Seek Tips | D157: Goal Seek, also known as 'what-if-analysis' or 'back-solving', assists you to calculate backward to obtain an input that would result in a given output. e.g. what Markup amount would result in the desired Cost to Client amount?
B158: j. Goal Seek Tips | D158: • The 'Set' cell must always contain a formula or a function.
B159: j. Goal Seek Tips | D159: • The Changing Cell must contain a value only, not a formula or function. You may need to overwrite a cell formula with the value which the formula is producing.
B160: j. Goal Seek Tips | D160: • It is worth noting that Goal Seek is a standard excel function, and as such there is an endless amount of online help about this feature.
B161: j. Goal Seek Tips
B162: j. Goal Seek Tips
B163: x. ChangeLog | C163: Change Log
B164: x. ChangeLog | D164: [C&P Tool 3.9] - 25/10/2023
B165: x. ChangeLog | D165: Changed:
B166: x. ChangeLog | D166: — Salary Index to reflect the latest Enterprise Agreement.
B167: x. ChangeLog | D167: — Email link for Gatton Directors and Farm Unit Teams.
B168: x. ChangeLog | D168: — Hover-over Tips text for Input Currency Rate.
B169: x. ChangeLog | D169: — Indirect Cost Rate to 50% (was at 40%).
B170: x. ChangeLog | D170: — Optional OU Margin is now calculated as 15% of the Total Markup.
B171: x. ChangeLog | D171: — Indirect Cost Recovery will apply to all consultancy & contract research.
B172: x. ChangeLog | D172: — Consultancy and Expert Witness project types have been consolidated into a single Consultancy project type.
B173: x. ChangeLog | D173: — Type 3 consultancy no longer exists as per the latest policy.
B174: x. ChangeLog
B175: x. ChangeLog | D175: Added:
B176: x. ChangeLog | D176: — Working Totals for Costing & Pricing Components by Calendar Year.
B177: x. ChangeLog | D177: — MyResearch Data Tab: Reformatting data for testing and trials for the upcoming MyResearch integration.
B178: x. ChangeLog | D178: — Option for Service Cost Recovery (SCR) Model under Basic Project Details section, see the details under Help Sections: c. Enter Basic Project Info.
B179: x. ChangeLog | D179: — Option for Tuition Fee Recovery Model under Basic Project Details section, see the details under Help Sections: c. Enter Basic Project Info.
B180: x. ChangeLog | D180: — More Data Validation in basic project detail section to cross check data combo and data range.
B181: x. ChangeLog
B182: x. ChangeLog | D182: [C&P Tool 3.8] - 2/12/2022
B183: x. ChangeLog | D183: Changed:
B184: x. ChangeLog | D184: — UQ stipend base rate in 2023 has been increased by the Dec 2022 CPI rate of 7.8% to be $32,192.
B185: x. ChangeLog | D185: — Add 3% administrative increase for all staff salary, this is in addition to the projected Enterprise agreement rate. E.g: 2023 Base Salary = 2022 Base Salary * (1+3%)* (1+3.5%)
B186: x. ChangeLog
B187: x. ChangeLog | D187: Added:
B188: x. ChangeLog | D188: — Invalid End Date Notification in Personnel Table: The End Date must be no earlier than the Start Date and fall within the same Calendar Year.
B189: x. ChangeLog | D189: — Reminder of using the latest version of C&P tool
B190: x. ChangeLog
B191: x. ChangeLog | D191: [C&P Tool 3.7] - 23/08/2022
B192: x. ChangeLog | D192: Changed:
B193: x. ChangeLog | D193: — The payroll tax rate has increased for both casual and non-casual salaries by 0.75%. As a result, the casual on-cost rate has climbed to 16.9985%, and the non-casual rate has increased to 28.879%.
B194: x. ChangeLog | D194: — BaseSalary yearly Pay Rise Rate: was by default set to 2% for all upcoming years. It has been updated to the rates listed below to reflect the most recent RBA indexation of pay inflation and to make it consistent with the UQ finance budgeting tool.
B195: x. ChangeLog
B196: x. ChangeLog | D196: — The stipend rate will increase by 3.5% in 2023 in accordance with the most recent RTP stipend rate.
B197: x. ChangeLog
B198: x. ChangeLog | D198: [C&P Tool 3.6] - 13/07/2022
B199: x. ChangeLog | D199: Changed:
B200: x. ChangeLog | D200: — Fixed the VBA runtime error when running "Summarie RO Block Tables" in Mac version Excel
B201: x. ChangeLog | D201: — Updated the PRT on Superannuation rate as part of the on-cost rate. As the result, on-cost rate has been updated to 28.0015% for Non-Casual and 16.170% for Casual.
B202: x. ChangeLog | D202: — Staff salary cost forecast method has been made consistent with the finance budgetting tool.
... 13 more rows

Sheet Data Entry
A1: 1 | B1: 2 | C1: 3 | D1: 4 | E1: 5 | F1: 6 | G1: 7 | H1: 8 | I1: 9 | J1: 10 | K1: 11 | L1: 12 | M1: 13 | N1: 14 | O1: 15 | P1: 16 | Q1: 17 | R1: 18 | S1: 19 | T1: 20 | U1: 21 | V1: 22 | W1: 23 | X1: 24 | Y1: 25 | Z1: 26 | AA1: 27 | AB1: 28 | AC1: 29 | AD1: 30 | AE1: 31 | AF1: 32 | AG1: 33 | AH1: 34 | AI1: 35 | AJ1: 36 | AK1: 37 | AL1: 38 | AM1: 39 | AN1: 40 | AO1: 41 | AP1: 42 | AQ1: 43 | AR1: 44 | AS1: 45 | AT1: 46 | AU1: 47 | AV1: 48 | AW1: 49 | AX1: 50 | AY1: 51
E2: Important: Please always use the latest Costing & Pricing tool. Click here to download the latest version.
E3: Data Entry for Basic Project Details
F5: 1. Title: | G5: Enter Project Title
F6: 2. Project No.: | G6: e.g. 20501234567
F8: 3. Indicate whether the project is Contract Research, Research Grants, or Consultancy. | O8: Definition of Research as aligned with HERDC
G9: Project Type: | H9: Contract Research | I9: 🛈 | O9: Research and Consultancy Costing and Pricing - UQ Procedure
O10: Administration of Research Funding - UQ Policy
F11: 4. Indicate whether the project will include the following types of costs. | O11: Contract Research and Grants Financial Management - UQ Procedures
G12: Personnel? | H12: Yes | I12: 🛈 | O12: Consultancy, Secondary Employment and Internal Work - UQ Policy
G13: Other costs? | H13: Yes
G14: Cash support? | H14: No
F16: 5. Select the currency that the budget will be displayed in.
G17: Output Currency: | H17: AUD | I17: 🛈
H18: (If Alternative) Currency: | I18: USD | J18: 🛈 | K18: oanda.com
H19: Conversion Rate: | I19: 0.72 | J19: 🛈 | K19: commbank.com.au
H20: Date of Conversion: | I20: 44562
F22: 6. Indicate whether GST is applicable on this project.
G23: Is GST Applicable? | H23: Yes | I23: 🛈
F25: 7. Indicate whether this project has a mandate for 30% oncosts for personnel.
G26: Oncosts Exception? | H26: No | I26: 🛈
F28: 8.[Not on Consultancy] Indicate whether this project's indirect cost applies SCR Rate? (New)
G29: Does SCR apply? | H29: No | I29: 🛈
G30: (If applies) Include the following additional direct/indirect cost in the SCR pool? | K30: SCR Rate: | L30: =IF(SCRException="No", "Do not apply",SCR_rate) -> Do not apply
H31: Office of Research Ethics & Integrity | I31: No
H32: Grad School | I32: No
H33: Marketing & Communication | I33: No
F35: 9. [Consultancy Only] Indicate whether 15% of the Total Markup will be retained by the organisational unit (OU).
G36: Apply OU margin? | H36: No | I36: 🛈
F38: 10. [Contract Research Only] Indicate whether tuition fee should be charged on Industry-Funded HDR student to offset the cost of training a research student. (New)
G39: Does Tuition Fee need to be recovered? | H39: No | I39: 🛈
G40: Tuition Fee Type? | H40: Band A | I40: 🛈
G41: % Tuition Fee to be recovered (at least 50%) | H41: 0.5
E45: Working Totals: Costing & Pricing Components
G47: 🛈 | H47: 🛈 | I47: 🛈 | J47: 🛈 | P47: 🛈
G48: Direct Costs | H48: Indirect Costs | I48: Total Markup | J48: In Kind Support | K48: Cash Support | L48: Cost to Client | M48: GST | N48: Cost to Client inc GST | P48: Total Tuition Fee Amount to be recovered
F49: AUD: | G49: =IF(OutputCurrencyOption="AUD", (IF(HasPersonnel="Yes",PersonnelTable[[#Totals],[Direct Costs]],0)+IF(HasOtherCosts="Yes",OtherTable[[#Totals],[Direct Costs]],0)), (IF(HasPersonnel="Yes",PersonnelTable[[#Totals],[Direct Costs]],0)+IF(HasOtherCosts="Yes",OtherTable[[#Totals],[Direct Costs]],0))/OutputCurrencyRate) -> 0 | H49: =IF(OutputCurrencyOption="AUD", (IF(HasPersonnel="Yes",PersonnelTable[[#Totals],[Indirect Costs]],0)+IF(HasOtherCosts="Yes",OtherTable[[#Totals],[Indirect Costs]],0)), (IF(HasPersonnel="Yes",PersonnelTable[[#Totals],[Indirect Costs]],0)+IF(HasOtherCosts="Yes",OtherTable[[#Totals],[Indirect Costs]],0))/OutputCurrencyRate) -> 0 | I49: =IF(OutputCurrencyOption="AUD", ( IF(HasPersonnel="Yes",PersonnelTable[[#Totals],[Markup]],0)+IF(HasOtherCosts="Yes",OtherTable[[#Totals],[Markup]],0)), ( IF(HasPersonnel="Yes",PersonnelTable[[#Totals],[Markup]],0)+IF(HasOtherCosts="Yes",OtherTable[[#Totals],[Markup]],0))/OutputCurrencyRate) -> 0 | J49: =IF(OutputCurrencyOption="AUD", (IF(HasPersonnel="Yes",PersonnelTable[[#Totals],[In Kind Support]],0)+IF(HasOtherCosts="Yes",OtherTable[[#Totals],[In Kind Support]],0)), (IF(HasPersonnel="Yes",PersonnelTable[[#Totals],[In Kind Support]],0)+IF(HasOtherCosts="Yes",OtherTable[[#Totals],[In Kind Support]],0))/OutputCurrencyRate) -> 0 | K49: =IF(OutputCurrencyOption="AUD", (IF(HasCashSupport="Yes",CashTable[[#Totals],[Cash Support]],0)), (IF(HasCashSupport="Yes",CashTable[[#Totals],[Cash Support]],0))/OutputCurrencyRate) -> 0 | L49: =IF(OutputCurrencyOption="AUD", (IF(HasPersonnel="Yes",PersonnelTable[[#Totals],[Cost to Client]],0)+IF(HasOtherCosts="Yes",OtherTable[[#Totals],[Cost to Client]],0)),(IF(HasPersonnel="Yes",PersonnelTable[[#Totals],[Cost to Client]],0)+IF(HasOtherCosts="Yes",OtherTable[[#Totals],[Cost to Client]],0))/OutputCurrencyRate) -> 0 | M49: =IF(ClientGST="Yes",TotalCostToClientAUD*0.1,0) -> 0 | N49: =TotalCostToClientAUD+M49 -> 0 | P49: =IF(TuitionFeeRecException="Yes", SUMIF(PersonnelTable[Category],"Personnel - HDR",PersonnelTable[Indirect Costs]),"n/a") -> n/a
F50: =IF(OutputCurrencyOption="AUD","Output in AUD:","Output in "&OutputCurrency&":") -> Output in AUD: | G50: =IF(HasPersonnel="Yes",PersonnelTable[[#Totals],[Direct Costs]],0)+IF(HasOtherCosts="Yes",OtherTable[[#Totals],[Direct Costs]],0) -> 0 | H50: =IF(HasPersonnel="Yes",PersonnelTable[[#Totals],[Indirect Costs]],0)+IF(HasOtherCosts="Yes",OtherTable[[#Totals],[Indirect Costs]],0) -> 0 | I50: =IF(HasPersonnel="Yes",PersonnelTable[[#Totals],[Markup]],0)+IF(HasOtherCosts="Yes",OtherTable[[#Totals],[Markup]],0) -> 0 | J50: =IF(HasPersonnel="Yes",PersonnelTable[[#Totals],[In Kind Support]],0)+IF(HasOtherCosts="Yes",OtherTable[[#Totals],[In Kind Support]],0) -> 0 | K50: =IF(HasCashSupport="Yes",CashTable[[#Totals],[Cash Support]],0) -> 0 | L50: =IF(HasPersonnel="Yes",PersonnelTable[[#Totals],[Cost to Client]],0)+IF(HasOtherCosts="Yes",OtherTable[[#Totals],[Cost to Client]],0) -> 0 | M50: =IF(ClientGST="Yes",L50*0.1,0) -> 0 | N50: =TotalCostToClientOutput+M50 -> 0
E53: Working Totals: Internal allocation of Recovered Costs & Markup
G55: 🛈 | H55: 🛈 | I55: 🛈 | K55: 🛈 | N55: 🛈 | Q55: 🛈
G56: Direct Costs Recovered | H56: Indirect Costs Recovered | K56: Markup | N56: Project Account Total
G57: Project Account | H57: 60% Central Allocation | I57: 20% Primary Faculty Allocation | J57: 20% Secondary Faculty Allocation | K57: OU Margin | L57: Project Account
F58: AUD: | G58: =IF(OutputCurrencyOption="AUD", (IF(HasPersonnel="Yes",PersonnelTable[[#Totals],[Direct Costs Recovered]],0)+IF(HasOtherCosts="Yes",OtherTable[[#Totals],[Direct Costs Recovered]],0)), (IF(HasPersonnel="Yes",PersonnelTable[[#Totals],[Direct Costs Recovered]],0)+IF(HasOtherCosts="Yes",OtherTable[[#Totals],[Direct Costs Recovered]],0))/OutputCurrencyRate) -> 0 | H58: =IF(OutputCurrencyOption="AUD", (IF(HasPersonnel="Yes",PersonnelTable[[#Totals],[60% Central Allocation]],0)+IF(HasOtherCosts="Yes",OtherTable[[#Totals],[60% Central Allocation]],0)), IF(OutputCurrencyOption<>"AUD", (IF(HasPersonnel="Yes",PersonnelTable[[#Totals],[60% Central Allocation]],0)+IF(HasOtherCosts="Yes",OtherTable[[#Totals],[60% Central Allocation]],0))/OutputCurrencyRate)) -> 0 | I58: =IF(OutputCurrencyOption="AUD", (IF(HasPersonnel="Yes",PersonnelTable[[#Totals],[20% Primary Faculty Allocation]],0)+IF(HasOtherCosts="Yes",OtherTable[[#Totals],[20% Primary Faculty Allocation]],0)), IF(OutputCurrencyOption<>"AUD", (IF(HasPersonnel="Yes",PersonnelTable[[#Totals],[20% Primary Faculty Allocation]],0)+IF(HasOtherCosts="Yes",OtherTable[[#Totals],[20% Primary Faculty Allocation]],0))/OutputCurrencyRate)) -> 0 | J58: =IF(OutputCurrencyOption="AUD", (IF(HasPersonnel="Yes",PersonnelTable[[#Totals],[20% Secondary Faculty Allocation]],0)+IF(HasOtherCosts="Yes",OtherTable[[#Totals],[20% Secondary Faculty Allocation]],0)), IF(OutputCurrencyOption<>"AUD", (IF(HasPersonnel="Yes",PersonnelTable[[#Totals],[20% Secondary Faculty Allocation]],0)+IF(HasOtherCosts="Yes",OtherTable[[#Totals],[20% Secondary Faculty Allocation]],0))/OutputCurrencyRate)) -> 0 | K58: =IF(ApplyOUMargin="Yes",TotalMarkupAUD*0.15,0) -> 0 | L58: =TotalMarkupAUD-TotalMarkupToOU -> 0 | N58: =TotalDCToProjectAccount+TotalMarkupToProjectAccount -> 0
A63: 🛈 Currency converter | E63: 🛈 With the exceptions of the 'Input Currency' columns (A;B;C: hidden by default) and Notes column (H) - all coloured columns must have a value. Greyed out columns do not apply to that table. Formulas in white columns should not be overwritten.
E64: 🛈 Click on the column headers for more detailed tips about what should be entered and/or how the column is calculated.
E66: Data Entry for Personnel Costs
A67: Input Currency Cost per Unit | B67: Input Currency | C67: Input Currency Rate | D67: AUD Cost per Unit Converted from Input | E67: Type | F67: Category | G67: Budget Item | H67: Notes | I67: Calendar Year | J67: Start Date | K67: End Date | L67: Salary Code | M67: Unit Of Pay | N67: Salary Loading | O67: AUD Cost per Unit | P67: No Of Units | Q67: Prorate Units? | R67: Apportioned Units | S67: Indirect Costs % | T67: Markup % | U67: Output Currency Cost per Unit | V67: Direct Costs | W67: Indirect Costs Per Unit | X67: Indirect Costs | Y67: Markup Per Unit | Z67: Markup | AA67: Cost to Client Per Unit | AB67: Cost to Client | AC67: Cost to Client inc GST | AD67: In Kind Support | AE67: Cash Support | AF67: Direct Costs Recovered | AG67: Indirect Costs Recovered | AH67: 60% Central Allocation | AI67: 20% Primary Faculty Allocation | AJ67: 20% Secondary Faculty Allocation | AK67: Salary Base Cost | AL67: Total Oncosts | AM67: Total Oncosts % | AN67: Payroll Tax | AO67: Workers Compensation | AP67: Superannuation | AQ67: Payroll Tax on Superannuation | AR67: Long Service Leave | AS67: Recreation Leave | AT67: Parental Leave | AU67: CY % | AV67: FY1 | AW67: FY2 | AX67: FY1 % of CY % | AY67: FY2 % of CY %
D68: =PersonnelTable[[#This Row],[Input Currency Cost per Unit]]*PersonnelTable[[#This Row],[Input Currency Rate]] -> 0 | J68: =IF(ISBLANK(PersonnelTable[[#This Row],[Calendar Year]]),"",DATE(PersonnelTable[[#This Row],[Calendar Year]],1,1)) ->  | K68: =IF(ISBLANK(PersonnelTable[[#This Row],[Calendar Year]]),"",DATE(PersonnelTable[[#This Row],[Calendar Year]],12,31)) ->  | N68: =IF(ISBLANK(PersonnelTable[[#This Row],[Salary Code]]),,"0%") -> 0 | O68: =IFERROR((IF(AND(PersonnelTable[[#This Row],[Category]]="Personnel - HDR", PersonnelTable[[#This Row],[Unit Of Pay]]="Annual Salary"), INDEX(BaseSalaries, MATCH(PersonnelTable[[#This Row],[Salary Code]],LookupSalary,0), MATCH(PersonnelTable[[#This Row],[Calendar Year]],LookupYear,0)), IF(AND(PersonnelTable[[#This Row],[Category]]="Personnel - HDR",PersonnelTable[[#This Row],[Unit Of Pay]]="Days"), INDEX(BaseSalaries, MATCH(PersonnelTable[[#This Row],[Salary Code]],LookupSalary,0), MATCH(PersonnelTable[[#This Row],[Calendar Year]],LookupYear,0))/260.893,IF(AND(PersonnelTable[[#This Row],[Category]]="Personnel - HDR",PersonnelTable[[#This Row],[Unit Of Pay]]="Hours"), INDEX(BaseSalaries, MATCH(PersonnelTable[[#This Row],[Salary Code]],LookupSalary,0), MATCH(PersonnelTable[[#This Row],[Calendar Year]],LookupYear,0))/1891.47425, IF(PersonnelTable[[#This Row],[Unit Of Pay]]="Annual Salary", INDEX(BaseSalaries, MATCH(PersonnelTable[[#This Row],[Salary Code]],LookupSalary,0), MATCH(PersonnelTable[[#This Row],[Calendar Year]],LookupYear,0))*SalaryOncostsMultiplier, IF(PersonnelTable[[#This Row],[Unit Of Pay]]="Days", INDEX(BaseSalaries, MATCH(PersonnelTable[[#This Row],[Salary Code]],LookupSalary,0), MATCH(PersonnelTable[[#This Row],[Calendar Year]],LookupYear,0))*SalaryOncostsMultiplier/260.893, IF(PersonnelTable[[#This Row],[Unit Of Pay]]="Hours", INDEX(BaseSalaries, MATCH(PersonnelTable[[#This Row],[Salary Code]],LookupSalary,0), MATCH(PersonnelTable[[#This Row],[Calendar Year]],LookupYear,0))*SalaryOncostsMultiplier/1891.47425, IF(PersonnelTable[[#This Row],[Unit Of Pay]]="Casual Hours", INDEX(BaseSalaries, MATCH(PersonnelTable[[#This Row],[Salary Code]],LookupSalary,0), MATCH(PersonnelTable[[#This Row],[Calendar Year]],LookupYear,0))*CasualLoadingMultiplier*SalaryOncostsCasualMultiplier/1891.47425,))))))))*(1+PersonnelTable[[#This Row],[Salary Loading]]),"") -> 0 | Q68: =IF(PersonnelTable[[#This Row],[Unit Of Pay]]="Annual Salary", "Yes", "No") -> No | R68: =IF(PersonnelTable[[#This Row],[Prorate Units?]]="Yes", PersonnelTable[[#This Row],[No Of Units]]*(PersonnelTable[[#This Row],[AUD Cost per Unit]]/NETWORKDAYS(DATE(PersonnelTable[[#This Row],[Calendar Year]],1,1),DATE(PersonnelTable[[#This Row],[Calendar Year]],12,31))*NETWORKDAYS(PersonnelTable[[#This Row],[Start Date]],PersonnelTable[[#This Row],[End Date]])/PersonnelTable[[#This Row],[AUD Cost per Unit]]), IF(PersonnelTable[[#This Row],[Prorate Units?]]="Yes - Per Week", (PersonnelTable[[#This Row],[No Of Units]]*52.143)*(PersonnelTable[[#This Row],[AUD Cost per Unit]]/NETWORKDAYS(DATE(PersonnelTable[[#This Row],[Calendar Year]],1,1),DATE(PersonnelTable[[#This Row],[Calendar Year]],12,31))*NETWORKDAYS(PersonnelTable[[#This Row],[Start Date]],PersonnelTable[[#This Row],[End Date]])/PersonnelTable[[#This Row],[AUD Cost per Unit]]),PersonnelTable[[#This Row],[No Of Units]])) -> 0 | S68: =IF(AND(PersonnelTable[[#This Row],[Category]] ="Personnel - HDR",TuitionFeeRecException="No"),0,IF(AND(PersonnelTable[[#This Row],[Category]] ="Personnel - HDR",TuitionFeeRecException="Yes"),INDEX(TuitionFee_Multipiler,MATCH(TuitionFee_CostType,LookupTuitionMultiplier,0),MATCH(PersonnelTable[[#This Row],[Calendar Year]],LookupYear_Tuition,0)), IF(AND(SCRException="Yes",PersonnelTable[[#This Row],[Type]]<>"Direct Cost w Indirect Cost as In Kind Support"),SCR_rate,0.5))) -> 0.5 | T68: =IF(OR(PersonnelTable[[#This Row],[Type]]="Outgoing Payment",PersonnelTable[[#This Row],[Type]]="In Kind Support",PersonnelTable[[#This Row],[Category]]="Personnel - HDR"),0,IF(AND(PersonnelTable[[#This Row],[Category]]="Personnel",ProjectType="Consultancy"),0.428571429,"0%")) -> 0% | U68: =IF(OutputCurrencyOption="AUD", PersonnelTable[[#This Row],[AUD Cost per Unit]], PersonnelTable[[#This Row],[AUD Cost per Unit]]*OutputCurrencyRate) -> 0 | V68: =(IF(OutputCurrencyOption="AUD", PersonnelTable[[#This Row],[AUD Cost per Unit]],PersonnelTable[[#This Row],[Output Currency Cost per Unit]]))*PersonnelTable[[#This Row],[Apportioned Units]] -> 0 | W68: =(IF(OutputCurrencyOption="AUD", PersonnelTable[[#This Row],[AUD Cost per Unit]],PersonnelTable[[#This Row],[Output Currency Cost per Unit]]))*PersonnelTable[[#This Row],[Indirect Costs %]] -> 0 | X68: =PersonnelTable[[#This Row],[Indirect Costs Per Unit]]*PersonnelTable[[#This Row],[Apportioned Units]] -> 0 | Y68: =((IF(OutputCurrencyOption="AUD", PersonnelTable[[#This Row],[AUD Cost per Unit]],PersonnelTable[[#This Row],[Output Currency Cost per Unit]]))+PersonnelTable[[#This Row],[Indirect Costs Per Unit]])*PersonnelTable[[#This Row],[Markup %]] -> 0 | Z68: =PersonnelTable[[#This Row],[Markup Per Unit]]*PersonnelTable[[#This Row],[Apportioned Units]] -> 0 | AA68: =IF(PersonnelTable[[#This Row],[Type]]="In Kind Support",0, IF(PersonnelTable[[#This Row],[Type]]="Direct Cost w Indirect Cost as In Kind Support",PersonnelTable[[#This Row],[Output Currency Cost per Unit]]+PersonnelTable[[#This Row],[Markup Per Unit]], PersonnelTable[[#This Row],[Output Currency Cost per Unit]]+PersonnelTable[[#This Row],[Indirect Costs Per Unit]]+PersonnelTable[[#This Row],[Markup Per Unit]])) -> 0 | AB68: =IF(PersonnelTable[[#This Row],[Type]]="In Kind Support",0, IF(PersonnelTable[[#This Row],[Type]]="Direct Cost w Indirect Cost as In Kind Support",PersonnelTable[[#This Row],[Direct Costs]]+PersonnelTable[[#This Row],[Markup]], PersonnelTable[[#This Row],[Direct Costs]]+PersonnelTable[[#This Row],[Indirect Costs]]+PersonnelTable[[#This Row],[Markup]])) -> 0 | AC68: =IF(ClientGST="Yes",PersonnelTable[[#This Row],[Cost to Client]]*1.1,PersonnelTable[[#This Row],[Cost to Client]]) -> 0 | AD68: =IF(PersonnelTable[[#This Row],[Type]]="In Kind Support", PersonnelTable[[#This Row],[Direct Costs]]+PersonnelTable[[#This Row],[Indirect Costs]]+PersonnelTable[[#This Row],[Markup]], IF(PersonnelTable[[#This Row],[Type]]="Direct Cost w Indirect Cost as In Kind Support", PersonnelTable[[#This Row],[Indirect Costs]],IF(AND(PersonnelTable[[#This Row],[Type]]="Cost",PersonnelTable[[#This Row],[Category]]<>"Personnel - HDR",SCRException="Yes"),(0.5-PersonnelTable[[#This Row],[Indirect Costs %]])*PersonnelTable[[#This Row],[Direct Costs]],))) -> 0 | AF68: =IF(PersonnelTable[[#This Row],[Type]]="In Kind Support",0,PersonnelTable[[#This Row],[Direct Costs]]) -> 0 | AG68: =IF(OR(PersonnelTable[[#This Row],[Type]]="In Kind Support",PersonnelTable[[#This Row],[Type]]="Direct Cost w Indirect Cost as In Kind Support"),0,PersonnelTable[[#This Row],[Indirect Costs]]) -> 0 | AH68: =IF(OR(PersonnelTable[[#This Row],[Type]]="In Kind Support",PersonnelTable[[#This Row],[Type]]="Direct Cost w Indirect Cost as In Kind Support"),0,PersonnelTable[[#This Row],[Indirect Costs]]*0.6) -> 0 | AI68: =IF(OR(PersonnelTable[[#This Row],[Type]]="In Kind Support",PersonnelTable[[#This Row],[Type]]="Direct Cost w Indirect Cost as In Kind Support"),0,PersonnelTable[[#This Row],[Indirect Costs]]*0.2) -> 0 | AJ68: =IF(OR(PersonnelTable[[#This Row],[Type]]="In Kind Support",PersonnelTable[[#This Row],[Type]]="Direct Cost w Indirect Cost as In Kind Support"),0,PersonnelTable[[#This Row],[Indirect Costs]]*0.2) -> 0 | AK68: =IF(PersonnelTable[[#This Row],[Category]]="Personnel - HDR", 0, IF(PersonnelTable[[#This Row],[Unit Of Pay]]="Casual Hours", PersonnelTable[[#This Row],[Direct Costs]]/SalaryOncostsCasualMultiplier, IF(PersonnelTable[[#This Row],[Unit Of Pay]]<>"Casual Hours", PersonnelTable[[#This Row],[Direct Costs]]/SalaryOncostsMultiplier))) -> 0 | AL68: =IF(PersonnelTable[[#This Row],[Category]]="Personnel - HDR", "0", PersonnelTable[[#This Row],[Direct Costs]]-PersonnelTable[[#This Row],[Salary Base Cost]]) -> 0 | AM68: =IFERROR(IF(PersonnelTable[[#This Row],[Category]]="Personnel - HDR", 0, PersonnelTable[[#This Row],[Total Oncosts]]/PersonnelTable[[#This Row],[Salary Base Cost]]),) -> 0 | AN68: =IF(PersonnelTable[[#This Row],[Category]]="Personnel - HDR", 0, IF(PersonnelTable[[#This Row],[Unit Of Pay]]="Casual Hours", PersonnelTable[[#This Row],[Salary Base Cost]]*CasualPRT, IF(PersonnelTable[[#This Row],[Unit Of Pay]]<>"Casual Hours", PersonnelTable[[#This Row],[Salary Base Cost]]*NonCasualPRT))) -> 0 | AO68: =IF(PersonnelTable[[#This Row],[Category]]="Personnel - HDR", 0, IF(PersonnelTable[[#This Row],[Unit Of Pay]]="Casual Hours", PersonnelTable[[#This Row],[Salary Base Cost]]*CasualWC, IF(PersonnelTable[[#This Row],[Unit Of Pay]]<>"Casual Hours", PersonnelTable[[#This Row],[Salary Base Cost]]*NonCasualWC))) -> 0 | AP68: =IF(PersonnelTable[[#This Row],[Category]]="Personnel - HDR", 0, IF(PersonnelTable[[#This Row],[Unit Of Pay]]="Casual Hours", PersonnelTable[[#This Row],[Salary Base Cost]]*CasualSuper, IF(PersonnelTable[[#This Row],[Unit Of Pay]]<>"Casual Hours", PersonnelTable[[#This Row],[Salary Base Cost]]*NonCasualSuper))) -> 0 | AQ68: =IF(PersonnelTable[[#This Row],[Category]]="Personnel - HDR", 0, IF(PersonnelTable[[#This Row],[Unit Of Pay]]="Casual Hours", PersonnelTable[[#This Row],[Salary Base Cost]]*CasualSuperPRT, IF(PersonnelTable[[#This Row],[Unit Of Pay]]<>"Casual Hours", PersonnelTable[[#This Row],[Salary Base Cost]]*NonCasualSuperPRT))) -> 0 | AR68: =IF(PersonnelTable[[#This Row],[Category]]="Personnel - HDR", 0, IF(PersonnelTable[[#This Row],[Unit Of Pay]]="Casual Hours",0, IF(PersonnelTable[[#This Row],[Salary Base Cost]]<>"Casual Hours", PersonnelTable[[#This Row],[Salary Base Cost]]*NonCasualLSL))) -> 0 | AS68: =IF(PersonnelTable[[#This Row],[Category]]="Personnel - HDR", 0, IF(PersonnelTable[[#This Row],[Unit Of Pay]]="Casual Hours",0, IF(PersonnelTable[[#This Row],[Unit Of Pay]]<>"Casual Hours", PersonnelTable[[#This Row],[Salary Base Cost]]*NonCasualRec))) -> 0 | AT68: =IF(PersonnelTable[[#This Row],[Category]]="Personnel - HDR", 0, IF(PersonnelTable[[#This Row],[Unit Of Pay]]="Casual Hours",0, IF(PersonnelTable[[#This Row],[Unit Of Pay]]<>"Casual Hours", PersonnelTable[[#This Row],[Salary Base Cost]]*NonCasualParent))) -> 0 | AU68: =YEARFRAC(PersonnelTable[[#This Row],[Start Date]],PersonnelTable[[#This Row],[End Date]]+1,0) ->  | AV68: =PersonnelTable[[#This Row],[Calendar Year]]-1&" - "&RIGHT(PersonnelTable[[#This Row],[Calendar Year]],2) -> -1 - | AW68: =PersonnelTable[[#This Row],[Calendar Year]]&" - "&RIGHT(PersonnelTable[[#This Row],[Calendar Year]]+1,2) -> - 1 | AX68: =IF(AND(PersonnelTable[[#This Row],[Start Date]]<DATE(PersonnelTable[[#This Row],[Calendar Year]],7,1),PersonnelTable[[#This Row],[End Date]]<DATE(PersonnelTable[[#This Row],[Calendar Year]],7,1)),_xlfn.DAYS(PersonnelTable[[#This Row],[End Date]]+1,PersonnelTable[[#This Row],[Start Date]]),IF(AND(PersonnelTable[[#This Row],[Start Date]]<DATE(PersonnelTable[[#This Row],[Calendar Year]],7,1),PersonnelTable[[#This Row],[End Date]]>DATE(PersonnelTable[[#This Row],[Calendar Year]],6,30)),_xlfn.DAYS(DATE(PersonnelTable[[#This Row],[Calendar Year]],6,30)+1,PersonnelTable[[#This Row],[Start Date]]),IF((PersonnelTable[[#This Row],[Start Date]]>DATE(PersonnelTable[[#This Row],[Calendar Year]],7,1)),0,)))/_xlfn.DAYS(PersonnelTable[[#This Row],[End Date]]+1,PersonnelTable[[#This Row],[Start Date]]) ->  | AY68: =IF(AND(PersonnelTable[[#This Row],[Start Date]]>DATE(PersonnelTable[[#This Row],[Calendar Year]],6,30),PersonnelTable[[#This Row],[End Date]]>DATE(PersonnelTable[[#This Row],[Calendar Year]],6,30)),_xlfn.DAYS(PersonnelTable[[#This Row],[End Date]]+1,PersonnelTable[[#This Row],[Start Date]]),IF(AND(PersonnelTable[[#This Row],[Start Date]]<DATE(PersonnelTable[[#This Row],[Calendar Year]],6,30),PersonnelTable[[#This Row],[End Date]]>DATE(PersonnelTable[[#This Row],[Calendar Year]],6,30)),_xlfn.DAYS(PersonnelTable[[#This Row],[End Date]]+1,DATE(PersonnelTable[[#This Row],[Calendar Year]],7,1)),IF((PersonnelTable[[#This Row],[End Date]]<DATE(PersonnelTable[[#This Row],[Calendar Year]],7,1)),0,)))/_xlfn.DAYS(PersonnelTable[[#This Row],[End Date]]+1,PersonnelTable[[#This Row],[Start Date]]) -> 
D69: =PersonnelTable[[#This Row],[Input Currency Cost per Unit]]*PersonnelTable[[#This Row],[Input Currency Rate]] -> 0 | J69: =IF(ISBLANK(PersonnelTable[[#This Row],[Calendar Year]]),"",DATE(PersonnelTable[[#This Row],[Calendar Year]],1,1)) ->  | K69: =IF(ISBLANK(PersonnelTable[[#This Row],[Calendar Year]]),"",DATE(PersonnelTable[[#This Row],[Calendar Year]],12,31)) ->  | N69: =IF(ISBLANK(PersonnelTable[[#This Row],[Salary Code]]),,"0%") -> 0 | O69: =IFERROR((IF(AND(PersonnelTable[[#This Row],[Category]]="Personnel - HDR", PersonnelTable[[#This Row],[Unit Of Pay]]="Annual Salary"), INDEX(BaseSalaries, MATCH(PersonnelTable[[#This Row],[Salary Code]],LookupSalary,0), MATCH(PersonnelTable[[#This Row],[Calendar Year]],LookupYear,0)), IF(AND(PersonnelTable[[#This Row],[Category]]="Personnel - HDR",PersonnelTable[[#This Row],[Unit Of Pay]]="Days"), INDEX(BaseSalaries, MATCH(PersonnelTable[[#This Row],[Salary Code]],LookupSalary,0), MATCH(PersonnelTable[[#This Row],[Calendar Year]],LookupYear,0))/260.893,IF(AND(PersonnelTable[[#This Row],[Category]]="Personnel - HDR",PersonnelTable[[#This Row],[Unit Of Pay]]="Hours"), INDEX(BaseSalaries, MATCH(PersonnelTable[[#This Row],[Salary Code]],LookupSalary,0), MATCH(PersonnelTable[[#This Row],[Calendar Year]],LookupYear,0))/1891.47425, IF(PersonnelTable[[#This Row],[Unit Of Pay]]="Annual Salary", INDEX(BaseSalaries, MATCH(PersonnelTable[[#This Row],[Salary Code]],LookupSalary,0), MATCH(PersonnelTable[[#This Row],[Calendar Year]],LookupYear,0))*SalaryOncostsMultiplier, IF(PersonnelTable[[#This Row],[Unit Of Pay]]="Days", INDEX(BaseSalaries, MATCH(PersonnelTable[[#This Row],[Salary Code]],LookupSalary,0), MATCH(PersonnelTable[[#This Row],[Calendar Year]],LookupYear,0))*SalaryOncostsMultiplier/260.893, IF(PersonnelTable[[#This Row],[Unit Of Pay]]="Hours", INDEX(BaseSalaries, MATCH(PersonnelTable[[#This Row],[Salary Code]],LookupSalary,0), MATCH(PersonnelTable[[#This Row],[Calendar Year]],LookupYear,0))*SalaryOncostsMultiplier/1891.47425, IF(PersonnelTable[[#This Row],[Unit Of Pay]]="Casual Hours", INDEX(BaseSalaries, MATCH(PersonnelTable[[#This Row],[Salary Code]],LookupSalary,0), MATCH(PersonnelTable[[#This Row],[Calendar Year]],LookupYear,0))*CasualLoadingMultiplier*SalaryOncostsCasualMultiplier/1891.47425,))))))))*(1+PersonnelTable[[#This Row],[Salary Loading]]),"") -> 0 | Q69: =IF(PersonnelTable[[#This Row],[Unit Of Pay]]="Annual Salary", "Yes", "No") -> No | R69: =IF(PersonnelTable[[#This Row],[Prorate Units?]]="Yes", PersonnelTable[[#This Row],[No Of Units]]*(PersonnelTable[[#This Row],[AUD Cost per Unit]]/NETWORKDAYS(DATE(PersonnelTable[[#This Row],[Calendar Year]],1,1),DATE(PersonnelTable[[#This Row],[Calendar Year]],12,31))*NETWORKDAYS(PersonnelTable[[#This Row],[Start Date]],PersonnelTable[[#This Row],[End Date]])/PersonnelTable[[#This Row],[AUD Cost per Unit]]), IF(PersonnelTable[[#This Row],[Prorate Units?]]="Yes - Per Week", (PersonnelTable[[#This Row],[No Of Units]]*52.143)*(PersonnelTable[[#This Row],[AUD Cost per Unit]]/NETWORKDAYS(DATE(PersonnelTable[[#This Row],[Calendar Year]],1,1),DATE(PersonnelTable[[#This Row],[Calendar Year]],12,31))*NETWORKDAYS(PersonnelTable[[#This Row],[Start Date]],PersonnelTable[[#This Row],[End Date]])/PersonnelTable[[#This Row],[AUD Cost per Unit]]),PersonnelTable[[#This Row],[No Of Units]])) -> 0 | S69: =IF(AND(PersonnelTable[[#This Row],[Category]] ="Personnel - HDR",TuitionFeeRecException="No"),0,IF(AND(PersonnelTable[[#This Row],[Category]] ="Personnel - HDR",TuitionFeeRecException="Yes"),INDEX(TuitionFee_Multipiler,MATCH(TuitionFee_CostType,LookupTuitionMultiplier,0),MATCH(PersonnelTable[[#This Row],[Calendar Year]],LookupYear_Tuition,0)), IF(AND(SCRException="Yes",PersonnelTable[[#This Row],[Type]]<>"Direct Cost w Indirect Cost as In Kind Support"),SCR_rate,0.5))) -> 0.5 | T69: =IF(OR(PersonnelTable[[#This Row],[Type]]="Outgoing Payment",PersonnelTable[[#This Row],[Type]]="In Kind Support",PersonnelTable[[#This Row],[Category]]="Personnel - HDR"),0,IF(AND(PersonnelTable[[#This Row],[Category]]="Personnel",ProjectType="Consultancy"),0.428571429,"0%")) -> 0% | U69: =IF(OutputCurrencyOption="AUD", PersonnelTable[[#This Row],[AUD Cost per Unit]], PersonnelTable[[#This Row],[AUD Cost per Unit]]*OutputCurrencyRate) -> 0 | V69: =(IF(OutputCurrencyOption="AUD", PersonnelTable[[#This Row],[AUD Cost per Unit]],PersonnelTable[[#This Row],[Output Currency Cost per Unit]]))*PersonnelTable[[#This Row],[Apportioned Units]] -> 0 | W69: =(IF(OutputCurrencyOption="AUD", PersonnelTable[[#This Row],[AUD Cost per Unit]],PersonnelTable[[#This Row],[Output Currency Cost per Unit]]))*PersonnelTable[[#This Row],[Indirect Costs %]] -> 0 | X69: =PersonnelTable[[#This Row],[Indirect Costs Per Unit]]*PersonnelTable[[#This Row],[Apportioned Units]] -> 0 | Y69: =((IF(OutputCurrencyOption="AUD", PersonnelTable[[#This Row],[AUD Cost per Unit]],PersonnelTable[[#This Row],[Output Currency Cost per Unit]]))+PersonnelTable[[#This Row],[Indirect Costs Per Unit]])*PersonnelTable[[#This Row],[Markup %]] -> 0 | Z69: =PersonnelTable[[#This Row],[Markup Per Unit]]*PersonnelTable[[#This Row],[Apportioned Units]] -> 0 | AA69: =IF(PersonnelTable[[#This Row],[Type]]="In Kind Support",0, IF(PersonnelTable[[#This Row],[Type]]="Direct Cost w Indirect Cost as In Kind Support",PersonnelTable[[#This Row],[Output Currency Cost per Unit]]+PersonnelTable[[#This Row],[Markup Per Unit]], PersonnelTable[[#This Row],[Output Currency Cost per Unit]]+PersonnelTable[[#This Row],[Indirect Costs Per Unit]]+PersonnelTable[[#This Row],[Markup Per Unit]])) -> 0 | AB69: =IF(PersonnelTable[[#This Row],[Type]]="In Kind Support",0, IF(PersonnelTable[[#This Row],[Type]]="Direct Cost w Indirect Cost as In Kind Support",PersonnelTable[[#This Row],[Direct Costs]]+PersonnelTable[[#This Row],[Markup]], PersonnelTable[[#This Row],[Direct Costs]]+PersonnelTable[[#This Row],[Indirect Costs]]+PersonnelTable[[#This Row],[Markup]])) -> 0 | AC69: =IF(ClientGST="Yes",PersonnelTable[[#This Row],[Cost to Client]]*1.1,PersonnelTable[[#This Row],[Cost to Client]]) -> 0 | AD69: =IF(PersonnelTable[[#This Row],[Type]]="In Kind Support", PersonnelTable[[#This Row],[Direct Costs]]+PersonnelTable[[#This Row],[Indirect Costs]]+PersonnelTable[[#This Row],[Markup]], IF(PersonnelTable[[#This Row],[Type]]="Direct Cost w Indirect Cost as In Kind Support", PersonnelTable[[#This Row],[Indirect Costs]],IF(AND(PersonnelTable[[#This Row],[Type]]="Cost",PersonnelTable[[#This Row],[Category]]<>"Personnel - HDR",SCRException="Yes"),(0.5-PersonnelTable[[#This Row],[Indirect Costs %]])*PersonnelTable[[#This Row],[Direct Costs]],))) -> 0 | AF69: =IF(PersonnelTable[[#This Row],[Type]]="In Kind Support",0,PersonnelTable[[#This Row],[Direct Costs]]) -> 0 | AG69: =IF(OR(PersonnelTable[[#This Row],[Type]]="In Kind Support",PersonnelTable[[#This Row],[Type]]="Direct Cost w Indirect Cost as In Kind Support"),0,PersonnelTable[[#This Row],[Indirect Costs]]) -> 0 | AH69: =IF(OR(PersonnelTable[[#This Row],[Type]]="In Kind Support",PersonnelTable[[#This Row],[Type]]="Direct Cost w Indirect Cost as In Kind Support"),0,PersonnelTable[[#This Row],[Indirect Costs]]*0.6) -> 0 | AI69: =IF(OR(PersonnelTable[[#This Row],[Type]]="In Kind Support",PersonnelTable[[#This Row],[Type]]="Direct Cost w Indirect Cost as In Kind Support"),0,PersonnelTable[[#This Row],[Indirect Costs]]*0.2) -> 0 | AJ69: =IF(OR(PersonnelTable[[#This Row],[Type]]="In Kind Support",PersonnelTable[[#This Row],[Type]]="Direct Cost w Indirect Cost as In Kind Support"),0,PersonnelTable[[#This Row],[Indirect Costs]]*0.2) -> 0 | AK69: =IF(PersonnelTable[[#This Row],[Category]]="Personnel - HDR", 0, IF(PersonnelTable[[#This Row],[Unit Of Pay]]="Casual Hours", PersonnelTable[[#This Row],[Direct Costs]]/SalaryOncostsCasualMultiplier, IF(PersonnelTable[[#This Row],[Unit Of Pay]]<>"Casual Hours", PersonnelTable[[#This Row],[Direct Costs]]/SalaryOncostsMultiplier))) -> 0 | AL69: =IF(PersonnelTable[[#This Row],[Category]]="Personnel - HDR", "0", PersonnelTable[[#This Row],[Direct Costs]]-PersonnelTable[[#This Row],[Salary Base Cost]]) -> 0 | AM69: =IFERROR(IF(PersonnelTable[[#This Row],[Category]]="Personnel - HDR", 0, PersonnelTable[[#This Row],[Total Oncosts]]/PersonnelTable[[#This Row],[Salary Base Cost]]),) -> 0 | AN69: =IF(PersonnelTable[[#This Row],[Category]]="Personnel - HDR", 0, IF(PersonnelTable[[#This Row],[Unit Of Pay]]="Casual Hours", PersonnelTable[[#This Row],[Salary Base Cost]]*CasualPRT, IF(PersonnelTable[[#This Row],[Unit Of Pay]]<>"Casual Hours", PersonnelTable[[#This Row],[Salary Base Cost]]*NonCasualPRT))) -> 0 | AO69: =IF(PersonnelTable[[#This Row],[Category]]="Personnel - HDR", 0, IF(PersonnelTable[[#This Row],[Unit Of Pay]]="Casual Hours", PersonnelTable[[#This Row],[Salary Base Cost]]*CasualWC, IF(PersonnelTable[[#This Row],[Unit Of Pay]]<>"Casual Hours", PersonnelTable[[#This Row],[Salary Base Cost]]*NonCasualWC))) -> 0 | AP69: =IF(PersonnelTable[[#This Row],[Category]]="Personnel - HDR", 0, IF(PersonnelTable[[#This Row],[Unit Of Pay]]="Casual Hours", PersonnelTable[[#This Row],[Salary Base Cost]]*CasualSuper, IF(PersonnelTable[[#This Row],[Unit Of Pay]]<>"Casual Hours", PersonnelTable[[#This Row],[Salary Base Cost]]*NonCasualSuper))) -> 0 | AQ69: =IF(PersonnelTable[[#This Row],[Category]]="Personnel - HDR", 0, IF(PersonnelTable[[#This Row],[Unit Of Pay]]="Casual Hours", PersonnelTable[[#This Row],[Salary Base Cost]]*CasualSuperPRT, IF(PersonnelTable[[#This Row],[Unit Of Pay]]<>"Casual Hours", PersonnelTable[[#This Row],[Salary Base Cost]]*NonCasualSuperPRT))) -> 0 | AR69: =IF(PersonnelTable[[#This Row],[Category]]="Personnel - HDR", 0, IF(PersonnelTable[[#This Row],[Unit Of Pay]]="Casual Hours",0, IF(PersonnelTable[[#This Row],[Salary Base Cost]]<>"Casual Hours", PersonnelTable[[#This Row],[Salary Base Cost]]*NonCasualLSL))) -> 0 | AS69: =IF(PersonnelTable[[#This Row],[Category]]="Personnel - HDR", 0, IF(PersonnelTable[[#This Row],[Unit Of Pay]]="Casual Hours",0, IF(PersonnelTable[[#This Row],[Unit Of Pay]]<>"Casual Hours", PersonnelTable[[#This Row],[Salary Base Cost]]*NonCasualRec))) -> 0 | AT69: =IF(PersonnelTable[[#This Row],[Category]]="Personnel - HDR", 0, IF(PersonnelTable[[#This Row],[Unit Of Pay]]="Casual Hours",0, IF(PersonnelTable[[#This Row],[Unit Of Pay]]<>"Casual Hours", PersonnelTable[[#This Row],[Salary Base Cost]]*NonCasualParent))) -> 0 | AU69: =YEARFRAC(PersonnelTable[[#This Row],[Start Date]],PersonnelTable[[#This Row],[End Date]]+1,0) ->  | AV69: =PersonnelTable[[#This Row],[Calendar Year]]-1&" - "&RIGHT(PersonnelTable[[#This Row],[Calendar Year]],2) -> -1 - | AW69: =PersonnelTable[[#This Row],[Calendar Year]]&" - "&RIGHT(PersonnelTable[[#This Row],[Calendar Year]]+1,2) -> - 1 | AX69: =IF(AND(PersonnelTable[[#This Row],[Start Date]]<DATE(PersonnelTable[[#This Row],[Calendar Year]],7,1),PersonnelTable[[#This Row],[End Date]]<DATE(PersonnelTable[[#This Row],[Calendar Year]],7,1)),_xlfn.DAYS(PersonnelTable[[#This Row],[End Date]]+1,PersonnelTable[[#This Row],[Start Date]]),IF(AND(PersonnelTable[[#This Row],[Start Date]]<DATE(PersonnelTable[[#This Row],[Calendar Year]],7,1),PersonnelTable[[#This Row],[End Date]]>DATE(PersonnelTable[[#This Row],[Calendar Year]],6,30)),_xlfn.DAYS(DATE(PersonnelTable[[#This Row],[Calendar Year]],6,30)+1,PersonnelTable[[#This Row],[Start Date]]),IF((PersonnelTable[[#This Row],[Start Date]]>DATE(PersonnelTable[[#This Row],[Calendar Year]],7,1)),0,)))/_xlfn.DAYS(PersonnelTable[[#This Row],[End Date]]+1,PersonnelTable[[#This Row],[Start Date]]) ->  | AY69: =IF(AND(PersonnelTable[[#This Row],[Start Date]]>DATE(PersonnelTable[[#This Row],[Calendar Year]],6,30),PersonnelTable[[#This Row],[End Date]]>DATE(PersonnelTable[[#This Row],[Calendar Year]],6,30)),_xlfn.DAYS(PersonnelTable[[#This Row],[End Date]]+1,PersonnelTable[[#This Row],[Start Date]]),IF(AND(PersonnelTable[[#This Row],[Start Date]]<DATE(PersonnelTable[[#This Row],[Calendar Year]],6,30),PersonnelTable[[#This Row],[End Date]]>DATE(PersonnelTable[[#This Row],[Calendar Year]],6,30)),_xlfn.DAYS(PersonnelTable[[#This Row],[End Date]]+1,DATE(PersonnelTable[[#This Row],[Calendar Year]],7,1)),IF((PersonnelTable[[#This Row],[End Date]]<DATE(PersonnelTable[[#This Row],[Calendar Year]],7,1)),0,)))/_xlfn.DAYS(PersonnelTable[[#This Row],[End Date]]+1,PersonnelTable[[#This Row],[Start Date]]) -> 
D70: =PersonnelTable[[#This Row],[Input Currency Cost per Unit]]*PersonnelTable[[#This Row],[Input Currency Rate]] -> 0 | J70: =IF(ISBLANK(PersonnelTable[[#This Row],[Calendar Year]]),"",DATE(PersonnelTable[[#This Row],[Calendar Year]],1,1)) ->  | K70: =IF(ISBLANK(PersonnelTable[[#This Row],[Calendar Year]]),"",DATE(PersonnelTable[[#This Row],[Calendar Year]],12,31)) ->  | N70: =IF(ISBLANK(PersonnelTable[[#This Row],[Salary Code]]),,"0%") -> 0 | O70: =IFERROR((IF(AND(PersonnelTable[[#This Row],[Category]]="Personnel - HDR", PersonnelTable[[#This Row],[Unit Of Pay]]="Annual Salary"), INDEX(BaseSalaries, MATCH(PersonnelTable[[#This Row],[Salary Code]],LookupSalary,0), MATCH(PersonnelTable[[#This Row],[Calendar Year]],LookupYear,0)), IF(AND(PersonnelTable[[#This Row],[Category]]="Personnel - HDR",PersonnelTable[[#This Row],[Unit Of Pay]]="Days"), INDEX(BaseSalaries, MATCH(PersonnelTable[[#This Row],[Salary Code]],LookupSalary,0), MATCH(PersonnelTable[[#This Row],[Calendar Year]],LookupYear,0))/260.893,IF(AND(PersonnelTable[[#This Row],[Category]]="Personnel - HDR",PersonnelTable[[#This Row],[Unit Of Pay]]="Hours"), INDEX(BaseSalaries, MATCH(PersonnelTable[[#This Row],[Salary Code]],LookupSalary,0), MATCH(PersonnelTable[[#This Row],[Calendar Year]],LookupYear,0))/1891.47425, IF(PersonnelTable[[#This Row],[Unit Of Pay]]="Annual Salary", INDEX(BaseSalaries, MATCH(PersonnelTable[[#This Row],[Salary Code]],LookupSalary,0), MATCH(PersonnelTable[[#This Row],[Calendar Year]],LookupYear,0))*SalaryOncostsMultiplier, IF(PersonnelTable[[#This Row],[Unit Of Pay]]="Days", INDEX(BaseSalaries, MATCH(PersonnelTable[[#This Row],[Salary Code]],LookupSalary,0), MATCH(PersonnelTable[[#This Row],[Calendar Year]],LookupYear,0))*SalaryOncostsMultiplier/260.893, IF(PersonnelTable[[#This Row],[Unit Of Pay]]="Hours", INDEX(BaseSalaries, MATCH(PersonnelTable[[#This Row],[Salary Code]],LookupSalary,0), MATCH(PersonnelTable[[#This Row],[Calendar Year]],LookupYear,0))*SalaryOncostsMultiplier/1891.47425, IF(PersonnelTable[[#This Row],[Unit Of Pay]]="Casual Hours", INDEX(BaseSalaries, MATCH(PersonnelTable[[#This Row],[Salary Code]],LookupSalary,0), MATCH(PersonnelTable[[#This Row],[Calendar Year]],LookupYear,0))*CasualLoadingMultiplier*SalaryOncostsCasualMultiplier/1891.47425,))))))))*(1+PersonnelTable[[#This Row],[Salary Loading]]),"") -> 0 | Q70: =IF(PersonnelTable[[#This Row],[Unit Of Pay]]="Annual Salary", "Yes", "No") -> No | R70: =IF(PersonnelTable[[#This Row],[Prorate Units?]]="Yes", PersonnelTable[[#This Row],[No Of Units]]*(PersonnelTable[[#This Row],[AUD Cost per Unit]]/NETWORKDAYS(DATE(PersonnelTable[[#This Row],[Calendar Year]],1,1),DATE(PersonnelTable[[#This Row],[Calendar Year]],12,31))*NETWORKDAYS(PersonnelTable[[#This Row],[Start Date]],PersonnelTable[[#This Row],[End Date]])/PersonnelTable[[#This Row],[AUD Cost per Unit]]), IF(PersonnelTable[[#This Row],[Prorate Units?]]="Yes - Per Week", (PersonnelTable[[#This Row],[No Of Units]]*52.143)*(PersonnelTable[[#This Row],[AUD Cost per Unit]]/NETWORKDAYS(DATE(PersonnelTable[[#This Row],[Calendar Year]],1,1),DATE(PersonnelTable[[#This Row],[Calendar Year]],12,31))*NETWORKDAYS(PersonnelTable[[#This Row],[Start Date]],PersonnelTable[[#This Row],[End Date]])/PersonnelTable[[#This Row],[AUD Cost per Unit]]),PersonnelTable[[#This Row],[No Of Units]])) -> 0 | S70: =IF(AND(PersonnelTable[[#This Row],[Category]] ="Personnel - HDR",TuitionFeeRecException="No"),0,IF(AND(PersonnelTable[[#This Row],[Category]] ="Personnel - HDR",TuitionFeeRecException="Yes"),INDEX(TuitionFee_Multipiler,MATCH(TuitionFee_CostType,LookupTuitionMultiplier,0),MATCH(PersonnelTable[[#This Row],[Calendar Year]],LookupYear_Tuition,0)), IF(AND(SCRException="Yes",PersonnelTable[[#This Row],[Type]]<>"Direct Cost w Indirect Cost as In Kind Support"),SCR_rate,0.5))) -> 0.5 | T70: =IF(OR(PersonnelTable[[#This Row],[Type]]="Outgoing Payment",PersonnelTable[[#This Row],[Type]]="In Kind Support",PersonnelTable[[#This Row],[Category]]="Personnel - HDR"),0,IF(AND(PersonnelTable[[#This Row],[Category]]="Personnel",ProjectType="Consultancy"),0.428571429,"0%")) -> 0% | U70: =IF(OutputCurrencyOption="AUD", PersonnelTable[[#This Row],[AUD Cost per Unit]], PersonnelTable[[#This Row],[AUD Cost per Unit]]*OutputCurrencyRate) -> 0 | V70: =(IF(OutputCurrencyOption="AUD", PersonnelTable[[#This Row],[AUD Cost per Unit]],PersonnelTable[[#This Row],[Output Currency Cost per Unit]]))*PersonnelTable[[#This Row],[Apportioned Units]] -> 0 | W70: =(IF(OutputCurrencyOption="AUD", PersonnelTable[[#This Row],[AUD Cost per Unit]],PersonnelTable[[#This Row],[Output Currency Cost per Unit]]))*PersonnelTable[[#This Row],[Indirect Costs %]] -> 0 | X70: =PersonnelTable[[#This Row],[Indirect Costs Per Unit]]*PersonnelTable[[#This Row],[Apportioned Units]] -> 0 | Y70: =((IF(OutputCurrencyOption="AUD", PersonnelTable[[#This Row],[AUD Cost per Unit]],PersonnelTable[[#This Row],[Output Currency Cost per Unit]]))+PersonnelTable[[#This Row],[Indirect Costs Per Unit]])*PersonnelTable[[#This Row],[Markup %]] -> 0 | Z70: =PersonnelTable[[#This Row],[Markup Per Unit]]*PersonnelTable[[#This Row],[Apportioned Units]] -> 0 | AA70: =IF(PersonnelTable[[#This Row],[Type]]="In Kind Support",0, IF(PersonnelTable[[#This Row],[Type]]="Direct Cost w Indirect Cost as In Kind Support",PersonnelTable[[#This Row],[Output Currency Cost per Unit]]+PersonnelTable[[#This Row],[Markup Per Unit]], PersonnelTable[[#This Row],[Output Currency Cost per Unit]]+PersonnelTable[[#This Row],[Indirect Costs Per Unit]]+PersonnelTable[[#This Row],[Markup Per Unit]])) -> 0 | AB70: =IF(PersonnelTable[[#This Row],[Type]]="In Kind Support",0, IF(PersonnelTable[[#This Row],[Type]]="Direct Cost w Indirect Cost as In Kind Support",PersonnelTable[[#This Row],[Direct Costs]]+PersonnelTable[[#This Row],[Markup]], PersonnelTable[[#This Row],[Direct Costs]]+PersonnelTable[[#This Row],[Indirect Costs]]+PersonnelTable[[#This Row],[Markup]])) -> 0 | AC70: =IF(ClientGST="Yes",PersonnelTable[[#This Row],[Cost to Client]]*1.1,PersonnelTable[[#This Row],[Cost to Client]]) -> 0 | AD70: =IF(PersonnelTable[[#This Row],[Type]]="In Kind Support", PersonnelTable[[#This Row],[Direct Costs]]+PersonnelTable[[#This Row],[Indirect Costs]]+PersonnelTable[[#This Row],[Markup]], IF(PersonnelTable[[#This Row],[Type]]="Direct Cost w Indirect Cost as In Kind Support", PersonnelTable[[#This Row],[Indirect Costs]],IF(AND(PersonnelTable[[#This Row],[Type]]="Cost",PersonnelTable[[#This Row],[Category]]<>"Personnel - HDR",SCRException="Yes"),(0.5-PersonnelTable[[#This Row],[Indirect Costs %]])*PersonnelTable[[#This Row],[Direct Costs]],))) -> 0 | AF70: =IF(PersonnelTable[[#This Row],[Type]]="In Kind Support",0,PersonnelTable[[#This Row],[Direct Costs]]) -> 0 | AG70: =IF(OR(PersonnelTable[[#This Row],[Type]]="In Kind Support",PersonnelTable[[#This Row],[Type]]="Direct Cost w Indirect Cost as In Kind Support"),0,PersonnelTable[[#This Row],[Indirect Costs]]) -> 0 | AH70: =IF(OR(PersonnelTable[[#This Row],[Type]]="In Kind Support",PersonnelTable[[#This Row],[Type]]="Direct Cost w Indirect Cost as In Kind Support"),0,PersonnelTable[[#This Row],[Indirect Costs]]*0.6) -> 0 | AI70: =IF(OR(PersonnelTable[[#This Row],[Type]]="In Kind Support",PersonnelTable[[#This Row],[Type]]="Direct Cost w Indirect Cost as In Kind Support"),0,PersonnelTable[[#This Row],[Indirect Costs]]*0.2) -> 0 | AJ70: =IF(OR(PersonnelTable[[#This Row],[Type]]="In Kind Support",PersonnelTable[[#This Row],[Type]]="Direct Cost w Indirect Cost as In Kind Support"),0,PersonnelTable[[#This Row],[Indirect Costs]]*0.2) -> 0 | AK70: =IF(PersonnelTable[[#This Row],[Category]]="Personnel - HDR", 0, IF(PersonnelTable[[#This Row],[Unit Of Pay]]="Casual Hours", PersonnelTable[[#This Row],[Direct Costs]]/SalaryOncostsCasualMultiplier, IF(PersonnelTable[[#This Row],[Unit Of Pay]]<>"Casual Hours", PersonnelTable[[#This Row],[Direct Costs]]/SalaryOncostsMultiplier))) -> 0 | AL70: =IF(PersonnelTable[[#This Row],[Category]]="Personnel - HDR", "0", PersonnelTable[[#This Row],[Direct Costs]]-PersonnelTable[[#This Row],[Salary Base Cost]]) -> 0 | AM70: =IFERROR(IF(PersonnelTable[[#This Row],[Category]]="Personnel - HDR", 0, PersonnelTable[[#This Row],[Total Oncosts]]/PersonnelTable[[#This Row],[Salary Base Cost]]),) -> 0 | AN70: =IF(PersonnelTable[[#This Row],[Category]]="Personnel - HDR", 0, IF(PersonnelTable[[#This Row],[Unit Of Pay]]="Casual Hours", PersonnelTable[[#This Row],[Salary Base Cost]]*CasualPRT, IF(PersonnelTable[[#This Row],[Unit Of Pay]]<>"Casual Hours", PersonnelTable[[#This Row],[Salary Base Cost]]*NonCasualPRT))) -> 0 | AO70: =IF(PersonnelTable[[#This Row],[Category]]="Personnel - HDR", 0, IF(PersonnelTable[[#This Row],[Unit Of Pay]]="Casual Hours", PersonnelTable[[#This Row],[Salary Base Cost]]*CasualWC, IF(PersonnelTable[[#This Row],[Unit Of Pay]]<>"Casual Hours", PersonnelTable[[#This Row],[Salary Base Cost]]*NonCasualWC))) -> 0 | AP70: =IF(PersonnelTable[[#This Row],[Category]]="Personnel - HDR", 0, IF(PersonnelTable[[#This Row],[Unit Of Pay]]="Casual Hours", PersonnelTable[[#This Row],[Salary Base Cost]]*CasualSuper, IF(PersonnelTable[[#This Row],[Unit Of Pay]]<>"Casual Hours", PersonnelTable[[#This Row],[Salary Base Cost]]*NonCasualSuper))) -> 0 | AQ70: =IF(PersonnelTable[[#This Row],[Category]]="Personnel - HDR", 0, IF(PersonnelTable[[#This Row],[Unit Of Pay]]="Casual Hours", PersonnelTable[[#This Row],[Salary Base Cost]]*CasualSuperPRT, IF(PersonnelTable[[#This Row],[Unit Of Pay]]<>"Casual Hours", PersonnelTable[[#This Row],[Salary Base Cost]]*NonCasualSuperPRT))) -> 0 | AR70: =IF(PersonnelTable[[#This Row],[Category]]="Personnel - HDR", 0, IF(PersonnelTable[[#This Row],[Unit Of Pay]]="Casual Hours",0, IF(PersonnelTable[[#This Row],[Salary Base Cost]]<>"Casual Hours", PersonnelTable[[#This Row],[Salary Base Cost]]*NonCasualLSL))) -> 0 | AS70: =IF(PersonnelTable[[#This Row],[Category]]="Personnel - HDR", 0, IF(PersonnelTable[[#This Row],[Unit Of Pay]]="Casual Hours",0, IF(PersonnelTable[[#This Row],[Unit Of Pay]]<>"Casual Hours", PersonnelTable[[#This Row],[Salary Base Cost]]*NonCasualRec))) -> 0 | AT70: =IF(PersonnelTable[[#This Row],[Category]]="Personnel - HDR", 0, IF(PersonnelTable[[#This Row],[Unit Of Pay]]="Casual Hours",0, IF(PersonnelTable[[#This Row],[Unit Of Pay]]<>"Casual Hours", PersonnelTable[[#This Row],[Salary Base Cost]]*NonCasualParent))) -> 0 | AU70: =YEARFRAC(PersonnelTable[[#This Row],[Start Date]],PersonnelTable[[#This Row],[End Date]]+1,0) ->  | AV70: =PersonnelTable[[#This Row],[Calendar Year]]-1&" - "&RIGHT(PersonnelTable[[#This Row],[Calendar Year]],2) -> -1 - | AW70: =PersonnelTable[[#This Row],[Calendar Year]]&" - "&RIGHT(PersonnelTable[[#This Row],[Calendar Year]]+1,2) -> - 1 | AX70: =IF(AND(PersonnelTable[[#This Row],[Start Date]]<DATE(PersonnelTable[[#This Row],[Calendar Year]],7,1),PersonnelTable[[#This Row],[End Date]]<DATE(PersonnelTable[[#This Row],[Calendar Year]],7,1)),_xlfn.DAYS(PersonnelTable[[#This Row],[End Date]]+1,PersonnelTable[[#This Row],[Start Date]]),IF(AND(PersonnelTable[[#This Row],[Start Date]]<DATE(PersonnelTable[[#This Row],[Calendar Year]],7,1),PersonnelTable[[#This Row],[End Date]]>DATE(PersonnelTable[[#This Row],[Calendar Year]],6,30)),_xlfn.DAYS(DATE(PersonnelTable[[#This Row],[Calendar Year]],6,30)+1,PersonnelTable[[#This Row],[Start Date]]),IF((PersonnelTable[[#This Row],[Start Date]]>DATE(PersonnelTable[[#This Row],[Calendar Year]],7,1)),0,)))/_xlfn.DAYS(PersonnelTable[[#This Row],[End Date]]+1,PersonnelTable[[#This Row],[Start Date]]) ->  | AY70: =IF(AND(PersonnelTable[[#This Row],[Start Date]]>DATE(PersonnelTable[[#This Row],[Calendar Year]],6,30),PersonnelTable[[#This Row],[End Date]]>DATE(PersonnelTable[[#This Row],[Calendar Year]],6,30)),_xlfn.DAYS(PersonnelTable[[#This Row],[End Date]]+1,PersonnelTable[[#This Row],[Start Date]]),IF(AND(PersonnelTable[[#This Row],[Start Date]]<DATE(PersonnelTable[[#This Row],[Calendar Year]],6,30),PersonnelTable[[#This Row],[End Date]]>DATE(PersonnelTable[[#This Row],[Calendar Year]],6,30)),_xlfn.DAYS(PersonnelTable[[#This Row],[End Date]]+1,DATE(PersonnelTable[[#This Row],[Calendar Year]],7,1)),IF((PersonnelTable[[#This Row],[End Date]]<DATE(PersonnelTable[[#This Row],[Calendar Year]],7,1)),0,)))/_xlfn.DAYS(PersonnelTable[[#This Row],[End Date]]+1,PersonnelTable[[#This Row],[Start Date]]) -> 
D71: =PersonnelTable[[#This Row],[Input Currency Cost per Unit]]*PersonnelTable[[#This Row],[Input Currency Rate]] -> 0 | J71: =IF(ISBLANK(PersonnelTable[[#This Row],[Calendar Year]]),"",DATE(PersonnelTable[[#This Row],[Calendar Year]],1,1)) ->  | K71: =IF(ISBLANK(PersonnelTable[[#This Row],[Calendar Year]]),"",DATE(PersonnelTable[[#This Row],[Calendar Year]],12,31)) ->  | N71: =IF(ISBLANK(PersonnelTable[[#This Row],[Salary Code]]),,"0%") -> 0 | O71: =IFERROR((IF(AND(PersonnelTable[[#This Row],[Category]]="Personnel - HDR", PersonnelTable[[#This Row],[Unit Of Pay]]="Annual Salary"), INDEX(BaseSalaries, MATCH(PersonnelTable[[#This Row],[Salary Code]],LookupSalary,0), MATCH(PersonnelTable[[#This Row],[Calendar Year]],LookupYear,0)), IF(AND(PersonnelTable[[#This Row],[Category]]="Personnel - HDR",PersonnelTable[[#This Row],[Unit Of Pay]]="Days"), INDEX(BaseSalaries, MATCH(PersonnelTable[[#This Row],[Salary Code]],LookupSalary,0), MATCH(PersonnelTable[[#This Row],[Calendar Year]],LookupYear,0))/260.893,IF(AND(PersonnelTable[[#This Row],[Category]]="Personnel - HDR",PersonnelTable[[#This Row],[Unit Of Pay]]="Hours"), INDEX(BaseSalaries, MATCH(PersonnelTable[[#This Row],[Salary Code]],LookupSalary,0), MATCH(PersonnelTable[[#This Row],[Calendar Year]],LookupYear,0))/1891.47425, IF(PersonnelTable[[#This Row],[Unit Of Pay]]="Annual Salary", INDEX(BaseSalaries, MATCH(PersonnelTable[[#This Row],[Salary Code]],LookupSalary,0), MATCH(PersonnelTable[[#This Row],[Calendar Year]],LookupYear,0))*SalaryOncostsMultiplier, IF(PersonnelTable[[#This Row],[Unit Of Pay]]="Days", INDEX(BaseSalaries, MATCH(PersonnelTable[[#This Row],[Salary Code]],LookupSalary,0), MATCH(PersonnelTable[[#This Row],[Calendar Year]],LookupYear,0))*SalaryOncostsMultiplier/260.893, IF(PersonnelTable[[#This Row],[Unit Of Pay]]="Hours", INDEX(BaseSalaries, MATCH(PersonnelTable[[#This Row],[Salary Code]],LookupSalary,0), MATCH(PersonnelTable[[#This Row],[Calendar Year]],LookupYear,0))*SalaryOncostsMultiplier/1891.47425, IF(PersonnelTable[[#This Row],[Unit Of Pay]]="Casual Hours", INDEX(BaseSalaries, MATCH(PersonnelTable[[#This Row],[Salary Code]],LookupSalary,0), MATCH(PersonnelTable[[#This Row],[Calendar Year]],LookupYear,0))*CasualLoadingMultiplier*SalaryOncostsCasualMultiplier/1891.47425,))))))))*(1+PersonnelTable[[#This Row],[Salary Loading]]),"") -> 0 | Q71: =IF(PersonnelTable[[#This Row],[Unit Of Pay]]="Annual Salary", "Yes", "No") -> No | R71: =IF(PersonnelTable[[#This Row],[Prorate Units?]]="Yes", PersonnelTable[[#This Row],[No Of Units]]*(PersonnelTable[[#This Row],[AUD Cost per Unit]]/NETWORKDAYS(DATE(PersonnelTable[[#This Row],[Calendar Year]],1,1),DATE(PersonnelTable[[#This Row],[Calendar Year]],12,31))*NETWORKDAYS(PersonnelTable[[#This Row],[Start Date]],PersonnelTable[[#This Row],[End Date]])/PersonnelTable[[#This Row],[AUD Cost per Unit]]), IF(PersonnelTable[[#This Row],[Prorate Units?]]="Yes - Per Week", (PersonnelTable[[#This Row],[No Of Units]]*52.143)*(PersonnelTable[[#This Row],[AUD Cost per Unit]]/NETWORKDAYS(DATE(PersonnelTable[[#This Row],[Calendar Year]],1,1),DATE(PersonnelTable[[#This Row],[Calendar Year]],12,31))*NETWORKDAYS(PersonnelTable[[#This Row],[Start Date]],PersonnelTable[[#This Row],[End Date]])/PersonnelTable[[#This Row],[AUD Cost per Unit]]),PersonnelTable[[#This Row],[No Of Units]])) -> 0 | S71: =IF(AND(PersonnelTable[[#This Row],[Category]] ="Personnel - HDR",TuitionFeeRecException="No"),0,IF(AND(PersonnelTable[[#This Row],[Category]] ="Personnel - HDR",TuitionFeeRecException="Yes"),INDEX(TuitionFee_Multipiler,MATCH(TuitionFee_CostType,LookupTuitionMultiplier,0),MATCH(PersonnelTable[[#This Row],[Calendar Year]],LookupYear_Tuition,0)), IF(AND(SCRException="Yes",PersonnelTable[[#This Row],[Type]]<>"Direct Cost w Indirect Cost as In Kind Support"),SCR_rate,0.5))) -> 0.5 | T71: =IF(OR(PersonnelTable[[#This Row],[Type]]="Outgoing Payment",PersonnelTable[[#This Row],[Type]]="In Kind Support",PersonnelTable[[#This Row],[Category]]="Personnel - HDR"),0,IF(AND(PersonnelTable[[#This Row],[Category]]="Personnel",ProjectType="Consultancy"),0.428571429,"0%")) -> 0% | U71: =IF(OutputCurrencyOption="AUD", PersonnelTable[[#This Row],[AUD Cost per Unit]], PersonnelTable[[#This Row],[AUD Cost per Unit]]*OutputCurrencyRate) -> 0 | V71: =(IF(OutputCurrencyOption="AUD", PersonnelTable[[#This Row],[AUD Cost per Unit]],PersonnelTable[[#This Row],[Output Currency Cost per Unit]]))*PersonnelTable[[#This Row],[Apportioned Units]] -> 0 | W71: =(IF(OutputCurrencyOption="AUD", PersonnelTable[[#This Row],[AUD Cost per Unit]],PersonnelTable[[#This Row],[Output Currency Cost per Unit]]))*PersonnelTable[[#This Row],[Indirect Costs %]] -> 0 | X71: =PersonnelTable[[#This Row],[Indirect Costs Per Unit]]*PersonnelTable[[#This Row],[Apportioned Units]] -> 0 | Y71: =((IF(OutputCurrencyOption="AUD", PersonnelTable[[#This Row],[AUD Cost per Unit]],PersonnelTable[[#This Row],[Output Currency Cost per Unit]]))+PersonnelTable[[#This Row],[Indirect Costs Per Unit]])*PersonnelTable[[#This Row],[Markup %]] -> 0 | Z71: =PersonnelTable[[#This Row],[Markup Per Unit]]*PersonnelTable[[#This Row],[Apportioned Units]] -> 0 | AA71: =IF(PersonnelTable[[#This Row],[Type]]="In Kind Support",0, IF(PersonnelTable[[#This Row],[Type]]="Direct Cost w Indirect Cost as In Kind Support",PersonnelTable[[#This Row],[Output Currency Cost per Unit]]+PersonnelTable[[#This Row],[Markup Per Unit]], PersonnelTable[[#This Row],[Output Currency Cost per Unit]]+PersonnelTable[[#This Row],[Indirect Costs Per Unit]]+PersonnelTable[[#This Row],[Markup Per Unit]])) -> 0 | AB71: =IF(PersonnelTable[[#This Row],[Type]]="In Kind Support",0, IF(PersonnelTable[[#This Row],[Type]]="Direct Cost w Indirect Cost as In Kind Support",PersonnelTable[[#This Row],[Direct Costs]]+PersonnelTable[[#This Row],[Markup]], PersonnelTable[[#This Row],[Direct Costs]]+PersonnelTable[[#This Row],[Indirect Costs]]+PersonnelTable[[#This Row],[Markup]])) -> 0 | AC71: =IF(ClientGST="Yes",PersonnelTable[[#This Row],[Cost to Client]]*1.1,PersonnelTable[[#This Row],[Cost to Client]]) -> 0 | AD71: =IF(PersonnelTable[[#This Row],[Type]]="In Kind Support", PersonnelTable[[#This Row],[Direct Costs]]+PersonnelTable[[#This Row],[Indirect Costs]]+PersonnelTable[[#This Row],[Markup]], IF(PersonnelTable[[#This Row],[Type]]="Direct Cost w Indirect Cost as In Kind Support", PersonnelTable[[#This Row],[Indirect Costs]],IF(AND(PersonnelTable[[#This Row],[Type]]="Cost",PersonnelTable[[#This Row],[Category]]<>"Personnel - HDR",SCRException="Yes"),(0.5-PersonnelTable[[#This Row],[Indirect Costs %]])*PersonnelTable[[#This Row],[Direct Costs]],))) -> 0 | AF71: =IF(PersonnelTable[[#This Row],[Type]]="In Kind Support",0,PersonnelTable[[#This Row],[Direct Costs]]) -> 0 | AG71: =IF(OR(PersonnelTable[[#This Row],[Type]]="In Kind Support",PersonnelTable[[#This Row],[Type]]="Direct Cost w Indirect Cost as In Kind Support"),0,PersonnelTable[[#This Row],[Indirect Costs]]) -> 0 | AH71: =IF(OR(PersonnelTable[[#This Row],[Type]]="In Kind Support",PersonnelTable[[#This Row],[Type]]="Direct Cost w Indirect Cost as In Kind Support"),0,PersonnelTable[[#This Row],[Indirect Costs]]*0.6) -> 0 | AI71: =IF(OR(PersonnelTable[[#This Row],[Type]]="In Kind Support",PersonnelTable[[#This Row],[Type]]="Direct Cost w Indirect Cost as In Kind Support"),0,PersonnelTable[[#This Row],[Indirect Costs]]*0.2) -> 0 | AJ71: =IF(OR(PersonnelTable[[#This Row],[Type]]="In Kind Support",PersonnelTable[[#This Row],[Type]]="Direct Cost w Indirect Cost as In Kind Support"),0,PersonnelTable[[#This Row],[Indirect Costs]]*0.2) -> 0 | AK71: =IF(PersonnelTable[[#This Row],[Category]]="Personnel - HDR", 0, IF(PersonnelTable[[#This Row],[Unit Of Pay]]="Casual Hours", PersonnelTable[[#This Row],[Direct Costs]]/SalaryOncostsCasualMultiplier, IF(PersonnelTable[[#This Row],[Unit Of Pay]]<>"Casual Hours", PersonnelTable[[#This Row],[Direct Costs]]/SalaryOncostsMultiplier))) -> 0 | AL71: =IF(PersonnelTable[[#This Row],[Category]]="Personnel - HDR", "0", PersonnelTable[[#This Row],[Direct Costs]]-PersonnelTable[[#This Row],[Salary Base Cost]]) -> 0 | AM71: =IFERROR(IF(PersonnelTable[[#This Row],[Category]]="Personnel - HDR", 0, PersonnelTable[[#This Row],[Total Oncosts]]/PersonnelTable[[#This Row],[Salary Base Cost]]),) -> 0 | AN71: =IF(PersonnelTable[[#This Row],[Category]]="Personnel - HDR", 0, IF(PersonnelTable[[#This Row],[Unit Of Pay]]="Casual Hours", PersonnelTable[[#This Row],[Salary Base Cost]]*CasualPRT, IF(PersonnelTable[[#This Row],[Unit Of Pay]]<>"Casual Hours", PersonnelTable[[#This Row],[Salary Base Cost]]*NonCasualPRT))) -> 0 | AO71: =IF(PersonnelTable[[#This Row],[Category]]="Personnel - HDR", 0, IF(PersonnelTable[[#This Row],[Unit Of Pay]]="Casual Hours", PersonnelTable[[#This Row],[Salary Base Cost]]*CasualWC, IF(PersonnelTable[[#This Row],[Unit Of Pay]]<>"Casual Hours", PersonnelTable[[#This Row],[Salary Base Cost]]*NonCasualWC))) -> 0 | AP71: =IF(PersonnelTable[[#This Row],[Category]]="Personnel - HDR", 0, IF(PersonnelTable[[#This Row],[Unit Of Pay]]="Casual Hours", PersonnelTable[[#This Row],[Salary Base Cost]]*CasualSuper, IF(PersonnelTable[[#This Row],[Unit Of Pay]]<>"Casual Hours", PersonnelTable[[#This Row],[Salary Base Cost]]*NonCasualSuper))) -> 0 | AQ71: =IF(PersonnelTable[[#This Row],[Category]]="Personnel - HDR", 0, IF(PersonnelTable[[#This Row],[Unit Of Pay]]="Casual Hours", PersonnelTable[[#This Row],[Salary Base Cost]]*CasualSuperPRT, IF(PersonnelTable[[#This Row],[Unit Of Pay]]<>"Casual Hours", PersonnelTable[[#This Row],[Salary Base Cost]]*NonCasualSuperPRT))) -> 0 | AR71: =IF(PersonnelTable[[#This Row],[Category]]="Personnel - HDR", 0, IF(PersonnelTable[[#This Row],[Unit Of Pay]]="Casual Hours",0, IF(PersonnelTable[[#This Row],[Salary Base Cost]]<>"Casual Hours", PersonnelTable[[#This Row],[Salary Base Cost]]*NonCasualLSL))) -> 0 | AS71: =IF(PersonnelTable[[#This Row],[Category]]="Personnel - HDR", 0, IF(PersonnelTable[[#This Row],[Unit Of Pay]]="Casual Hours",0, IF(PersonnelTable[[#This Row],[Unit Of Pay]]<>"Casual Hours", PersonnelTable[[#This Row],[Salary Base Cost]]*NonCasualRec))) -> 0 | AT71: =IF(PersonnelTable[[#This Row],[Category]]="Personnel - HDR", 0, IF(PersonnelTable[[#This Row],[Unit Of Pay]]="Casual Hours",0, IF(PersonnelTable[[#This Row],[Unit Of Pay]]<>"Casual Hours", PersonnelTable[[#This Row],[Salary Base Cost]]*NonCasualParent))) -> 0 | AU71: =YEARFRAC(PersonnelTable[[#This Row],[Start Date]],PersonnelTable[[#This Row],[End Date]]+1,0) ->  | AV71: =PersonnelTable[[#This Row],[Calendar Year]]-1&" - "&RIGHT(PersonnelTable[[#This Row],[Calendar Year]],2) -> -1 - | AW71: =PersonnelTable[[#This Row],[Calendar Year]]&" - "&RIGHT(PersonnelTable[[#This Row],[Calendar Year]]+1,2) -> - 1 | AX71: =IF(AND(PersonnelTable[[#This Row],[Start Date]]<DATE(PersonnelTable[[#This Row],[Calendar Year]],7,1),PersonnelTable[[#This Row],[End Date]]<DATE(PersonnelTable[[#This Row],[Calendar Year]],7,1)),_xlfn.DAYS(PersonnelTable[[#This Row],[End Date]]+1,PersonnelTable[[#This Row],[Start Date]]),IF(AND(PersonnelTable[[#This Row],[Start Date]]<DATE(PersonnelTable[[#This Row],[Calendar Year]],7,1),PersonnelTable[[#This Row],[End Date]]>DATE(PersonnelTable[[#This Row],[Calendar Year]],6,30)),_xlfn.DAYS(DATE(PersonnelTable[[#This Row],[Calendar Year]],6,30)+1,PersonnelTable[[#This Row],[Start Date]]),IF((PersonnelTable[[#This Row],[Start Date]]>DATE(PersonnelTable[[#This Row],[Calendar Year]],7,1)),0,)))/_xlfn.DAYS(PersonnelTable[[#This Row],[End Date]]+1,PersonnelTable[[#This Row],[Start Date]]) ->  | AY71: =IF(AND(PersonnelTable[[#This Row],[Start Date]]>DATE(PersonnelTable[[#This Row],[Calendar Year]],6,30),PersonnelTable[[#This Row],[End Date]]>DATE(PersonnelTable[[#This Row],[Calendar Year]],6,30)),_xlfn.DAYS(PersonnelTable[[#This Row],[End Date]]+1,PersonnelTable[[#This Row],[Start Date]]),IF(AND(PersonnelTable[[#This Row],[Start Date]]<DATE(PersonnelTable[[#This Row],[Calendar Year]],6,30),PersonnelTable[[#This Row],[End Date]]>DATE(PersonnelTable[[#This Row],[Calendar Year]],6,30)),_xlfn.DAYS(PersonnelTable[[#This Row],[End Date]]+1,DATE(PersonnelTable[[#This Row],[Calendar Year]],7,1)),IF((PersonnelTable[[#This Row],[End Date]]<DATE(PersonnelTable[[#This Row],[Calendar Year]],7,1)),0,)))/_xlfn.DAYS(PersonnelTable[[#This Row],[End Date]]+1,PersonnelTable[[#This Row],[Start Date]]) -> 
E72: Totals Row | V72: =SUBTOTAL(109,PersonnelTable[Direct Costs]) -> 0 | X72: =SUBTOTAL(109,PersonnelTable[Indirect Costs]) -> 0 | Z72: =SUBTOTAL(109,PersonnelTable[Markup]) -> 0 | AB72: =SUBTOTAL(109,PersonnelTable[Cost to Client]) -> 0 | AC72: =SUBTOTAL(109,PersonnelTable[Cost to Client inc GST]) -> 0 | AD72: =SUBTOTAL(109,PersonnelTable[In Kind Support]) -> 0 | AF72: =SUBTOTAL(109,PersonnelTable[Direct Costs Recovered]) -> 0 | AG72: =SUBTOTAL(109,PersonnelTable[Indirect Costs Recovered]) -> 0 | AH72: =SUBTOTAL(109,PersonnelTable[60% Central Allocation]) -> 0 | AI72: =SUBTOTAL(109,PersonnelTable[20% Primary Faculty Allocation]) -> 0 | AJ72: =SUBTOTAL(109,PersonnelTable[20% Secondary Faculty Allocation]) -> 0 | AK72: =SUBTOTAL(109,PersonnelTable[Salary Base Cost]) -> 0 | AL72: =SUBTOTAL(109,PersonnelTable[Total Oncosts]) -> 0 | AN72: =SUBTOTAL(109,PersonnelTable[Payroll Tax]) -> 0 | AO72: =SUBTOTAL(109,PersonnelTable[Workers Compensation]) -> 0 | AP72: =SUBTOTAL(109,PersonnelTable[Superannuation]) -> 0 | AQ72: =SUBTOTAL(109,PersonnelTable[Payroll Tax on Superannuation]) -> 0 | AR72: =SUBTOTAL(109,PersonnelTable[Long Service Leave]) -> 0 | AS72: =SUBTOTAL(109,PersonnelTable[Recreation Leave]) -> 0 | AT72: =SUBTOTAL(109,PersonnelTable[Parental Leave]) -> 0
E76: Data Entry for Other Costs
A77: Input Currency Cost per Unit | B77: Input Currency | C77: Input Currency Rate | D77: AUD Cost per Unit Converted from Input | E77: Type | F77: Category | G77: Budget Item | H77: Notes | I77: Calendar Year | J77: Start Date | K77: End Date | L77: Salary Code | M77: Unit Of Pay | N77: Salary Loading | O77: AUD Cost per Unit | P77: No Of Units | Q77: Prorate Units? | R77: Apportioned Units | S77: Indirect Costs % | T77: Markup % | U77: Output Currency Cost per Unit | V77: Direct Costs | W77: Indirect Costs Per Unit | X77: Indirect Costs | Y77: Markup Per Unit | Z77: Markup | AA77: Cost to Client Per Unit | AB77: Cost to Client | AC77: Cost to Client inc GST | AD77: In Kind Support | AE77: Cash Support | AF77: Direct Costs Recovered | AG77: Indirect Costs Recovered | AH77: 60% Central Allocation | AI77: 20% Primary Faculty Allocation | AJ77: 20% Secondary Faculty Allocation | AK77: Salary Base Cost | AL77: Total Oncosts | AM77: Total Oncosts % | AN77: Payroll Tax | AO77: Workers Compensation | AP77: Superannuation | AQ77: Payroll Tax on Superannuation | AR77: Long Service Leave | AS77: Recreation Leave | AT77: Parental Leave | AU77: CY % | AV77: FY1 | AW77: FY2 | AX77: FY1 % of CY % | AY77: FY2 % of CY %
D78: =OtherTable[[#This Row],[Input Currency Cost per Unit]]*OtherTable[[#This Row],[Input Currency Rate]] -> 0 | J78: =IF(ISBLANK(OtherTable[[#This Row],[Calendar Year]]),"",DATE(OtherTable[[#This Row],[Calendar Year]],1,1)) ->  | K78: =IF(ISBLANK(OtherTable[[#This Row],[Calendar Year]]),"",DATE(OtherTable[[#This Row],[Calendar Year]],12,31)) ->  | Q78: =IF(OtherTable[[#This Row],[Unit Of Pay]]="Annual Salary", "Yes", "No") -> No | R78: =IF(OtherTable[[#This Row],[Prorate Units?]]="Yes", OtherTable[[#This Row],[No Of Units]]*(OtherTable[[#This Row],[AUD Cost per Unit]]/NETWORKDAYS(DATE(OtherTable[[#This Row],[Calendar Year]],1,1),DATE(OtherTable[[#This Row],[Calendar Year]],12,31))*NETWORKDAYS(OtherTable[[#This Row],[Start Date]],OtherTable[[#This Row],[End Date]])/OtherTable[[#This Row],[AUD Cost per Unit]]), IF(OtherTable[[#This Row],[Prorate Units?]]="Yes - Per Week", (OtherTable[[#This Row],[No Of Units]]*52.143)*(OtherTable[[#This Row],[AUD Cost per Unit]]/NETWORKDAYS(DATE(OtherTable[[#This Row],[Calendar Year]],1,1),DATE(OtherTable[[#This Row],[Calendar Year]],12,31))*NETWORKDAYS(OtherTable[[#This Row],[Start Date]],OtherTable[[#This Row],[End Date]])/OtherTable[[#This Row],[AUD Cost per Unit]]),OtherTable[[#This Row],[No Of Units]])) -> 0 | S78: =IF(AND(_xlfn.SINGLE(SCRException)="Yes",OtherTable[[#This Row],[Type]]<>"Direct Cost w Indirect Cost as In Kind Support"),SCR_rate,0.5) -> 0.5 | T78: =0% -> 0 | U78: =IF(OutputCurrencyOption="AUD", OtherTable[[#This Row],[AUD Cost per Unit]], OtherTable[[#This Row],[AUD Cost per Unit]]*OutputCurrencyRate) -> 0 | V78: =(IF(OutputCurrencyOption="AUD", OtherTable[[#This Row],[AUD Cost per Unit]],OtherTable[[#This Row],[Output Currency Cost per Unit]]))*OtherTable[[#This Row],[Apportioned Units]] -> 0 | W78: =(IF(OutputCurrencyOption="AUD", OtherTable[[#This Row],[AUD Cost per Unit]],OtherTable[[#This Row],[Output Currency Cost per Unit]]))*OtherTable[[#This Row],[Indirect Costs %]] -> 0 | X78: =OtherTable[[#This Row],[Indirect Costs Per Unit]]*OtherTable[[#This Row],[Apportioned Units]] -> 0 | Y78: =((IF(OutputCurrencyOption="AUD", OtherTable[[#This Row],[AUD Cost per Unit]],OtherTable[[#This Row],[Output Currency Cost per Unit]]))+OtherTable[[#This Row],[Indirect Costs Per Unit]])*OtherTable[[#This Row],[Markup %]] -> 0 | Z78: =OtherTable[[#This Row],[Markup Per Unit]]*OtherTable[[#This Row],[Apportioned Units]] -> 0 | AA78: =IF(OtherTable[[#This Row],[Type]]="In Kind Support",0, IF(OtherTable[[#This Row],[Type]]="Direct Cost w Indirect Cost as In Kind Support",OtherTable[[#This Row],[Output Currency Cost per Unit]]+OtherTable[[#This Row],[Markup Per Unit]], OtherTable[[#This Row],[Output Currency Cost per Unit]]+OtherTable[[#This Row],[Indirect Costs Per Unit]]+OtherTable[[#This Row],[Markup Per Unit]])) -> 0 | AB78: =IF(OtherTable[[#This Row],[Type]]="In Kind Support",0, IF(OtherTable[[#This Row],[Type]]="Direct Cost w Indirect Cost as In Kind Support",OtherTable[[#This Row],[Direct Costs]]+OtherTable[[#This Row],[Markup]], OtherTable[[#This Row],[Direct Costs]]+OtherTable[[#This Row],[Indirect Costs]]+OtherTable[[#This Row],[Markup]])) -> 0 | AC78: =IF(ClientGST="Yes",OtherTable[[#This Row],[Cost to Client]]*1.1,OtherTable[[#This Row],[Cost to Client]]) -> 0 | AD78: =IF(OtherTable[[#This Row],[Type]]="In Kind Support", OtherTable[[#This Row],[Direct Costs]]+OtherTable[[#This Row],[Indirect Costs]]+OtherTable[[#This Row],[Markup]], IF(OtherTable[[#This Row],[Type]]="Direct Cost w Indirect Cost as In Kind Support", OtherTable[[#This Row],[Indirect Costs]],IF(AND(OtherTable[[#This Row],[Type]]="Cost",SCRException="Yes"),(0.5-OtherTable[[#This Row],[Indirect Costs %]])*OtherTable[[#This Row],[Direct Costs]],))) -> 0 | AF78: =IF(OtherTable[[#This Row],[Type]]="In Kind Support",0,OtherTable[[#This Row],[Direct Costs]]) -> 0 | AG78: =IF(OR(OtherTable[[#This Row],[Type]]="In Kind Support",OtherTable[[#This Row],[Type]]="Direct Cost w Indirect Cost as In Kind Support"),0,OtherTable[[#This Row],[Indirect Costs]]) -> 0 | AH78: =IF(OR(OtherTable[[#This Row],[Type]]="In Kind Support",OtherTable[[#This Row],[Type]]="Direct Cost w Indirect Cost as In Kind Support"),0,OtherTable[[#This Row],[Indirect Costs]]*0.6) -> 0 | AI78: =IF(OR(OtherTable[[#This Row],[Type]]="In Kind Support",OtherTable[[#This Row],[Type]]="Direct Cost w Indirect Cost as In Kind Support"),0,OtherTable[[#This Row],[Indirect Costs]]*0.2) -> 0 | AJ78: =IF(OR(OtherTable[[#This Row],[Type]]="In Kind Support",OtherTable[[#This Row],[Type]]="Direct Cost w Indirect Cost as In Kind Support"),0,OtherTable[[#This Row],[Indirect Costs]]*0.2) -> 0 | AU78: =YEARFRAC(OtherTable[[#This Row],[Start Date]],OtherTable[[#This Row],[End Date]]+1,0) ->  | AV78: =OtherTable[[#This Row],[Calendar Year]]-1&" - "&RIGHT(OtherTable[[#This Row],[Calendar Year]],2) -> -1 - | AW78: =OtherTable[[#This Row],[Calendar Year]]&" - "&RIGHT(OtherTable[[#This Row],[Calendar Year]]+1,2) -> - 1 | AX78: =IF(AND(OtherTable[[#This Row],[Start Date]]<DATE(OtherTable[[#This Row],[Calendar Year]],7,1),OtherTable[[#This Row],[End Date]]<DATE(OtherTable[[#This Row],[Calendar Year]],7,1)),_xlfn.DAYS(OtherTable[[#This Row],[End Date]]+1,OtherTable[[#This Row],[Start Date]]),IF(AND(OtherTable[[#This Row],[Start Date]]<DATE(OtherTable[[#This Row],[Calendar Year]],7,1),OtherTable[[#This Row],[End Date]]>DATE(OtherTable[[#This Row],[Calendar Year]],6,30)),_xlfn.DAYS(DATE(OtherTable[[#This Row],[Calendar Year]],6,30)+1,OtherTable[[#This Row],[Start Date]]),IF((OtherTable[[#This Row],[Start Date]]>DATE(OtherTable[[#This Row],[Calendar Year]],7,1)),0,)))/_xlfn.DAYS(OtherTable[[#This Row],[End Date]]+1,OtherTable[[#This Row],[Start Date]]) ->  | AY78: =IF(AND(OtherTable[[#This Row],[Start Date]]>DATE(OtherTable[[#This Row],[Calendar Year]],6,30),OtherTable[[#This Row],[End Date]]>DATE(OtherTable[[#This Row],[Calendar Year]],6,30)),_xlfn.DAYS(OtherTable[[#This Row],[End Date]]+1,OtherTable[[#This Row],[Start Date]]),IF(AND(OtherTable[[#This Row],[Start Date]]<DATE(OtherTable[[#This Row],[Calendar Year]],6,30),OtherTable[[#This Row],[End Date]]>DATE(OtherTable[[#This Row],[Calendar Year]],6,30)),_xlfn.DAYS(OtherTable[[#This Row],[End Date]]+1,DATE(OtherTable[[#This Row],[Calendar Year]],7,1)),IF((OtherTable[[#This Row],[End Date]]<DATE(OtherTable[[#This Row],[Calendar Year]],7,1)),0,)))/_xlfn.DAYS(OtherTable[[#This Row],[End Date]]+1,OtherTable[[#This Row],[Start Date]]) -> 
D79: =OtherTable[[#This Row],[Input Currency Cost per Unit]]*OtherTable[[#This Row],[Input Currency Rate]] -> 0 | J79: =IF(ISBLANK(OtherTable[[#This Row],[Calendar Year]]),"",DATE(OtherTable[[#This Row],[Calendar Year]],1,1)) ->  | K79: =IF(ISBLANK(OtherTable[[#This Row],[Calendar Year]]),"",DATE(OtherTable[[#This Row],[Calendar Year]],12,31)) ->  | Q79: =IF(OtherTable[[#This Row],[Unit Of Pay]]="Annual Salary", "Yes", "No") -> No | R79: =IF(OtherTable[[#This Row],[Prorate Units?]]="Yes", OtherTable[[#This Row],[No Of Units]]*(OtherTable[[#This Row],[AUD Cost per Unit]]/NETWORKDAYS(DATE(OtherTable[[#This Row],[Calendar Year]],1,1),DATE(OtherTable[[#This Row],[Calendar Year]],12,31))*NETWORKDAYS(OtherTable[[#This Row],[Start Date]],OtherTable[[#This Row],[End Date]])/OtherTable[[#This Row],[AUD Cost per Unit]]), IF(OtherTable[[#This Row],[Prorate Units?]]="Yes - Per Week", (OtherTable[[#This Row],[No Of Units]]*52.143)*(OtherTable[[#This Row],[AUD Cost per Unit]]/NETWORKDAYS(DATE(OtherTable[[#This Row],[Calendar Year]],1,1),DATE(OtherTable[[#This Row],[Calendar Year]],12,31))*NETWORKDAYS(OtherTable[[#This Row],[Start Date]],OtherTable[[#This Row],[End Date]])/OtherTable[[#This Row],[AUD Cost per Unit]]),OtherTable[[#This Row],[No Of Units]])) -> 0 | S79: =IF(AND(_xlfn.SINGLE(SCRException)="Yes",OtherTable[[#This Row],[Type]]<>"Direct Cost w Indirect Cost as In Kind Support"),SCR_rate,0.5) -> 0.5 | T79: =0% -> 0 | U79: =IF(OutputCurrencyOption="AUD", OtherTable[[#This Row],[AUD Cost per Unit]], OtherTable[[#This Row],[AUD Cost per Unit]]*OutputCurrencyRate) -> 0 | V79: =(IF(OutputCurrencyOption="AUD", OtherTable[[#This Row],[AUD Cost per Unit]],OtherTable[[#This Row],[Output Currency Cost per Unit]]))*OtherTable[[#This Row],[Apportioned Units]] -> 0 | W79: =(IF(OutputCurrencyOption="AUD", OtherTable[[#This Row],[AUD Cost per Unit]],OtherTable[[#This Row],[Output Currency Cost per Unit]]))*OtherTable[[#This Row],[Indirect Costs %]] -> 0 | X79: =OtherTable[[#This Row],[Indirect Costs Per Unit]]*OtherTable[[#This Row],[Apportioned Units]] -> 0 | Y79: =((IF(OutputCurrencyOption="AUD", OtherTable[[#This Row],[AUD Cost per Unit]],OtherTable[[#This Row],[Output Currency Cost per Unit]]))+OtherTable[[#This Row],[Indirect Costs Per Unit]])*OtherTable[[#This Row],[Markup %]] -> 0 | Z79: =OtherTable[[#This Row],[Markup Per Unit]]*OtherTable[[#This Row],[Apportioned Units]] -> 0 | AA79: =IF(OtherTable[[#This Row],[Type]]="In Kind Support",0, IF(OtherTable[[#This Row],[Type]]="Direct Cost w Indirect Cost as In Kind Support",OtherTable[[#This Row],[Output Currency Cost per Unit]]+OtherTable[[#This Row],[Markup Per Unit]], OtherTable[[#This Row],[Output Currency Cost per Unit]]+OtherTable[[#This Row],[Indirect Costs Per Unit]]+OtherTable[[#This Row],[Markup Per Unit]])) -> 0 | AB79: =IF(OtherTable[[#This Row],[Type]]="In Kind Support",0, IF(OtherTable[[#This Row],[Type]]="Direct Cost w Indirect Cost as In Kind Support",OtherTable[[#This Row],[Direct Costs]]+OtherTable[[#This Row],[Markup]], OtherTable[[#This Row],[Direct Costs]]+OtherTable[[#This Row],[Indirect Costs]]+OtherTable[[#This Row],[Markup]])) -> 0 | AC79: =IF(ClientGST="Yes",OtherTable[[#This Row],[Cost to Client]]*1.1,OtherTable[[#This Row],[Cost to Client]]) -> 0 | AD79: =IF(OtherTable[[#This Row],[Type]]="In Kind Support", OtherTable[[#This Row],[Direct Costs]]+OtherTable[[#This Row],[Indirect Costs]]+OtherTable[[#This Row],[Markup]], IF(OtherTable[[#This Row],[Type]]="Direct Cost w Indirect Cost as In Kind Support", OtherTable[[#This Row],[Indirect Costs]],IF(AND(OtherTable[[#This Row],[Type]]="Cost",SCRException="Yes"),(0.5-OtherTable[[#This Row],[Indirect Costs %]])*OtherTable[[#This Row],[Direct Costs]],))) -> 0 | AF79: =IF(OtherTable[[#This Row],[Type]]="In Kind Support",0,OtherTable[[#This Row],[Direct Costs]]) -> 0 | AG79: =IF(OR(OtherTable[[#This Row],[Type]]="In Kind Support",OtherTable[[#This Row],[Type]]="Direct Cost w Indirect Cost as In Kind Support"),0,OtherTable[[#This Row],[Indirect Costs]]) -> 0 | AH79: =IF(OR(OtherTable[[#This Row],[Type]]="In Kind Support",OtherTable[[#This Row],[Type]]="Direct Cost w Indirect Cost as In Kind Support"),0,OtherTable[[#This Row],[Indirect Costs]]*0.6) -> 0 | AI79: =IF(OR(OtherTable[[#This Row],[Type]]="In Kind Support",OtherTable[[#This Row],[Type]]="Direct Cost w Indirect Cost as In Kind Support"),0,OtherTable[[#This Row],[Indirect Costs]]*0.2) -> 0 | AJ79: =IF(OR(OtherTable[[#This Row],[Type]]="In Kind Support",OtherTable[[#This Row],[Type]]="Direct Cost w Indirect Cost as In Kind Support"),0,OtherTable[[#This Row],[Indirect Costs]]*0.2) -> 0 | AU79: =YEARFRAC(OtherTable[[#This Row],[Start Date]],OtherTable[[#This Row],[End Date]]+1,0) ->  | AV79: =OtherTable[[#This Row],[Calendar Year]]-1&" - "&RIGHT(OtherTable[[#This Row],[Calendar Year]],2) -> -1 - | AW79: =OtherTable[[#This Row],[Calendar Year]]&" - "&RIGHT(OtherTable[[#This Row],[Calendar Year]]+1,2) -> - 1 | AX79: =IF(AND(OtherTable[[#This Row],[Start Date]]<DATE(OtherTable[[#This Row],[Calendar Year]],7,1),OtherTable[[#This Row],[End Date]]<DATE(OtherTable[[#This Row],[Calendar Year]],7,1)),_xlfn.DAYS(OtherTable[[#This Row],[End Date]]+1,OtherTable[[#This Row],[Start Date]]),IF(AND(OtherTable[[#This Row],[Start Date]]<DATE(OtherTable[[#This Row],[Calendar Year]],7,1),OtherTable[[#This Row],[End Date]]>DATE(OtherTable[[#This Row],[Calendar Year]],6,30)),_xlfn.DAYS(DATE(OtherTable[[#This Row],[Calendar Year]],6,30)+1,OtherTable[[#This Row],[Start Date]]),IF((OtherTable[[#This Row],[Start Date]]>DATE(OtherTable[[#This Row],[Calendar Year]],7,1)),0,)))/_xlfn.DAYS(OtherTable[[#This Row],[End Date]]+1,OtherTable[[#This Row],[Start Date]]) ->  | AY79: =IF(AND(OtherTable[[#This Row],[Start Date]]>DATE(OtherTable[[#This Row],[Calendar Year]],6,30),OtherTable[[#This Row],[End Date]]>DATE(OtherTable[[#This Row],[Calendar Year]],6,30)),_xlfn.DAYS(OtherTable[[#This Row],[End Date]]+1,OtherTable[[#This Row],[Start Date]]),IF(AND(OtherTable[[#This Row],[Start Date]]<DATE(OtherTable[[#This Row],[Calendar Year]],6,30),OtherTable[[#This Row],[End Date]]>DATE(OtherTable[[#This Row],[Calendar Year]],6,30)),_xlfn.DAYS(OtherTable[[#This Row],[End Date]]+1,DATE(OtherTable[[#This Row],[Calendar Year]],7,1)),IF((OtherTable[[#This Row],[End Date]]<DATE(OtherTable[[#This Row],[Calendar Year]],7,1)),0,)))/_xlfn.DAYS(OtherTable[[#This Row],[End Date]]+1,OtherTable[[#This Row],[Start Date]]) -> 
D80: =OtherTable[[#This Row],[Input Currency Cost per Unit]]*OtherTable[[#This Row],[Input Currency Rate]] -> 0 | J80: =IF(ISBLANK(OtherTable[[#This Row],[Calendar Year]]),"",DATE(OtherTable[[#This Row],[Calendar Year]],1,1)) ->  | K80: =IF(ISBLANK(OtherTable[[#This Row],[Calendar Year]]),"",DATE(OtherTable[[#This Row],[Calendar Year]],12,31)) ->  | Q80: =IF(OtherTable[[#This Row],[Unit Of Pay]]="Annual Salary", "Yes", "No") -> No | R80: =IF(OtherTable[[#This Row],[Prorate Units?]]="Yes", OtherTable[[#This Row],[No Of Units]]*(OtherTable[[#This Row],[AUD Cost per Unit]]/NETWORKDAYS(DATE(OtherTable[[#This Row],[Calendar Year]],1,1),DATE(OtherTable[[#This Row],[Calendar Year]],12,31))*NETWORKDAYS(OtherTable[[#This Row],[Start Date]],OtherTable[[#This Row],[End Date]])/OtherTable[[#This Row],[AUD Cost per Unit]]), IF(OtherTable[[#This Row],[Prorate Units?]]="Yes - Per Week", (OtherTable[[#This Row],[No Of Units]]*52.143)*(OtherTable[[#This Row],[AUD Cost per Unit]]/NETWORKDAYS(DATE(OtherTable[[#This Row],[Calendar Year]],1,1),DATE(OtherTable[[#This Row],[Calendar Year]],12,31))*NETWORKDAYS(OtherTable[[#This Row],[Start Date]],OtherTable[[#This Row],[End Date]])/OtherTable[[#This Row],[AUD Cost per Unit]]),OtherTable[[#This Row],[No Of Units]])) -> 0 | S80: =IF(AND(_xlfn.SINGLE(SCRException)="Yes",OtherTable[[#This Row],[Type]]<>"Direct Cost w Indirect Cost as In Kind Support"),SCR_rate,0.5) -> 0.5 | T80: =0% -> 0 | U80: =IF(OutputCurrencyOption="AUD", OtherTable[[#This Row],[AUD Cost per Unit]], OtherTable[[#This Row],[AUD Cost per Unit]]*OutputCurrencyRate) -> 0 | V80: =(IF(OutputCurrencyOption="AUD", OtherTable[[#This Row],[AUD Cost per Unit]],OtherTable[[#This Row],[Output Currency Cost per Unit]]))*OtherTable[[#This Row],[Apportioned Units]] -> 0 | W80: =(IF(OutputCurrencyOption="AUD", OtherTable[[#This Row],[AUD Cost per Unit]],OtherTable[[#This Row],[Output Currency Cost per Unit]]))*OtherTable[[#This Row],[Indirect Costs %]] -> 0 | X80: =OtherTable[[#This Row],[Indirect Costs Per Unit]]*OtherTable[[#This Row],[Apportioned Units]] -> 0 | Y80: =((IF(OutputCurrencyOption="AUD", OtherTable[[#This Row],[AUD Cost per Unit]],OtherTable[[#This Row],[Output Currency Cost per Unit]]))+OtherTable[[#This Row],[Indirect Costs Per Unit]])*OtherTable[[#This Row],[Markup %]] -> 0 | Z80: =OtherTable[[#This Row],[Markup Per Unit]]*OtherTable[[#This Row],[Apportioned Units]] -> 0 | AA80: =IF(OtherTable[[#This Row],[Type]]="In Kind Support",0, IF(OtherTable[[#This Row],[Type]]="Direct Cost w Indirect Cost as In Kind Support",OtherTable[[#This Row],[Output Currency Cost per Unit]]+OtherTable[[#This Row],[Markup Per Unit]], OtherTable[[#This Row],[Output Currency Cost per Unit]]+OtherTable[[#This Row],[Indirect Costs Per Unit]]+OtherTable[[#This Row],[Markup Per Unit]])) -> 0 | AB80: =IF(OtherTable[[#This Row],[Type]]="In Kind Support",0, IF(OtherTable[[#This Row],[Type]]="Direct Cost w Indirect Cost as In Kind Support",OtherTable[[#This Row],[Direct Costs]]+OtherTable[[#This Row],[Markup]], OtherTable[[#This Row],[Direct Costs]]+OtherTable[[#This Row],[Indirect Costs]]+OtherTable[[#This Row],[Markup]])) -> 0 | AC80: =IF(ClientGST="Yes",OtherTable[[#This Row],[Cost to Client]]*1.1,OtherTable[[#This Row],[Cost to Client]]) -> 0 | AD80: =IF(OtherTable[[#This Row],[Type]]="In Kind Support", OtherTable[[#This Row],[Direct Costs]]+OtherTable[[#This Row],[Indirect Costs]]+OtherTable[[#This Row],[Markup]], IF(OtherTable[[#This Row],[Type]]="Direct Cost w Indirect Cost as In Kind Support", OtherTable[[#This Row],[Indirect Costs]],IF(AND(OtherTable[[#This Row],[Type]]="Cost",SCRException="Yes"),(0.5-OtherTable[[#This Row],[Indirect Costs %]])*OtherTable[[#This Row],[Direct Costs]],))) -> 0 | AF80: =IF(OtherTable[[#This Row],[Type]]="In Kind Support",0,OtherTable[[#This Row],[Direct Costs]]) -> 0 | AG80: =IF(OR(OtherTable[[#This Row],[Type]]="In Kind Support",OtherTable[[#This Row],[Type]]="Direct Cost w Indirect Cost as In Kind Support"),0,OtherTable[[#This Row],[Indirect Costs]]) -> 0 | AH80: =IF(OR(OtherTable[[#This Row],[Type]]="In Kind Support",OtherTable[[#This Row],[Type]]="Direct Cost w Indirect Cost as In Kind Support"),0,OtherTable[[#This Row],[Indirect Costs]]*0.6) -> 0 | AI80: =IF(OR(OtherTable[[#This Row],[Type]]="In Kind Support",OtherTable[[#This Row],[Type]]="Direct Cost w Indirect Cost as In Kind Support"),0,OtherTable[[#This Row],[Indirect Costs]]*0.2) -> 0 | AJ80: =IF(OR(OtherTable[[#This Row],[Type]]="In Kind Support",OtherTable[[#This Row],[Type]]="Direct Cost w Indirect Cost as In Kind Support"),0,OtherTable[[#This Row],[Indirect Costs]]*0.2) -> 0 | AU80: =YEARFRAC(OtherTable[[#This Row],[Start Date]],OtherTable[[#This Row],[End Date]]+1,0) ->  | AV80: =OtherTable[[#This Row],[Calendar Year]]-1&" - "&RIGHT(OtherTable[[#This Row],[Calendar Year]],2) -> -1 - | AW80: =OtherTable[[#This Row],[Calendar Year]]&" - "&RIGHT(OtherTable[[#This Row],[Calendar Year]]+1,2) -> - 1 | AX80: =IF(AND(OtherTable[[#This Row],[Start Date]]<DATE(OtherTable[[#This Row],[Calendar Year]],7,1),OtherTable[[#This Row],[End Date]]<DATE(OtherTable[[#This Row],[Calendar Year]],7,1)),_xlfn.DAYS(OtherTable[[#This Row],[End Date]]+1,OtherTable[[#This Row],[Start Date]]),IF(AND(OtherTable[[#This Row],[Start Date]]<DATE(OtherTable[[#This Row],[Calendar Year]],7,1),OtherTable[[#This Row],[End Date]]>DATE(OtherTable[[#This Row],[Calendar Year]],6,30)),_xlfn.DAYS(DATE(OtherTable[[#This Row],[Calendar Year]],6,30)+1,OtherTable[[#This Row],[Start Date]]),IF((OtherTable[[#This Row],[Start Date]]>DATE(OtherTable[[#This Row],[Calendar Year]],7,1)),0,)))/_xlfn.DAYS(OtherTable[[#This Row],[End Date]]+1,OtherTable[[#This Row],[Start Date]]) ->  | AY80: =IF(AND(OtherTable[[#This Row],[Start Date]]>DATE(OtherTable[[#This Row],[Calendar Year]],6,30),OtherTable[[#This Row],[End Date]]>DATE(OtherTable[[#This Row],[Calendar Year]],6,30)),_xlfn.DAYS(OtherTable[[#This Row],[End Date]]+1,OtherTable[[#This Row],[Start Date]]),IF(AND(OtherTable[[#This Row],[Start Date]]<DATE(OtherTable[[#This Row],[Calendar Year]],6,30),OtherTable[[#This Row],[End Date]]>DATE(OtherTable[[#This Row],[Calendar Year]],6,30)),_xlfn.DAYS(OtherTable[[#This Row],[End Date]]+1,DATE(OtherTable[[#This Row],[Calendar Year]],7,1)),IF((OtherTable[[#This Row],[End Date]]<DATE(OtherTable[[#This Row],[Calendar Year]],7,1)),0,)))/_xlfn.DAYS(OtherTable[[#This Row],[End Date]]+1,OtherTable[[#This Row],[Start Date]]) -> 
D81: =OtherTable[[#This Row],[Input Currency Cost per Unit]]*OtherTable[[#This Row],[Input Currency Rate]] -> 0 | J81: =IF(ISBLANK(OtherTable[[#This Row],[Calendar Year]]),"",DATE(OtherTable[[#This Row],[Calendar Year]],1,1)) ->  | K81: =IF(ISBLANK(OtherTable[[#This Row],[Calendar Year]]),"",DATE(OtherTable[[#This Row],[Calendar Year]],12,31)) ->  | Q81: =IF(OtherTable[[#This Row],[Unit Of Pay]]="Annual Salary", "Yes", "No") -> No | R81: =IF(OtherTable[[#This Row],[Prorate Units?]]="Yes", OtherTable[[#This Row],[No Of Units]]*(OtherTable[[#This Row],[AUD Cost per Unit]]/NETWORKDAYS(DATE(OtherTable[[#This Row],[Calendar Year]],1,1),DATE(OtherTable[[#This Row],[Calendar Year]],12,31))*NETWORKDAYS(OtherTable[[#This Row],[Start Date]],OtherTable[[#This Row],[End Date]])/OtherTable[[#This Row],[AUD Cost per Unit]]), IF(OtherTable[[#This Row],[Prorate Units?]]="Yes - Per Week", (OtherTable[[#This Row],[No Of Units]]*52.143)*(OtherTable[[#This Row],[AUD Cost per Unit]]/NETWORKDAYS(DATE(OtherTable[[#This Row],[Calendar Year]],1,1),DATE(OtherTable[[#This Row],[Calendar Year]],12,31))*NETWORKDAYS(OtherTable[[#This Row],[Start Date]],OtherTable[[#This Row],[End Date]])/OtherTable[[#This Row],[AUD Cost per Unit]]),OtherTable[[#This Row],[No Of Units]])) -> 0 | S81: =IF(AND(_xlfn.SINGLE(SCRException)="Yes",OtherTable[[#This Row],[Type]]<>"Direct Cost w Indirect Cost as In Kind Support"),SCR_rate,0.5) -> 0.5 | T81: =0% -> 0 | U81: =IF(OutputCurrencyOption="AUD", OtherTable[[#This Row],[AUD Cost per Unit]], OtherTable[[#This Row],[AUD Cost per Unit]]*OutputCurrencyRate) -> 0 | V81: =(IF(OutputCurrencyOption="AUD", OtherTable[[#This Row],[AUD Cost per Unit]],OtherTable[[#This Row],[Output Currency Cost per Unit]]))*OtherTable[[#This Row],[Apportioned Units]] -> 0 | W81: =(IF(OutputCurrencyOption="AUD", OtherTable[[#This Row],[AUD Cost per Unit]],OtherTable[[#This Row],[Output Currency Cost per Unit]]))*OtherTable[[#This Row],[Indirect Costs %]] -> 0 | X81: =OtherTable[[#This Row],[Indirect Costs Per Unit]]*OtherTable[[#This Row],[Apportioned Units]] -> 0 | Y81: =((IF(OutputCurrencyOption="AUD", OtherTable[[#This Row],[AUD Cost per Unit]],OtherTable[[#This Row],[Output Currency Cost per Unit]]))+OtherTable[[#This Row],[Indirect Costs Per Unit]])*OtherTable[[#This Row],[Markup %]] -> 0 | Z81: =OtherTable[[#This Row],[Markup Per Unit]]*OtherTable[[#This Row],[Apportioned Units]] -> 0 | AA81: =IF(OtherTable[[#This Row],[Type]]="In Kind Support",0, IF(OtherTable[[#This Row],[Type]]="Direct Cost w Indirect Cost as In Kind Support",OtherTable[[#This Row],[Output Currency Cost per Unit]]+OtherTable[[#This Row],[Markup Per Unit]], OtherTable[[#This Row],[Output Currency Cost per Unit]]+OtherTable[[#This Row],[Indirect Costs Per Unit]]+OtherTable[[#This Row],[Markup Per Unit]])) -> 0 | AB81: =IF(OtherTable[[#This Row],[Type]]="In Kind Support",0, IF(OtherTable[[#This Row],[Type]]="Direct Cost w Indirect Cost as In Kind Support",OtherTable[[#This Row],[Direct Costs]]+OtherTable[[#This Row],[Markup]], OtherTable[[#This Row],[Direct Costs]]+OtherTable[[#This Row],[Indirect Costs]]+OtherTable[[#This Row],[Markup]])) -> 0 | AC81: =IF(ClientGST="Yes",OtherTable[[#This Row],[Cost to Client]]*1.1,OtherTable[[#This Row],[Cost to Client]]) -> 0 | AD81: =IF(OtherTable[[#This Row],[Type]]="In Kind Support", OtherTable[[#This Row],[Direct Costs]]+OtherTable[[#This Row],[Indirect Costs]]+OtherTable[[#This Row],[Markup]], IF(OtherTable[[#This Row],[Type]]="Direct Cost w Indirect Cost as In Kind Support", OtherTable[[#This Row],[Indirect Costs]],IF(AND(OtherTable[[#This Row],[Type]]="Cost",SCRException="Yes"),(0.5-OtherTable[[#This Row],[Indirect Costs %]])*OtherTable[[#This Row],[Direct Costs]],))) -> 0 | AF81: =IF(OtherTable[[#This Row],[Type]]="In Kind Support",0,OtherTable[[#This Row],[Direct Costs]]) -> 0 | AG81: =IF(OR(OtherTable[[#This Row],[Type]]="In Kind Support",OtherTable[[#This Row],[Type]]="Direct Cost w Indirect Cost as In Kind Support"),0,OtherTable[[#This Row],[Indirect Costs]]) -> 0 | AH81: =IF(OR(OtherTable[[#This Row],[Type]]="In Kind Support",OtherTable[[#This Row],[Type]]="Direct Cost w Indirect Cost as In Kind Support"),0,OtherTable[[#This Row],[Indirect Costs]]*0.6) -> 0 | AI81: =IF(OR(OtherTable[[#This Row],[Type]]="In Kind Support",OtherTable[[#This Row],[Type]]="Direct Cost w Indirect Cost as In Kind Support"),0,OtherTable[[#This Row],[Indirect Costs]]*0.2) -> 0 | AJ81: =IF(OR(OtherTable[[#This Row],[Type]]="In Kind Support",OtherTable[[#This Row],[Type]]="Direct Cost w Indirect Cost as In Kind Support"),0,OtherTable[[#This Row],[Indirect Costs]]*0.2) -> 0 | AU81: =YEARFRAC(OtherTable[[#This Row],[Start Date]],OtherTable[[#This Row],[End Date]]+1,0) ->  | AV81: =OtherTable[[#This Row],[Calendar Year]]-1&" - "&RIGHT(OtherTable[[#This Row],[Calendar Year]],2) -> -1 - | AW81: =OtherTable[[#This Row],[Calendar Year]]&" - "&RIGHT(OtherTable[[#This Row],[Calendar Year]]+1,2) -> - 1 | AX81: =IF(AND(OtherTable[[#This Row],[Start Date]]<DATE(OtherTable[[#This Row],[Calendar Year]],7,1),OtherTable[[#This Row],[End Date]]<DATE(OtherTable[[#This Row],[Calendar Year]],7,1)),_xlfn.DAYS(OtherTable[[#This Row],[End Date]]+1,OtherTable[[#This Row],[Start Date]]),IF(AND(OtherTable[[#This Row],[Start Date]]<DATE(OtherTable[[#This Row],[Calendar Year]],7,1),OtherTable[[#This Row],[End Date]]>DATE(OtherTable[[#This Row],[Calendar Year]],6,30)),_xlfn.DAYS(DATE(OtherTable[[#This Row],[Calendar Year]],6,30)+1,OtherTable[[#This Row],[Start Date]]),IF((OtherTable[[#This Row],[Start Date]]>DATE(OtherTable[[#This Row],[Calendar Year]],7,1)),0,)))/_xlfn.DAYS(OtherTable[[#This Row],[End Date]]+1,OtherTable[[#This Row],[Start Date]]) ->  | AY81: =IF(AND(OtherTable[[#This Row],[Start Date]]>DATE(OtherTable[[#This Row],[Calendar Year]],6,30),OtherTable[[#This Row],[End Date]]>DATE(OtherTable[[#This Row],[Calendar Year]],6,30)),_xlfn.DAYS(OtherTable[[#This Row],[End Date]]+1,OtherTable[[#This Row],[Start Date]]),IF(AND(OtherTable[[#This Row],[Start Date]]<DATE(OtherTable[[#This Row],[Calendar Year]],6,30),OtherTable[[#This Row],[End Date]]>DATE(OtherTable[[#This Row],[Calendar Year]],6,30)),_xlfn.DAYS(OtherTable[[#This Row],[End Date]]+1,DATE(OtherTable[[#This Row],[Calendar Year]],7,1)),IF((OtherTable[[#This Row],[End Date]]<DATE(OtherTable[[#This Row],[Calendar Year]],7,1)),0,)))/_xlfn.DAYS(OtherTable[[#This Row],[End Date]]+1,OtherTable[[#This Row],[Start Date]]) -> 
E82: Totals Row | V82: =SUBTOTAL(109,OtherTable[Direct Costs]) -> 0 | X82: =SUBTOTAL(109,OtherTable[Indirect Costs]) -> 0 | Z82: =SUBTOTAL(109,OtherTable[Markup]) -> 0 | AB82: =SUBTOTAL(109,OtherTable[Cost to Client]) -> 0 | AC82: =SUBTOTAL(109,OtherTable[Cost to Client inc GST]) -> 0 | AD82: =SUBTOTAL(109,OtherTable[In Kind Support]) -> 0 | AF82: =SUBTOTAL(109,OtherTable[Direct Costs Recovered]) -> 0 | AG82: =SUBTOTAL(109,OtherTable[Indirect Costs Recovered]) -> 0 | AH82: =SUBTOTAL(109,OtherTable[60% Central Allocation]) -> 0 | AI82: =SUBTOTAL(109,OtherTable[20% Primary Faculty Allocation]) -> 0 | AJ82: =SUBTOTAL(109,OtherTable[20% Secondary Faculty Allocation]) -> 0
G83: 🛈 Costing UQ Research Facility Usage? See UQ Research Infrastructure Guide to Grants
E86: Data Entry for Cash Contributions
A87: Input Currency Cost per Unit | B87: Input Currency | C87: Input Currency Rate | D87: AUD Cost per Unit Converted from Input | E87: Type | F87: Category | G87: Budget Item | H87: Notes | I87: Calendar Year | J87: Start Date | K87: End Date | L87: Salary Code | M87: Unit Of Pay | N87: Salary Loading | O87: AUD Cost per Unit | P87: No Of Units | Q87: Prorate Units? | R87: Apportioned Units | S87: Indirect Costs % | T87: Markup % | U87: Output Currency Cost per Unit | V87: Direct Costs | W87: Indirect Costs Per Unit | X87: Indirect Costs | Y87: Markup Per Unit | Z87: Markup | AA87: Cost to Client Per Unit | AB87: Cost to Client | AC87: Cost to Client inc GST | AD87: In Kind Support | AE87: Cash Support | AF87: Direct Costs Recovered | AG87: Indirect Costs Recovered | AH87: 60% Central Allocation | AI87: 20% Primary Faculty Allocation | AJ87: 20% Secondary Faculty Allocation | AK87: Salary Base Cost | AL87: Total Oncosts | AM87: Total Oncosts % | AN87: Payroll Tax | AO87: Workers Compensation | AP87: Superannuation | AQ87: Payroll Tax on Superannuation | AR87: Long Service Leave | AS87: Recreation Leave | AT87: Parental Leave | AU87: CY % | AV87: FY1 | AW87: FY2 | AX87: FY1 % of CY % | AY87: FY2 % of CY %
D88: =CashTable[[#This Row],[Input Currency Cost per Unit]]*CashTable[[#This Row],[Input Currency Rate]] -> 0 | J88: =IF(ISBLANK(CashTable[[#This Row],[Calendar Year]]),"",DATE(CashTable[[#This Row],[Calendar Year]],1,1)) ->  | K88: =IF(ISBLANK(CashTable[[#This Row],[Calendar Year]]),"",DATE(CashTable[[#This Row],[Calendar Year]],12,31)) ->  | Q88: =IF(CashTable[[#This Row],[Unit Of Pay]]="Annual Salary", "Yes", "No") -> No | R88: =IF(CashTable[[#This Row],[Prorate Units?]]="Yes", CashTable[[#This Row],[No Of Units]]*(CashTable[[#This Row],[AUD Cost per Unit]]/NETWORKDAYS(DATE(CashTable[[#This Row],[Calendar Year]],1,1),DATE(CashTable[[#This Row],[Calendar Year]],12,31))*NETWORKDAYS(CashTable[[#This Row],[Start Date]],CashTable[[#This Row],[End Date]])/CashTable[[#This Row],[AUD Cost per Unit]]), IF(CashTable[[#This Row],[Prorate Units?]]="Yes - Per Week", (CashTable[[#This Row],[No Of Units]]*52.143)*(CashTable[[#This Row],[AUD Cost per Unit]]/NETWORKDAYS(DATE(CashTable[[#This Row],[Calendar Year]],1,1),DATE(CashTable[[#This Row],[Calendar Year]],12,31))*NETWORKDAYS(CashTable[[#This Row],[Start Date]],CashTable[[#This Row],[End Date]])/CashTable[[#This Row],[AUD Cost per Unit]]),CashTable[[#This Row],[No Of Units]])) -> 0 | U88: =IF(OutputCurrencyOption="AUD", CashTable[[#This Row],[AUD Cost per Unit]], CashTable[[#This Row],[AUD Cost per Unit]]*OutputCurrencyRate) -> 0 | AE88: =(IF(OutputCurrencyOption="AUD", CashTable[[#This Row],[AUD Cost per Unit]],CashTable[[#This Row],[Output Currency Cost per Unit]]))*CashTable[[#This Row],[Apportioned Units]] -> 0 | AU88: =YEARFRAC(CashTable[[#This Row],[Start Date]],CashTable[[#This Row],[End Date]]+1,0) ->  | AV88: =CashTable[[#This Row],[Calendar Year]]-1&" - "&RIGHT(CashTable[[#This Row],[Calendar Year]],2) -> -1 - | AW88: =CashTable[[#This Row],[Calendar Year]]&" - "&RIGHT(CashTable[[#This Row],[Calendar Year]]+1,2) -> - 1 | AX88: =IF(AND(CashTable[[#This Row],[Start Date]]<DATE(CashTable[[#This Row],[Calendar Year]],7,1),CashTable[[#This Row],[End Date]]<DATE(CashTable[[#This Row],[Calendar Year]],7,1)),_xlfn.DAYS(CashTable[[#This Row],[End Date]]+1,CashTable[[#This Row],[Start Date]]),IF(AND(CashTable[[#This Row],[Start Date]]<DATE(CashTable[[#This Row],[Calendar Year]],7,1),CashTable[[#This Row],[End Date]]>DATE(CashTable[[#This Row],[Calendar Year]],6,30)),_xlfn.DAYS(DATE(CashTable[[#This Row],[Calendar Year]],6,30)+1,CashTable[[#This Row],[Start Date]]),IF((CashTable[[#This Row],[Start Date]]>DATE(CashTable[[#This Row],[Calendar Year]],7,1)),0,)))/_xlfn.DAYS(CashTable[[#This Row],[End Date]]+1,CashTable[[#This Row],[Start Date]]) ->  | AY88: =IF(AND(CashTable[[#This Row],[Start Date]]>DATE(CashTable[[#This Row],[Calendar Year]],6,30),CashTable[[#This Row],[End Date]]>DATE(CashTable[[#This Row],[Calendar Year]],6,30)),_xlfn.DAYS(CashTable[[#This Row],[End Date]]+1,CashTable[[#This Row],[Start Date]]),IF(AND(CashTable[[#This Row],[Start Date]]<DATE(CashTable[[#This Row],[Calendar Year]],6,30),CashTable[[#This Row],[End Date]]>DATE(CashTable[[#This Row],[Calendar Year]],6,30)),_xlfn.DAYS(CashTable[[#This Row],[End Date]]+1,DATE(CashTable[[#This Row],[Calendar Year]],7,1)),IF((CashTable[[#This Row],[End Date]]<DATE(CashTable[[#This Row],[Calendar Year]],7,1)),0,)))/_xlfn.DAYS(CashTable[[#This Row],[End Date]]+1,CashTable[[#This Row],[Start Date]]) -> 
D89: =CashTable[[#This Row],[Input Currency Cost per Unit]]*CashTable[[#This Row],[Input Currency Rate]] -> 0 | J89: =IF(ISBLANK(CashTable[[#This Row],[Calendar Year]]),"",DATE(CashTable[[#This Row],[Calendar Year]],1,1)) ->  | K89: =IF(ISBLANK(CashTable[[#This Row],[Calendar Year]]),"",DATE(CashTable[[#This Row],[Calendar Year]],12,31)) ->  | Q89: =IF(CashTable[[#This Row],[Unit Of Pay]]="Annual Salary", "Yes", "No") -> No | R89: =IF(CashTable[[#This Row],[Prorate Units?]]="Yes", CashTable[[#This Row],[No Of Units]]*(CashTable[[#This Row],[AUD Cost per Unit]]/NETWORKDAYS(DATE(CashTable[[#This Row],[Calendar Year]],1,1),DATE(CashTable[[#This Row],[Calendar Year]],12,31))*NETWORKDAYS(CashTable[[#This Row],[Start Date]],CashTable[[#This Row],[End Date]])/CashTable[[#This Row],[AUD Cost per Unit]]), IF(CashTable[[#This Row],[Prorate Units?]]="Yes - Per Week", (CashTable[[#This Row],[No Of Units]]*52.143)*(CashTable[[#This Row],[AUD Cost per Unit]]/NETWORKDAYS(DATE(CashTable[[#This Row],[Calendar Year]],1,1),DATE(CashTable[[#This Row],[Calendar Year]],12,31))*NETWORKDAYS(CashTable[[#This Row],[Start Date]],CashTable[[#This Row],[End Date]])/CashTable[[#This Row],[AUD Cost per Unit]]),CashTable[[#This Row],[No Of Units]])) -> 0 | U89: =IF(OutputCurrencyOption="AUD", CashTable[[#This Row],[AUD Cost per Unit]], CashTable[[#This Row],[AUD Cost per Unit]]*OutputCurrencyRate) -> 0 | AE89: =(IF(OutputCurrencyOption="AUD", CashTable[[#This Row],[AUD Cost per Unit]],CashTable[[#This Row],[Output Currency Cost per Unit]]))*CashTable[[#This Row],[Apportioned Units]] -> 0 | AU89: =YEARFRAC(CashTable[[#This Row],[Start Date]],CashTable[[#This Row],[End Date]]+1,0) ->  | AV89: =CashTable[[#This Row],[Calendar Year]]-1&" - "&RIGHT(CashTable[[#This Row],[Calendar Year]],2) -> -1 - | AW89: =CashTable[[#This Row],[Calendar Year]]&" - "&RIGHT(CashTable[[#This Row],[Calendar Year]]+1,2) -> - 1 | AX89: =IF(AND(CashTable[[#This Row],[Start Date]]<DATE(CashTable[[#This Row],[Calendar Year]],7,1),CashTable[[#This Row],[End Date]]<DATE(CashTable[[#This Row],[Calendar Year]],7,1)),_xlfn.DAYS(CashTable[[#This Row],[End Date]]+1,CashTable[[#This Row],[Start Date]]),IF(AND(CashTable[[#This Row],[Start Date]]<DATE(CashTable[[#This Row],[Calendar Year]],7,1),CashTable[[#This Row],[End Date]]>DATE(CashTable[[#This Row],[Calendar Year]],6,30)),_xlfn.DAYS(DATE(CashTable[[#This Row],[Calendar Year]],6,30)+1,CashTable[[#This Row],[Start Date]]),IF((CashTable[[#This Row],[Start Date]]>DATE(CashTable[[#This Row],[Calendar Year]],7,1)),0,)))/_xlfn.DAYS(CashTable[[#This Row],[End Date]]+1,CashTable[[#This Row],[Start Date]]) ->  | AY89: =IF(AND(CashTable[[#This Row],[Start Date]]>DATE(CashTable[[#This Row],[Calendar Year]],6,30),CashTable[[#This Row],[End Date]]>DATE(CashTable[[#This Row],[Calendar Year]],6,30)),_xlfn.DAYS(CashTable[[#This Row],[End Date]]+1,CashTable[[#This Row],[Start Date]]),IF(AND(CashTable[[#This Row],[Start Date]]<DATE(CashTable[[#This Row],[Calendar Year]],6,30),CashTable[[#This Row],[End Date]]>DATE(CashTable[[#This Row],[Calendar Year]],6,30)),_xlfn.DAYS(CashTable[[#This Row],[End Date]]+1,DATE(CashTable[[#This Row],[Calendar Year]],7,1)),IF((CashTable[[#This Row],[End Date]]<DATE(CashTable[[#This Row],[Calendar Year]],7,1)),0,)))/_xlfn.DAYS(CashTable[[#This Row],[End Date]]+1,CashTable[[#This Row],[Start Date]]) -> 
E90: Totals Row | AE90: =SUBTOTAL(109,CashTable[Cash Support]) -> 0 | AF90: =SUBTOTAL(109,CashTable[Direct Costs Recovered]) -> 0 | AG90: =SUBTOTAL(109,CashTable[Indirect Costs Recovered]) -> 0
E95: Set Options to Create Pivot Reports
Q96: 🛈
F97: Options for Cost Summary | J97: Options for Client Report | Q97: 🛈
F98: Year options: | G98: Calendar Year | J98: Year options: | K98: Calendar Year
F99: Include type: | G99: Yes | J99: Include units: | K99: No
F100: Include category: | G100: No | J100: Include budget items: | K100: Yes
F101: Include budget item: | G101: No | J101: Include in kind support: | K101: Yes
F102: Include item notes: | G102: No | J102: Include cash support: | K102: No | N102: Reports will reflect the selected Output Currency options.
N103: =" 🛈 Output Currency is set at "&IF(OutputCurrencyOption="AUD", "AUD",OutputCurrency)&"." -> 🛈 Output Currency is set at AUD.
E107: Milestone Totals
H114: 🛈 | K114: Costing & Pricing Components are shown in the indicated Output Currency. | T114: Internal allocation of Recovered Costs & Markup are always shown in AUD.
F115: 🛈 | G115: 🛈 | H115: - OR - | K115: =" 🛈 Output Currency is set at "&IF(OutputCurrencyOption="AUD", "AUD",OutputCurrency)&"." -> 🛈 Output Currency is set at AUD. | T115: Direct Costs | U115: Indirect Costs | Y115: Markup
E116: Milestone Title | F116: Payment Year | G116: Funding Provider | H116: Set by Amount (AUD) | I116: Set by Percentage | J116: Milestone Percentage | K116: Direct Costs | L116: Indirect Costs | M116: Total Markup | N116: In Kind Support | O116: Cash Support | P116: Cost to Client | Q116: GST | R116: Cost to Client inc GST | S116: Total (Direct + Markup) | T116: Project Account | U116: 60% Central Allocation | V116: 20% Primary Faculty Allocation | W116: 20% Secondary Faculty Allocation | X116: ACA Account (Net Amount) | Y116: OU Margin | Z116: Project Account
E117: A | F117: 2024 | G117: Provider 1 | I117: 0.4 | J117: =IF(ISNUMBER(MilestoneTable[[#This Row],[Set by Amount (AUD)]]), MilestoneTable[[#This Row],[Set by Amount (AUD)]]/TotalCostToClientAUD, IF(ISNUMBER(MilestoneTable[[#This Row],[Set by Percentage]]), MilestoneTable[[#This Row],[Set by Percentage]],"")) -> 0.4 | K117: =IFERROR(MilestoneTable[[#This Row],[Milestone Percentage]]*TotalDirectCostsOutput,"") -> 0 | L117: =IFERROR(MilestoneTable[[#This Row],[Milestone Percentage]]*TotalIndirectCostsOutput,"") -> 0 | M117: =IFERROR(MilestoneTable[[#This Row],[Milestone Percentage]]*TotalMarkupOutput,"") -> 0 | N117: =IFERROR(MilestoneTable[[#This Row],[Milestone Percentage]]*TotalInKindSupportOutput,"") -> 0 | O117: =IFERROR(MilestoneTable[[#This Row],[Milestone Percentage]]*TotalCashSupportOutput,"") -> 0 | P117: =IFERROR(MilestoneTable[[#This Row],[Milestone Percentage]]*TotalCostToClientOutput,"") -> 0 | Q117: =IFERROR(IF(ClientGST="Yes",'Data Entry'!$P117*0.1,0),"") -> 0 | R117: =IFERROR(MilestoneTable[[#This Row],[Milestone Percentage]]*TotalCostToClientIncGSTOutput,"") -> 0 | S117: =IFERROR(MilestoneTable[[#This Row],[Direct Costs]]+MilestoneTable[[#This Row],[Total Markup]],"") -> 0 | T117: =IFERROR(MilestoneTable[[#This Row],[Milestone Percentage]]*TotalDCToProjectAccount,"") -> 0 | U117: =IFERROR(MilestoneTable[[#This Row],[Milestone Percentage]]*TotalOverheads60,"") -> 0 | V117: =IFERROR(MilestoneTable[[#This Row],[Milestone Percentage]]*TotalOverheads20,"") -> 0 | W117: =IFERROR(MilestoneTable[[#This Row],[Milestone Percentage]]*TotalOverheads20,"") -> 0 | X117: =IFERROR(MilestoneTable[[#This Row],[Milestone Percentage]]*TotalICToACA,"") ->  | Y117: =IFERROR(MilestoneTable[[#This Row],[Milestone Percentage]]*TotalMarkupToOU,"") -> 0 | Z117: =IFERROR(MilestoneTable[[#This Row],[Milestone Percentage]]*TotalMarkupToProjectAccount,"") -> 0
E118: B | F118: 2025 | G118: Provider 1 | I118: 0.1 | J118: =IF(ISNUMBER(MilestoneTable[[#This Row],[Set by Amount (AUD)]]), MilestoneTable[[#This Row],[Set by Amount (AUD)]]/TotalCostToClientAUD, IF(ISNUMBER(MilestoneTable[[#This Row],[Set by Percentage]]), MilestoneTable[[#This Row],[Set by Percentage]],"")) -> 0.1 | K118: =IFERROR(MilestoneTable[[#This Row],[Milestone Percentage]]*TotalDirectCostsOutput,"") -> 0 | L118: =IFERROR(MilestoneTable[[#This Row],[Milestone Percentage]]*TotalIndirectCostsOutput,"") -> 0 | M118: =IFERROR(MilestoneTable[[#This Row],[Milestone Percentage]]*TotalMarkupOutput,"") -> 0 | N118: =IFERROR(MilestoneTable[[#This Row],[Milestone Percentage]]*TotalInKindSupportOutput,"") -> 0 | O118: =IFERROR(MilestoneTable[[#This Row],[Milestone Percentage]]*TotalCashSupportOutput,"") -> 0 | P118: =IFERROR(MilestoneTable[[#This Row],[Milestone Percentage]]*TotalCostToClientOutput,"") -> 0 | Q118: =IFERROR(IF(ClientGST="Yes",'Data Entry'!$P118*0.1,0),"") -> 0 | R118: =IFERROR(MilestoneTable[[#This Row],[Milestone Percentage]]*TotalCostToClientIncGSTOutput,"") -> 0 | S118: =IFERROR(MilestoneTable[[#This Row],[Direct Costs]]+MilestoneTable[[#This Row],[Total Markup]],"") -> 0 | T118: =IFERROR(MilestoneTable[[#This Row],[Milestone Percentage]]*TotalDCToProjectAccount,"") -> 0 | U118: =IFERROR(MilestoneTable[[#This Row],[Milestone Percentage]]*TotalOverheads60,"") -> 0 | V118: =IFERROR(MilestoneTable[[#This Row],[Milestone Percentage]]*TotalOverheads20,"") -> 0 | W118: =IFERROR(MilestoneTable[[#This Row],[Milestone Percentage]]*TotalOverheads20,"") -> 0 | X118: =IFERROR(MilestoneTable[[#This Row],[Milestone Percentage]]*TotalICToACA,"") ->  | Y118: =IFERROR(MilestoneTable[[#This Row],[Milestone Percentage]]*TotalMarkupToOU,"") -> 0 | Z118: =IFERROR(MilestoneTable[[#This Row],[Milestone Percentage]]*TotalMarkupToProjectAccount,"") -> 0
E119: C | F119: 2026 | G119: Provider 2 | I119: 0.25 | J119: =IF(ISNUMBER(MilestoneTable[[#This Row],[Set by Amount (AUD)]]), MilestoneTable[[#This Row],[Set by Amount (AUD)]]/TotalCostToClientAUD, IF(ISNUMBER(MilestoneTable[[#This Row],[Set by Percentage]]), MilestoneTable[[#This Row],[Set by Percentage]],"")) -> 0.25 | K119: =IFERROR(MilestoneTable[[#This Row],[Milestone Percentage]]*TotalDirectCostsOutput,"") -> 0 | L119: =IFERROR(MilestoneTable[[#This Row],[Milestone Percentage]]*TotalIndirectCostsOutput,"") -> 0 | M119: =IFERROR(MilestoneTable[[#This Row],[Milestone Percentage]]*TotalMarkupOutput,"") -> 0 | N119: =IFERROR(MilestoneTable[[#This Row],[Milestone Percentage]]*TotalInKindSupportOutput,"") -> 0 | O119: =IFERROR(MilestoneTable[[#This Row],[Milestone Percentage]]*TotalCashSupportOutput,"") -> 0 | P119: =IFERROR(MilestoneTable[[#This Row],[Milestone Percentage]]*TotalCostToClientOutput,"") -> 0 | Q119: =IFERROR(IF(ClientGST="Yes",'Data Entry'!$P119*0.1,0),"") -> 0 | R119: =IFERROR(MilestoneTable[[#This Row],[Milestone Percentage]]*TotalCostToClientIncGSTOutput,"") -> 0 | S119: =IFERROR(MilestoneTable[[#This Row],[Direct Costs]]+MilestoneTable[[#This Row],[Total Markup]],"") -> 0 | T119: =IFERROR(MilestoneTable[[#This Row],[Milestone Percentage]]*TotalDCToProjectAccount,"") -> 0 | U119: =IFERROR(MilestoneTable[[#This Row],[Milestone Percentage]]*TotalOverheads60,"") -> 0 | V119: =IFERROR(MilestoneTable[[#This Row],[Milestone Percentage]]*TotalOverheads20,"") -> 0 | W119: =IFERROR(MilestoneTable[[#This Row],[Milestone Percentage]]*TotalOverheads20,"") -> 0 | X119: =IFERROR(MilestoneTable[[#This Row],[Milestone Percentage]]*TotalICToACA,"") ->  | Y119: =IFERROR(MilestoneTable[[#This Row],[Milestone Percentage]]*TotalMarkupToOU,"") -> 0 | Z119: =IFERROR(MilestoneTable[[#This Row],[Milestone Percentage]]*TotalMarkupToProjectAccount,"") -> 0
E120: D | F120: 2027 | G120: Provider 3 | I120: 0.13 | J120: =IF(ISNUMBER(MilestoneTable[[#This Row],[Set by Amount (AUD)]]), MilestoneTable[[#This Row],[Set by Amount (AUD)]]/TotalCostToClientAUD, IF(ISNUMBER(MilestoneTable[[#This Row],[Set by Percentage]]), MilestoneTable[[#This Row],[Set by Percentage]],"")) -> 0.13 | K120: =IFERROR(MilestoneTable[[#This Row],[Milestone Percentage]]*TotalDirectCostsOutput,"") -> 0 | L120: =IFERROR(MilestoneTable[[#This Row],[Milestone Percentage]]*TotalIndirectCostsOutput,"") -> 0 | M120: =IFERROR(MilestoneTable[[#This Row],[Milestone Percentage]]*TotalMarkupOutput,"") -> 0 | N120: =IFERROR(MilestoneTable[[#This Row],[Milestone Percentage]]*TotalInKindSupportOutput,"") -> 0 | O120: =IFERROR(MilestoneTable[[#This Row],[Milestone Percentage]]*TotalCashSupportOutput,"") -> 0 | P120: =IFERROR(MilestoneTable[[#This Row],[Milestone Percentage]]*TotalCostToClientOutput,"") -> 0 | Q120: =IFERROR(IF(ClientGST="Yes",'Data Entry'!$P120*0.1,0),"") -> 0 | R120: =IFERROR(MilestoneTable[[#This Row],[Milestone Percentage]]*TotalCostToClientIncGSTOutput,"") -> 0 | S120: =IFERROR(MilestoneTable[[#This Row],[Direct Costs]]+MilestoneTable[[#This Row],[Total Markup]],"") -> 0 | T120: =IFERROR(MilestoneTable[[#This Row],[Milestone Percentage]]*TotalDCToProjectAccount,"") -> 0 | U120: =IFERROR(MilestoneTable[[#This Row],[Milestone Percentage]]*TotalOverheads60,"") -> 0 | V120: =IFERROR(MilestoneTable[[#This Row],[Milestone Percentage]]*TotalOverheads20,"") -> 0 | W120: =IFERROR(MilestoneTable[[#This Row],[Milestone Percentage]]*TotalOverheads20,"") -> 0 | X120: =IFERROR(MilestoneTable[[#This Row],[Milestone Percentage]]*TotalICToACA,"") ->  | Y120: =IFERROR(MilestoneTable[[#This Row],[Milestone Percentage]]*TotalMarkupToOU,"") -> 0 | Z120: =IFERROR(MilestoneTable[[#This Row],[Milestone Percentage]]*TotalMarkupToProjectAccount,"") -> 0
E121: D | F121: 2028 | G121: Provider 3 | I121: 0.12 | J121: =IF(ISNUMBER(MilestoneTable[[#This Row],[Set by Amount (AUD)]]), MilestoneTable[[#This Row],[Set by Amount (AUD)]]/TotalCostToClientAUD, IF(ISNUMBER(MilestoneTable[[#This Row],[Set by Percentage]]), MilestoneTable[[#This Row],[Set by Percentage]],"")) -> 0.12 | K121: =IFERROR(MilestoneTable[[#This Row],[Milestone Percentage]]*TotalDirectCostsOutput,"") -> 0 | L121: =IFERROR(MilestoneTable[[#This Row],[Milestone Percentage]]*TotalIndirectCostsOutput,"") -> 0 | M121: =IFERROR(MilestoneTable[[#This Row],[Milestone Percentage]]*TotalMarkupOutput,"") -> 0 | N121: =IFERROR(MilestoneTable[[#This Row],[Milestone Percentage]]*TotalInKindSupportOutput,"") -> 0 | O121: =IFERROR(MilestoneTable[[#This Row],[Milestone Percentage]]*TotalCashSupportOutput,"") -> 0 | P121: =IFERROR(MilestoneTable[[#This Row],[Milestone Percentage]]*TotalCostToClientOutput,"") -> 0 | Q121: =IFERROR(IF(ClientGST="Yes",'Data Entry'!$P121*0.1,0),"") -> 0 | R121: =IFERROR(MilestoneTable[[#This Row],[Milestone Percentage]]*TotalCostToClientIncGSTOutput,"") -> 0 | S121: =IFERROR(MilestoneTable[[#This Row],[Direct Costs]]+MilestoneTable[[#This Row],[Total Markup]],"") -> 0 | T121: =IFERROR(MilestoneTable[[#This Row],[Milestone Percentage]]*TotalDCToProjectAccount,"") -> 0 | U121: =IFERROR(MilestoneTable[[#This Row],[Milestone Percentage]]*TotalOverheads60,"") -> 0 | V121: =IFERROR(MilestoneTable[[#This Row],[Milestone Percentage]]*TotalOverheads20,"") -> 0 | W121: =IFERROR(MilestoneTable[[#This Row],[Milestone Percentage]]*TotalOverheads20,"") -> 0 | X121: =IFERROR(MilestoneTable[[#This Row],[Milestone Percentage]]*TotalICToACA,"") ->  | Y121: =IFERROR(MilestoneTable[[#This Row],[Milestone Percentage]]*TotalMarkupToOU,"") -> 0 | Z121: =IFERROR(MilestoneTable[[#This Row],[Milestone Percentage]]*TotalMarkupToProjectAccount,"") -> 0
E127: Working Totals: Costing & Pricing Components by Calendar Year
E128: Overwrite the value in the 'Year' cell to view alternative years.
I129: 🛈 | J129: 🛈 | K129: 🛈 | L129: 🛈
I130: Direct Costs | J130: Indirect Costs | K130: Total Markup | L130: In Kind Support | M130: Cash Support | N130: Cost to Client | O130: GST | P130: Cost to Client inc GST
F131: Year: | G131: =MIN(PersonnelTable[Calendar Year],OtherTable[Calendar Year],CashTable[Calendar Year]) -> 0 | H131: AUD: | I131: =IF(OutputCurrencyOption="AUD", (IF(HasPersonnel="Yes", SUMIF(PersonnelTable[Calendar Year], WorkingTotalsYear1, PersonnelTable[Direct Costs]),0) +IF(HasOtherCosts="Yes", SUMIF(OtherTable[Calendar Year], WorkingTotalsYear1, OtherTable[Direct Costs]),0)), (IF(HasPersonnel="Yes", SUMIF(PersonnelTable[Calendar Year], WorkingTotalsYear1, PersonnelTable[Direct Costs]),0) +IF(HasOtherCosts="Yes", SUMIF(OtherTable[Calendar Year], WorkingTotalsYear1, OtherTable[Direct Costs]),0)) /OutputCurrencyRate) -> 0 | J131: =IF(OutputCurrencyOption="AUD", (IF(HasPersonnel="Yes", SUMIF(PersonnelTable[Calendar Year], WorkingTotalsYear1, PersonnelTable[Indirect Costs]),0) +IF(HasOtherCosts="Yes", SUMIF(OtherTable[Calendar Year], WorkingTotalsYear1, OtherTable[Indirect Costs]),0)), (IF(HasPersonnel="Yes", SUMIF(PersonnelTable[Calendar Year], WorkingTotalsYear1, PersonnelTable[Indirect Costs]),0) +IF(HasOtherCosts="Yes", SUMIF(OtherTable[Calendar Year], WorkingTotalsYear1, OtherTable[Indirect Costs]),0)) /OutputCurrencyRate) -> 0 | K131: =IF(OutputCurrencyOption="AUD", (IF(HasPersonnel="Yes", SUMIF(PersonnelTable[Calendar Year], WorkingTotalsYear1, PersonnelTable[Markup]),0) +IF(HasOtherCosts="Yes", SUMIF(OtherTable[Calendar Year], WorkingTotalsYear1, OtherTable[Markup]),0)), (IF(HasPersonnel="Yes", SUMIF(PersonnelTable[Calendar Year], WorkingTotalsYear1, PersonnelTable[Markup]),0) +IF(HasOtherCosts="Yes", SUMIF(OtherTable[Calendar Year], WorkingTotalsYear1, OtherTable[Markup]),0)) /OutputCurrencyRate) -> 0 | L131: =IF(OutputCurrencyOption="AUD", (IF(HasPersonnel="Yes", SUMIF(PersonnelTable[Calendar Year], WorkingTotalsYear1, PersonnelTable[In Kind Support]),0) +IF(HasOtherCosts="Yes", SUMIF(OtherTable[Calendar Year], WorkingTotalsYear1, OtherTable[In Kind Support]),0)), (IF(HasPersonnel="Yes", SUMIF(PersonnelTable[Calendar Year], WorkingTotalsYear1, PersonnelTable[In Kind Support]),0) +IF(HasOtherCosts="Yes", SUMIF(OtherTable[Calendar Year], WorkingTotalsYear1, OtherTable[In Kind Support]),0)) /OutputCurrencyRate) -> 0 | M131: =IF(OutputCurrencyOption="AUD", (IF(HasCashSupport="Yes", SUMIF(CashTable[Calendar Year], WorkingTotalsYear1, CashTable[Cash Support]),0)), (IF(HasCashSupport="Yes", SUMIF(CashTable[Calendar Year], WorkingTotalsYear1, CashTable[Cash Support]),0)) /OutputCurrencyRate) -> 0 | N131: =IF(OutputCurrencyOption="AUD", (IF(HasPersonnel="Yes", SUMIF(PersonnelTable[Calendar Year], WorkingTotalsYear1, PersonnelTable[Cost to Client]),0) +IF(HasOtherCosts="Yes", SUMIF(OtherTable[Calendar Year], WorkingTotalsYear1, OtherTable[Cost to Client]),0)), (IF(HasPersonnel="Yes", SUMIF(PersonnelTable[Calendar Year], WorkingTotalsYear1, PersonnelTable[Cost to Client]),0) +IF(HasOtherCosts="Yes", SUMIF(OtherTable[Calendar Year], WorkingTotalsYear1, OtherTable[Cost to Client]),0)) /OutputCurrencyRate) -> 0 | O131: =IF(ClientGST="Yes",N131*0.1,0) -> 0 | P131: =N131+O131 -> 0
H132: =IF(OutputCurrencyOption="AUD","Output in AUD:","Output in "&OutputCurrency&":") -> Output in AUD: | I132: =IF(HasPersonnel="Yes",SUMIF(PersonnelTable[Calendar Year], WorkingTotalsYear1, PersonnelTable[Direct Costs]),0) +IF(HasOtherCosts="Yes",SUMIF(OtherTable[Calendar Year], WorkingTotalsYear1, OtherTable[Direct Costs]),0) -> 0 | J132: =IF(HasPersonnel="Yes",SUMIF(PersonnelTable[Calendar Year], WorkingTotalsYear1, PersonnelTable[Indirect Costs]),0) +IF(HasOtherCosts="Yes",SUMIF(OtherTable[Calendar Year], WorkingTotalsYear1, OtherTable[Indirect Costs]),0) -> 0 | K132: =IF(HasPersonnel="Yes",SUMIF(PersonnelTable[Calendar Year], WorkingTotalsYear1, PersonnelTable[Markup]),0) +IF(HasOtherCosts="Yes",SUMIF(OtherTable[Calendar Year], WorkingTotalsYear1, OtherTable[Markup]),0) -> 0 | L132: =IF(HasPersonnel="Yes",SUMIF(PersonnelTable[Calendar Year], WorkingTotalsYear1, PersonnelTable[In Kind Support]),0) +IF(HasOtherCosts="Yes",SUMIF(OtherTable[Calendar Year], WorkingTotalsYear1, OtherTable[In Kind Support]),0) -> 0 | M132: =IF(HasCashSupport="Yes", SUMIF(CashTable[Calendar Year], WorkingTotalsYear1, CashTable[Cash Support]),0) -> 0 | N132: =IF(HasPersonnel="Yes",SUMIF(PersonnelTable[Calendar Year], WorkingTotalsYear1, PersonnelTable[Cost to Client]),0) +IF(HasOtherCosts="Yes",SUMIF(OtherTable[Calendar Year], WorkingTotalsYear1, OtherTable[Cost to Client]),0) -> 0 | O132: =IF(ClientGST="Yes",N132*0.1,0) -> 0 | P132: =N132+O132 -> 0
F134: Year: | G134: =G131+1 -> 1 | H134: AUD: | I134: =IF(OutputCurrencyOption="AUD", (IF(HasPersonnel="Yes", SUMIF(PersonnelTable[Calendar Year], WorkingTotalsYear2, PersonnelTable[Direct Costs]),0) +IF(HasOtherCosts="Yes", SUMIF(OtherTable[Calendar Year], WorkingTotalsYear2, OtherTable[Direct Costs]),0)), (IF(HasPersonnel="Yes", SUMIF(PersonnelTable[Calendar Year], WorkingTotalsYear2, PersonnelTable[Direct Costs]),0) +IF(HasOtherCosts="Yes", SUMIF(OtherTable[Calendar Year], WorkingTotalsYear2, OtherTable[Direct Costs]),0)) /OutputCurrencyRate) -> 0 | J134: =IF(OutputCurrencyOption="AUD", (IF(HasPersonnel="Yes", SUMIF(PersonnelTable[Calendar Year], WorkingTotalsYear2, PersonnelTable[Indirect Costs]),0) +IF(HasOtherCosts="Yes", SUMIF(OtherTable[Calendar Year], WorkingTotalsYear2, OtherTable[Indirect Costs]),0)), (IF(HasPersonnel="Yes", SUMIF(PersonnelTable[Calendar Year], WorkingTotalsYear2, PersonnelTable[Indirect Costs]),0) +IF(HasOtherCosts="Yes", SUMIF(OtherTable[Calendar Year], WorkingTotalsYear2, OtherTable[Indirect Costs]),0)) /OutputCurrencyRate) -> 0 | K134: =IF(OutputCurrencyOption="AUD", (IF(HasPersonnel="Yes", SUMIF(PersonnelTable[Calendar Year], WorkingTotalsYear2, PersonnelTable[Markup]),0) +IF(HasOtherCosts="Yes", SUMIF(OtherTable[Calendar Year], WorkingTotalsYear2, OtherTable[Markup]),0)), (IF(HasPersonnel="Yes", SUMIF(PersonnelTable[Calendar Year], WorkingTotalsYear2, PersonnelTable[Markup]),0) +IF(HasOtherCosts="Yes", SUMIF(OtherTable[Calendar Year], WorkingTotalsYear2, OtherTable[Markup]),0)) /OutputCurrencyRate) -> 0 | L134: =IF(OutputCurrencyOption="AUD", (IF(HasPersonnel="Yes", SUMIF(PersonnelTable[Calendar Year], WorkingTotalsYear2, PersonnelTable[In Kind Support]),0) +IF(HasOtherCosts="Yes", SUMIF(OtherTable[Calendar Year], WorkingTotalsYear2, OtherTable[In Kind Support]),0)), (IF(HasPersonnel="Yes", SUMIF(PersonnelTable[Calendar Year], WorkingTotalsYear2, PersonnelTable[In Kind Support]),0) +IF(HasOtherCosts="Yes", SUMIF(OtherTable[Calendar Year], WorkingTotalsYear2, OtherTable[In Kind Support]),0)) /OutputCurrencyRate) -> 0 | M134: =IF(OutputCurrencyOption="AUD", (IF(HasCashSupport="Yes", SUMIF(CashTable[Calendar Year], WorkingTotalsYear2, CashTable[Cash Support]),0)), (IF(HasCashSupport="Yes", SUMIF(CashTable[Calendar Year], WorkingTotalsYear2, CashTable[Cash Support]),0)) /OutputCurrencyRate) -> 0 | N134: =IF(OutputCurrencyOption="AUD", (IF(HasPersonnel="Yes", SUMIF(PersonnelTable[Calendar Year], WorkingTotalsYear2, PersonnelTable[Cost to Client]),0) +IF(HasOtherCosts="Yes", SUMIF(OtherTable[Calendar Year], WorkingTotalsYear2, OtherTable[Cost to Client]),0)), (IF(HasPersonnel="Yes", SUMIF(PersonnelTable[Calendar Year], WorkingTotalsYear2, PersonnelTable[Cost to Client]),0) +IF(HasOtherCosts="Yes", SUMIF(OtherTable[Calendar Year], WorkingTotalsYear2, OtherTable[Cost to Client]),0)) /OutputCurrencyRate) -> 0 | O134: =IF(ClientGST="Yes",N134*0.1,0) -> 0 | P134: =N134+O134 -> 0
H135: =IF(OutputCurrencyOption="AUD","Output in AUD:","Output in "&OutputCurrency&":") -> Output in AUD: | I135: =IF(HasPersonnel="Yes",SUMIF(PersonnelTable[Calendar Year], WorkingTotalsYear2, PersonnelTable[Direct Costs]),0) +IF(HasOtherCosts="Yes",SUMIF(OtherTable[Calendar Year], WorkingTotalsYear2, OtherTable[Direct Costs]),0) -> 0 | J135: =IF(HasPersonnel="Yes",SUMIF(PersonnelTable[Calendar Year], WorkingTotalsYear2, PersonnelTable[Indirect Costs]),0) +IF(HasOtherCosts="Yes",SUMIF(OtherTable[Calendar Year], WorkingTotalsYear2, OtherTable[Indirect Costs]),0) -> 0 | K135: =IF(HasPersonnel="Yes",SUMIF(PersonnelTable[Calendar Year], WorkingTotalsYear2, PersonnelTable[Markup]),0) +IF(HasOtherCosts="Yes",SUMIF(OtherTable[Calendar Year], WorkingTotalsYear2, OtherTable[Markup]),0) -> 0 | L135: =IF(HasPersonnel="Yes",SUMIF(PersonnelTable[Calendar Year], WorkingTotalsYear2, PersonnelTable[In Kind Support]),0) +IF(HasOtherCosts="Yes",SUMIF(OtherTable[Calendar Year], WorkingTotalsYear2, OtherTable[In Kind Support]),0) -> 0 | M135: =IF(HasCashSupport="Yes", SUMIF(CashTable[Calendar Year], WorkingTotalsYear2, CashTable[Cash Support]),0) -> 0 | N135: =IF(HasPersonnel="Yes",SUMIF(PersonnelTable[Calendar Year], WorkingTotalsYear2, PersonnelTable[Cost to Client]),0) +IF(HasOtherCosts="Yes",SUMIF(OtherTable[Calendar Year], WorkingTotalsYear2, OtherTable[Cost to Client]),0) -> 0 | O135: =IF(ClientGST="Yes",N135*0.1,0) -> 0 | P135: =N135+O135 -> 0
F137: Year: | G137: =G134+1 -> 2 | H137: AUD: | I137: =IF(OutputCurrencyOption="AUD", (IF(HasPersonnel="Yes", SUMIF(PersonnelTable[Calendar Year], WorkingTotalsYear3, PersonnelTable[Direct Costs]),0) +IF(HasOtherCosts="Yes", SUMIF(OtherTable[Calendar Year], WorkingTotalsYear3, OtherTable[Direct Costs]),0)), (IF(HasPersonnel="Yes", SUMIF(PersonnelTable[Calendar Year], WorkingTotalsYear3, PersonnelTable[Direct Costs]),0) +IF(HasOtherCosts="Yes", SUMIF(OtherTable[Calendar Year], WorkingTotalsYear3, OtherTable[Direct Costs]),0)) /OutputCurrencyRate) -> 0 | J137: =IF(OutputCurrencyOption="AUD", (IF(HasPersonnel="Yes", SUMIF(PersonnelTable[Calendar Year], WorkingTotalsYear3, PersonnelTable[Indirect Costs]),0) +IF(HasOtherCosts="Yes", SUMIF(OtherTable[Calendar Year], WorkingTotalsYear3, OtherTable[Indirect Costs]),0)), (IF(HasPersonnel="Yes", SUMIF(PersonnelTable[Calendar Year], WorkingTotalsYear3, PersonnelTable[Indirect Costs]),0) +IF(HasOtherCosts="Yes", SUMIF(OtherTable[Calendar Year], WorkingTotalsYear3, OtherTable[Indirect Costs]),0)) /OutputCurrencyRate) -> 0 | K137: =IF(OutputCurrencyOption="AUD", (IF(HasPersonnel="Yes", SUMIF(PersonnelTable[Calendar Year], WorkingTotalsYear3, PersonnelTable[Markup]),0) +IF(HasOtherCosts="Yes", SUMIF(OtherTable[Calendar Year], WorkingTotalsYear3, OtherTable[Markup]),0)), (IF(HasPersonnel="Yes", SUMIF(PersonnelTable[Calendar Year], WorkingTotalsYear3, PersonnelTable[Markup]),0) +IF(HasOtherCosts="Yes", SUMIF(OtherTable[Calendar Year], WorkingTotalsYear3, OtherTable[Markup]),0)) /OutputCurrencyRate) -> 0 | L137: =IF(OutputCurrencyOption="AUD", (IF(HasPersonnel="Yes", SUMIF(PersonnelTable[Calendar Year], WorkingTotalsYear3, PersonnelTable[In Kind Support]),0) +IF(HasOtherCosts="Yes", SUMIF(OtherTable[Calendar Year], WorkingTotalsYear3, OtherTable[In Kind Support]),0)), (IF(HasPersonnel="Yes", SUMIF(PersonnelTable[Calendar Year], WorkingTotalsYear3, PersonnelTable[In Kind Support]),0) +IF(HasOtherCosts="Yes", SUMIF(OtherTable[Calendar Year], WorkingTotalsYear3, OtherTable[In Kind Support]),0)) /OutputCurrencyRate) -> 0 | M137: =IF(OutputCurrencyOption="AUD", (IF(HasCashSupport="Yes", SUMIF(CashTable[Calendar Year], WorkingTotalsYear3, CashTable[Cash Support]),0)), (IF(HasCashSupport="Yes", SUMIF(CashTable[Calendar Year], WorkingTotalsYear3, CashTable[Cash Support]),0)) /OutputCurrencyRate) -> 0 | N137: =IF(OutputCurrencyOption="AUD", (IF(HasPersonnel="Yes", SUMIF(PersonnelTable[Calendar Year], WorkingTotalsYear3, PersonnelTable[Cost to Client]),0) +IF(HasOtherCosts="Yes", SUMIF(OtherTable[Calendar Year], WorkingTotalsYear3, OtherTable[Cost to Client]),0)), (IF(HasPersonnel="Yes", SUMIF(PersonnelTable[Calendar Year], WorkingTotalsYear3, PersonnelTable[Cost to Client]),0) +IF(HasOtherCosts="Yes", SUMIF(OtherTable[Calendar Year], WorkingTotalsYear3, OtherTable[Cost to Client]),0)) /OutputCurrencyRate) -> 0 | O137: =IF(ClientGST="Yes",N137*0.1,0) -> 0 | P137: =N137+O137 -> 0
H138: =IF(OutputCurrencyOption="AUD","Output in AUD:","Output in "&OutputCurrency&":") -> Output in AUD: | I138: =IF(HasPersonnel="Yes",SUMIF(PersonnelTable[Calendar Year], WorkingTotalsYear3, PersonnelTable[Direct Costs]),0) +IF(HasOtherCosts="Yes",SUMIF(OtherTable[Calendar Year], WorkingTotalsYear3, OtherTable[Direct Costs]),0) -> 0 | J138: =IF(HasPersonnel="Yes",SUMIF(PersonnelTable[Calendar Year], WorkingTotalsYear3, PersonnelTable[Indirect Costs]),0) +IF(HasOtherCosts="Yes",SUMIF(OtherTable[Calendar Year], WorkingTotalsYear3, OtherTable[Indirect Costs]),0) -> 0 | K138: =IF(HasPersonnel="Yes",SUMIF(PersonnelTable[Calendar Year], WorkingTotalsYear3, PersonnelTable[Markup]),0) +IF(HasOtherCosts="Yes",SUMIF(OtherTable[Calendar Year], WorkingTotalsYear3, OtherTable[Markup]),0) -> 0 | L138: =IF(HasPersonnel="Yes",SUMIF(PersonnelTable[Calendar Year], WorkingTotalsYear3, PersonnelTable[In Kind Support]),0) +IF(HasOtherCosts="Yes",SUMIF(OtherTable[Calendar Year], WorkingTotalsYear3, OtherTable[In Kind Support]),0) -> 0 | M138: =IF(HasCashSupport="Yes", SUMIF(CashTable[Calendar Year], WorkingTotalsYear3, CashTable[Cash Support]),0) -> 0 | N138: =IF(HasPersonnel="Yes",SUMIF(PersonnelTable[Calendar Year], WorkingTotalsYear3, PersonnelTable[Cost to Client]),0) +IF(HasOtherCosts="Yes",SUMIF(OtherTable[Calendar Year], WorkingTotalsYear3, OtherTable[Cost to Client]),0) -> 0 | O138: =IF(ClientGST="Yes",N138*0.1,0) -> 0 | P138: =N138+O138 -> 0
F140: Year: | G140: =G137+1 -> 3 | H140: AUD: | I140: =IF(OutputCurrencyOption="AUD", (IF(HasPersonnel="Yes", SUMIF(PersonnelTable[Calendar Year], WorkingTotalsYear4, PersonnelTable[Direct Costs]),0) +IF(HasOtherCosts="Yes", SUMIF(OtherTable[Calendar Year], WorkingTotalsYear4, OtherTable[Direct Costs]),0)), (IF(HasPersonnel="Yes", SUMIF(PersonnelTable[Calendar Year], WorkingTotalsYear4, PersonnelTable[Direct Costs]),0) +IF(HasOtherCosts="Yes", SUMIF(OtherTable[Calendar Year], WorkingTotalsYear4, OtherTable[Direct Costs]),0)) /OutputCurrencyRate) -> 0 | J140: =IF(OutputCurrencyOption="AUD", (IF(HasPersonnel="Yes", SUMIF(PersonnelTable[Calendar Year], WorkingTotalsYear4, PersonnelTable[Indirect Costs]),0) +IF(HasOtherCosts="Yes", SUMIF(OtherTable[Calendar Year], WorkingTotalsYear4, OtherTable[Indirect Costs]),0)), (IF(HasPersonnel="Yes", SUMIF(PersonnelTable[Calendar Year], WorkingTotalsYear4, PersonnelTable[Indirect Costs]),0) +IF(HasOtherCosts="Yes", SUMIF(OtherTable[Calendar Year], WorkingTotalsYear4, OtherTable[Indirect Costs]),0)) /OutputCurrencyRate) -> 0 | K140: =IF(OutputCurrencyOption="AUD", (IF(HasPersonnel="Yes", SUMIF(PersonnelTable[Calendar Year], WorkingTotalsYear4, PersonnelTable[Markup]),0) +IF(HasOtherCosts="Yes", SUMIF(OtherTable[Calendar Year], WorkingTotalsYear4, OtherTable[Markup]),0)), (IF(HasPersonnel="Yes", SUMIF(PersonnelTable[Calendar Year], WorkingTotalsYear4, PersonnelTable[Markup]),0) +IF(HasOtherCosts="Yes", SUMIF(OtherTable[Calendar Year], WorkingTotalsYear4, OtherTable[Markup]),0)) /OutputCurrencyRate) -> 0 | L140: =IF(OutputCurrencyOption="AUD", (IF(HasPersonnel="Yes", SUMIF(PersonnelTable[Calendar Year], WorkingTotalsYear4, PersonnelTable[In Kind Support]),0) +IF(HasOtherCosts="Yes", SUMIF(OtherTable[Calendar Year], WorkingTotalsYear4, OtherTable[In Kind Support]),0)), (IF(HasPersonnel="Yes", SUMIF(PersonnelTable[Calendar Year], WorkingTotalsYear4, PersonnelTable[In Kind Support]),0) +IF(HasOtherCosts="Yes", SUMIF(OtherTable[Calendar Year], WorkingTotalsYear4, OtherTable[In Kind Support]),0)) /OutputCurrencyRate) -> 0 | M140: =IF(OutputCurrencyOption="AUD", (IF(HasCashSupport="Yes", SUMIF(CashTable[Calendar Year], WorkingTotalsYear4, CashTable[Cash Support]),0)), (IF(HasCashSupport="Yes", SUMIF(CashTable[Calendar Year], WorkingTotalsYear4, CashTable[Cash Support]),0)) /OutputCurrencyRate) -> 0 | N140: =IF(OutputCurrencyOption="AUD", (IF(HasPersonnel="Yes", SUMIF(PersonnelTable[Calendar Year], WorkingTotalsYear4, PersonnelTable[Cost to Client]),0) +IF(HasOtherCosts="Yes", SUMIF(OtherTable[Calendar Year], WorkingTotalsYear4, OtherTable[Cost to Client]),0)), (IF(HasPersonnel="Yes", SUMIF(PersonnelTable[Calendar Year], WorkingTotalsYear4, PersonnelTable[Cost to Client]),0) +IF(HasOtherCosts="Yes", SUMIF(OtherTable[Calendar Year], WorkingTotalsYear4, OtherTable[Cost to Client]),0)) /OutputCurrencyRate) -> 0 | O140: =IF(ClientGST="Yes",N140*0.1,0) -> 0 | P140: =N140+O140 -> 0
H141: =IF(OutputCurrencyOption="AUD","Output in AUD:","Output in "&OutputCurrency&":") -> Output in AUD: | I141: =IF(HasPersonnel="Yes",SUMIF(PersonnelTable[Calendar Year], WorkingTotalsYear4, PersonnelTable[Direct Costs]),0) +IF(HasOtherCosts="Yes",SUMIF(OtherTable[Calendar Year], WorkingTotalsYear4, OtherTable[Direct Costs]),0) -> 0 | J141: =IF(HasPersonnel="Yes",SUMIF(PersonnelTable[Calendar Year], WorkingTotalsYear4, PersonnelTable[Indirect Costs]),0) +IF(HasOtherCosts="Yes",SUMIF(OtherTable[Calendar Year], WorkingTotalsYear4, OtherTable[Indirect Costs]),0) -> 0 | K141: =IF(HasPersonnel="Yes",SUMIF(PersonnelTable[Calendar Year], WorkingTotalsYear4, PersonnelTable[Markup]),0) +IF(HasOtherCosts="Yes",SUMIF(OtherTable[Calendar Year], WorkingTotalsYear4, OtherTable[Markup]),0) -> 0 | L141: =IF(HasPersonnel="Yes",SUMIF(PersonnelTable[Calendar Year], WorkingTotalsYear4, PersonnelTable[In Kind Support]),0) +IF(HasOtherCosts="Yes",SUMIF(OtherTable[Calendar Year], WorkingTotalsYear4, OtherTable[In Kind Support]),0) -> 0 | M141: =IF(HasCashSupport="Yes", SUMIF(CashTable[Calendar Year], WorkingTotalsYear4, CashTable[Cash Support]),0) -> 0 | N141: =IF(HasPersonnel="Yes",SUMIF(PersonnelTable[Calendar Year], WorkingTotalsYear4, PersonnelTable[Cost to Client]),0) +IF(HasOtherCosts="Yes",SUMIF(OtherTable[Calendar Year], WorkingTotalsYear4, OtherTable[Cost to Client]),0) -> 0 | O141: =IF(ClientGST="Yes",N141*0.1,0) -> 0 | P141: =N141+O141 -> 0
F143: Year: | G143: =G140+1 -> 4 | H143: AUD: | I143: =IF(OutputCurrencyOption="AUD", (IF(HasPersonnel="Yes", SUMIF(PersonnelTable[Calendar Year], WorkingTotalsYear5, PersonnelTable[Direct Costs]),0) +IF(HasOtherCosts="Yes", SUMIF(OtherTable[Calendar Year], WorkingTotalsYear5, OtherTable[Direct Costs]),0)), (IF(HasPersonnel="Yes", SUMIF(PersonnelTable[Calendar Year], WorkingTotalsYear5, PersonnelTable[Direct Costs]),0) +IF(HasOtherCosts="Yes", SUMIF(OtherTable[Calendar Year], WorkingTotalsYear5, OtherTable[Direct Costs]),0)) /OutputCurrencyRate) -> 0 | J143: =IF(OutputCurrencyOption="AUD", (IF(HasPersonnel="Yes", SUMIF(PersonnelTable[Calendar Year], WorkingTotalsYear5, PersonnelTable[Indirect Costs]),0) +IF(HasOtherCosts="Yes", SUMIF(OtherTable[Calendar Year], WorkingTotalsYear5, OtherTable[Indirect Costs]),0)), (IF(HasPersonnel="Yes", SUMIF(PersonnelTable[Calendar Year], WorkingTotalsYear5, PersonnelTable[Indirect Costs]),0) +IF(HasOtherCosts="Yes", SUMIF(OtherTable[Calendar Year], WorkingTotalsYear5, OtherTable[Indirect Costs]),0)) /OutputCurrencyRate) -> 0 | K143: =IF(OutputCurrencyOption="AUD", (IF(HasPersonnel="Yes", SUMIF(PersonnelTable[Calendar Year], WorkingTotalsYear5, PersonnelTable[Markup]),0) +IF(HasOtherCosts="Yes", SUMIF(OtherTable[Calendar Year], WorkingTotalsYear5, OtherTable[Markup]),0)), (IF(HasPersonnel="Yes", SUMIF(PersonnelTable[Calendar Year], WorkingTotalsYear5, PersonnelTable[Markup]),0) +IF(HasOtherCosts="Yes", SUMIF(OtherTable[Calendar Year], WorkingTotalsYear5, OtherTable[Markup]),0)) /OutputCurrencyRate) -> 0 | L143: =IF(OutputCurrencyOption="AUD", (IF(HasPersonnel="Yes", SUMIF(PersonnelTable[Calendar Year], WorkingTotalsYear5, PersonnelTable[In Kind Support]),0) +IF(HasOtherCosts="Yes", SUMIF(OtherTable[Calendar Year], WorkingTotalsYear5, OtherTable[In Kind Support]),0)), (IF(HasPersonnel="Yes", SUMIF(PersonnelTable[Calendar Year], WorkingTotalsYear5, PersonnelTable[In Kind Support]),0) +IF(HasOtherCosts="Yes", SUMIF(OtherTable[Calendar Year], WorkingTotalsYear5, OtherTable[In Kind Support]),0)) /OutputCurrencyRate) -> 0 | M143: =IF(OutputCurrencyOption="AUD", (IF(HasCashSupport="Yes", SUMIF(CashTable[Calendar Year], WorkingTotalsYear5, CashTable[Cash Support]),0)), (IF(HasCashSupport="Yes", SUMIF(CashTable[Calendar Year], WorkingTotalsYear5, CashTable[Cash Support]),0)) /OutputCurrencyRate) -> 0 | N143: =IF(OutputCurrencyOption="AUD", (IF(HasPersonnel="Yes", SUMIF(PersonnelTable[Calendar Year], WorkingTotalsYear5, PersonnelTable[Cost to Client]),0) +IF(HasOtherCosts="Yes", SUMIF(OtherTable[Calendar Year], WorkingTotalsYear5, OtherTable[Cost to Client]),0)), (IF(HasPersonnel="Yes", SUMIF(PersonnelTable[Calendar Year], WorkingTotalsYear5, PersonnelTable[Cost to Client]),0) +IF(HasOtherCosts="Yes", SUMIF(OtherTable[Calendar Year], WorkingTotalsYear5, OtherTable[Cost to Client]),0)) /OutputCurrencyRate) -> 0 | O143: =IF(ClientGST="Yes",N143*0.1,0) -> 0 | P143: =N143+O143 -> 0
H144: =IF(OutputCurrencyOption="AUD","Output in AUD:","Output in "&OutputCurrency&":") -> Output in AUD: | I144: =IF(HasPersonnel="Yes",SUMIF(PersonnelTable[Calendar Year], WorkingTotalsYear5, PersonnelTable[Direct Costs]),0) +IF(HasOtherCosts="Yes",SUMIF(OtherTable[Calendar Year], WorkingTotalsYear5, OtherTable[Direct Costs]),0) -> 0 | J144: =IF(HasPersonnel="Yes",SUMIF(PersonnelTable[Calendar Year], WorkingTotalsYear5, PersonnelTable[Indirect Costs]),0) +IF(HasOtherCosts="Yes",SUMIF(OtherTable[Calendar Year], WorkingTotalsYear5, OtherTable[Indirect Costs]),0) -> 0 | K144: =IF(HasPersonnel="Yes",SUMIF(PersonnelTable[Calendar Year], WorkingTotalsYear5, PersonnelTable[Markup]),0) +IF(HasOtherCosts="Yes",SUMIF(OtherTable[Calendar Year], WorkingTotalsYear5, OtherTable[Markup]),0) -> 0 | L144: =IF(HasPersonnel="Yes",SUMIF(PersonnelTable[Calendar Year], WorkingTotalsYear5, PersonnelTable[In Kind Support]),0) +IF(HasOtherCosts="Yes",SUMIF(OtherTable[Calendar Year], WorkingTotalsYear5, OtherTable[In Kind Support]),0) -> 0 | M144: =IF(HasCashSupport="Yes", SUMIF(CashTable[Calendar Year], WorkingTotalsYear5, CashTable[Cash Support]),0) -> 0 | N144: =IF(HasPersonnel="Yes",SUMIF(PersonnelTable[Calendar Year], WorkingTotalsYear5, PersonnelTable[Cost to Client]),0) +IF(HasOtherCosts="Yes",SUMIF(OtherTable[Calendar Year], WorkingTotalsYear5, OtherTable[Cost to Client]),0) -> 0 | O144: =IF(ClientGST="Yes",N144*0.1,0) -> 0 | P144: =N144+O144 -> 0
F146: Year: | G146: =G143+1 -> 5 | H146: AUD: | I146: =IF(OutputCurrencyOption="AUD", (IF(HasPersonnel="Yes", SUMIF(PersonnelTable[Calendar Year], WorkingTotalsYear6, PersonnelTable[Direct Costs]),0) +IF(HasOtherCosts="Yes", SUMIF(OtherTable[Calendar Year], WorkingTotalsYear6, OtherTable[Direct Costs]),0)), (IF(HasPersonnel="Yes", SUMIF(PersonnelTable[Calendar Year], WorkingTotalsYear6, PersonnelTable[Direct Costs]),0) +IF(HasOtherCosts="Yes", SUMIF(OtherTable[Calendar Year], WorkingTotalsYear6, OtherTable[Direct Costs]),0)) /OutputCurrencyRate) -> 0 | J146: =IF(OutputCurrencyOption="AUD", (IF(HasPersonnel="Yes", SUMIF(PersonnelTable[Calendar Year], WorkingTotalsYear6, PersonnelTable[Indirect Costs]),0) +IF(HasOtherCosts="Yes", SUMIF(OtherTable[Calendar Year], WorkingTotalsYear6, OtherTable[Indirect Costs]),0)), (IF(HasPersonnel="Yes", SUMIF(PersonnelTable[Calendar Year], WorkingTotalsYear6, PersonnelTable[Indirect Costs]),0) +IF(HasOtherCosts="Yes", SUMIF(OtherTable[Calendar Year], WorkingTotalsYear6, OtherTable[Indirect Costs]),0)) /OutputCurrencyRate) -> 0 | K146: =IF(OutputCurrencyOption="AUD", (IF(HasPersonnel="Yes", SUMIF(PersonnelTable[Calendar Year], WorkingTotalsYear6, PersonnelTable[Markup]),0) +IF(HasOtherCosts="Yes", SUMIF(OtherTable[Calendar Year], WorkingTotalsYear6, OtherTable[Markup]),0)), (IF(HasPersonnel="Yes", SUMIF(PersonnelTable[Calendar Year], WorkingTotalsYear6, PersonnelTable[Markup]),0) +IF(HasOtherCosts="Yes", SUMIF(OtherTable[Calendar Year], WorkingTotalsYear6, OtherTable[Markup]),0)) /OutputCurrencyRate) -> 0 | L146: =IF(OutputCurrencyOption="AUD", (IF(HasPersonnel="Yes", SUMIF(PersonnelTable[Calendar Year], WorkingTotalsYear6, PersonnelTable[In Kind Support]),0) +IF(HasOtherCosts="Yes", SUMIF(OtherTable[Calendar Year], WorkingTotalsYear6, OtherTable[In Kind Support]),0)), (IF(HasPersonnel="Yes", SUMIF(PersonnelTable[Calendar Year], WorkingTotalsYear6, PersonnelTable[In Kind Support]),0) +IF(HasOtherCosts="Yes", SUMIF(OtherTable[Calendar Year], WorkingTotalsYear6, OtherTable[In Kind Support]),0)) /OutputCurrencyRate) -> 0 | M146: =IF(OutputCurrencyOption="AUD", (IF(HasCashSupport="Yes", SUMIF(CashTable[Calendar Year], WorkingTotalsYear6, CashTable[Cash Support]),0)), (IF(HasCashSupport="Yes", SUMIF(CashTable[Calendar Year], WorkingTotalsYear6, CashTable[Cash Support]),0)) /OutputCurrencyRate) -> 0 | N146: =IF(OutputCurrencyOption="AUD", (IF(HasPersonnel="Yes", SUMIF(PersonnelTable[Calendar Year], WorkingTotalsYear6, PersonnelTable[Cost to Client]),0) +IF(HasOtherCosts="Yes", SUMIF(OtherTable[Calendar Year], WorkingTotalsYear6, OtherTable[Cost to Client]),0)), (IF(HasPersonnel="Yes", SUMIF(PersonnelTable[Calendar Year], WorkingTotalsYear6, PersonnelTable[Cost to Client]),0) +IF(HasOtherCosts="Yes", SUMIF(OtherTable[Calendar Year], WorkingTotalsYear6, OtherTable[Cost to Client]),0)) /OutputCurrencyRate) -> 0 | O146: =IF(ClientGST="Yes",N146*0.1,0) -> 0 | P146: =N146+O146 -> 0
H147: =IF(OutputCurrencyOption="AUD","Output in AUD:","Output in "&OutputCurrency&":") -> Output in AUD: | I147: =IF(HasPersonnel="Yes",SUMIF(PersonnelTable[Calendar Year], WorkingTotalsYear6, PersonnelTable[Direct Costs]),0) +IF(HasOtherCosts="Yes",SUMIF(OtherTable[Calendar Year], WorkingTotalsYear6, OtherTable[Direct Costs]),0) -> 0 | J147: =IF(HasPersonnel="Yes",SUMIF(PersonnelTable[Calendar Year], WorkingTotalsYear6, PersonnelTable[Indirect Costs]),0) +IF(HasOtherCosts="Yes",SUMIF(OtherTable[Calendar Year], WorkingTotalsYear6, OtherTable[Indirect Costs]),0) -> 0 | K147: =IF(HasPersonnel="Yes",SUMIF(PersonnelTable[Calendar Year], WorkingTotalsYear6, PersonnelTable[Markup]),0) +IF(HasOtherCosts="Yes",SUMIF(OtherTable[Calendar Year], WorkingTotalsYear6, OtherTable[Markup]),0) -> 0 | L147: =IF(HasPersonnel="Yes",SUMIF(PersonnelTable[Calendar Year], WorkingTotalsYear6, PersonnelTable[In Kind Support]),0) +IF(HasOtherCosts="Yes",SUMIF(OtherTable[Calendar Year], WorkingTotalsYear6, OtherTable[In Kind Support]),0) -> 0 | M147: =IF(HasCashSupport="Yes", SUMIF(CashTable[Calendar Year], WorkingTotalsYear6, CashTable[Cash Support]),0) -> 0 | N147: =IF(HasPersonnel="Yes",SUMIF(PersonnelTable[Calendar Year], WorkingTotalsYear6, PersonnelTable[Cost to Client]),0) +IF(HasOtherCosts="Yes",SUMIF(OtherTable[Calendar Year], WorkingTotalsYear6, OtherTable[Cost to Client]),0) -> 0 | O147: =IF(ClientGST="Yes",N147*0.1,0) -> 0 | P147: =N147+O147 -> 0

Sheet Admin-ProRata (hidden)
A1: Type | B1: Category | C1: Budget Item | D1: Notes | E1: Calendar Year | F1: Start Date | G1: End Date | H1: Apportioned Units | I1: Direct Costs | J1: Indirect Costs | K1: Markup | L1: Cost to Client | M1: Cost to Client inc GST | N1: In Kind Support | O1: Cash Support | P1: Direct Costs Recovered | Q1: Indirect Costs Recovered | R1: 60% Central Allocation | S1: 20% Primary Faculty Allocation | T1: 20% Secondary Faculty Allocation | U1: Financial Year | V1: FY% | W1: Block | X1: ACA Overheads | Y1: Total Cost
A2: Cost | B2: Personnel | C2: test | E2: 2024 | F2: 2024-01-01 | G2: 2024-12-31 | H2: 0.4972677596 | I2: 133447.9389 | J2: 66723.96946 | L2: 200171.9084 | M2: 220189.0992 | P2: 133447.9389 | Q2: 66723.96946 | R2: 40034.38167 | S2: 13344.79389 | T2: 13344.79389 | U2: 2023 - 24 | V2: 0.4972677596 | W2: =IF(A2="In Kind Support",0,I2+K2) -> 133447.9389 | X2: =Q2 -> 66723.96946 | Y2: =M2 -> 220189.0992
A3: Cost | B3: Personnel | C3: test2 | E3: 2025 | F3: 2025-01-01 | G3: 2025-12-31 | H3: 0.495890411 | I3: 111324.6329 | J3: 55662.31647 | L3: 166986.9494 | M3: 183685.6443 | P3: 111324.6329 | Q3: 55662.31647 | R3: 33397.38988 | S3: 11132.46329 | T3: 11132.46329 | U3: 2024 - 25 | V3: 0.495890411 | W3: 111324.6329 | X3: 55662.31647 | Y3: 183685.6443
A4: Cost | B4: Personnel | C4: test3 | E4: 2026 | F4: 2026-01-01 | G4: 2026-12-31 | H4: 0.495890411 | I4: 105249.5616 | J4: 52624.7808 | L4: 157874.3424 | M4: 173661.7766 | P4: 105249.5616 | Q4: 52624.7808 | R4: 31574.86848 | S4: 10524.95616 | T4: 10524.95616 | U4: 2025 - 26 | V4: 0.495890411 | W4: 105249.5616 | X4: 52624.7808 | Y4: 173661.7766
A5: In Kind Support | B5: Personnel | C5: ibi | E5: 2024 | F5: 2024-01-01 | G5: 2024-12-31 | H5: 0.09945355191 | I5: 20762.50821 | J5: 10381.2541 | N5: 31143.76231 | U5: 2023 - 24 | V5: 0.4972677596 | W5: 0 | X5: 0 | Y5: 0
A6: Cost | B6: Personnel | C6: test | E6: 2024 | F6: 2024-01-01 | G6: 2024-12-31 | H6: 0.5027322404 | I6: 134914.3998 | J6: 67457.19989 | L6: 202371.5997 | M6: 222608.7596 | P6: 134914.3998 | Q6: 67457.19989 | R6: 40474.31993 | S6: 13491.43998 | T6: 13491.43998 | U6: 2024 - 25 | V6: 0.5027322404 | W6: 134914.3998 | X6: 67457.19989 | Y6: 222608.7596
A7: Cost | B7: Personnel | C7: test2 | E7: 2025 | F7: 2025-01-01 | G7: 2025-12-31 | H7: 0.504109589 | I7: 113169.7926 | J7: 56584.8963 | L7: 169754.6889 | M7: 186730.1578 | P7: 113169.7926 | Q7: 56584.8963 | R7: 33950.93778 | S7: 11316.97926 | T7: 11316.97926 | U7: 2025 - 26 | V7: 0.504109589 | W7: 113169.7926 | X7: 56584.8963 | Y7: 186730.1578
A8: Cost | B8: Personnel | C8: test3 | E8: 2026 | F8: 2026-01-01 | G8: 2026-12-31 | H8: 0.504109589 | I8: 106994.0295 | J8: 53497.01474 | L8: 160491.0442 | M8: 176540.1486 | P8: 106994.0295 | Q8: 53497.01474 | R8: 32098.20884 | S8: 10699.40295 | T8: 10699.40295 | U8: 2026 - 27 | V8: 0.504109589 | W8: 106994.0295 | X8: 53497.01474 | Y8: 176540.1486
A9: In Kind Support | B9: Personnel | C9: ibi | E9: 2024 | F9: 2024-01-01 | G9: 2024-12-31 | H9: 0.1005464481 | I9: 20990.66764 | J9: 10495.33382 | N9: 31486.00146 | U9: 2024 - 25 | V9: 0.5027322404 | W9: 0 | X9: 0 | Y9: 0

Sheet Admin - Tuition Fee (hidden)
B1: Tuition Fee Table | C1: 2023 | D1: 2024 | E1: 2025 | F1: 2026 | G1: 2027 | H1: 2028 | I1: 2029 | J1: 2030 | K1: 2031 | L1: 2032 | M1: 2033 | N1: 2034 | O1: 2035 | Q1: Percentage to be recovered | R1: =TuitionFree_RecovPercent -> 0.5
B2: Tuition Fee - High Band | C2: 48040 | D2: =C2*1.03 -> 49481.2 | E2: =D2*1.03 -> 50965.636 | F2: 52494.60508 | G2: 54069.44323 | H2: 55691.52653 | I2: 57362.27233 | J2: 59083.1405 | K2: 60855.63471 | L2: 62681.30375 | M2: 64561.74286 | N2: 66498.59515 | O2: 68493.553
B3: Tuition Fee - Low Band | C3: 38400 | D3: =C3*1.03 -> 39552 | E3: =D3*1.03 -> 40738.56 | F3: 41960.7168 | G3: 43219.5383 | H3: 44516.12445 | I3: 45851.60819 | J3: 47227.15643 | K3: 48643.97113 | L3: 50103.29026 | M3: 51606.38897 | N3: 53154.58064 | O3: 54749.21805
B4: HDR Stipend | C4: ='Admin-Salaries'!F4 -> 32192 | D4: ='Admin-Salaries'!G4 -> 33640.64 | E4: ='Admin-Salaries'!H4 -> 34999.72186 | F4: ='Admin-Salaries'!I4 -> 35699.71629 | G4: ='Admin-Salaries'!J4 -> 36413.71062 | H4: ='Admin-Salaries'!K4 -> 37141.98483 | I4: ='Admin-Salaries'!L4 -> 37884.82453 | J4: ='Admin-Salaries'!M4 -> 38642.52102 | K4: ='Admin-Salaries'!N4 -> 39415.37144 | L4: ='Admin-Salaries'!O4 -> 40203.67887 | M4: ='Admin-Salaries'!P4 -> 41007.75245 | N4: ='Admin-Salaries'!Q4 -> 41827.90749 | O4: ='Admin-Salaries'!R4 -> 42664.46564
A5: Tuition Fee Multiplier | B5: Band A | C5: =C2/C4*$R$1 -> 0.7461481113 | D5: =D2/D4*$R$1 -> 0.7354378514 | E5: 0.7280863004 | F5: 0.7352244014 | G5: 0.7424324837 | H5: 0.7497112336 | I5: 0.7570613437 | J5: 0.7644835137 | K5: 0.7719784501 | L5: 0.7795468663 | M5: 0.7871894826 | N5: 0.7949070266 | O5: 0.8027002327
B6: Band B | C6: =C3/C4*$R$1 -> 0.5964214712 | D6: =D3/D4*$R$1 -> 0.5878603974 | E6: 0.5819840536 | F6: 0.5876897796 | G6: 0.5934514441 | H6: 0.5992695955 | I6: 0.6051447876 | J6: 0.6110775797 | K6: 0.6170685363 | L6: 0.6231182279 | M6: 0.6292272301 | N6: 0.6353961245 | O6: 0.6416254983

Sheet Admin - SCR (hidden)
A1: SCR | B1: 2019 - 2021 Average
B2: Direct Indirect W/ P&F & CMAD | C2: If required?
A3: TOTAL | B3: =SUMIF(C4:C27,"Yes",B4:B27) -> 0.3144
A4: COO | B4: =SUM(B5:B11) -> 0.2423
A5: Finance support | B5: 0.0571 | C5: Yes
A6: Governance & Risk Management | B6: 0.04 | C6: Yes
A7: HR support | B7: 0.0467 | C7: Yes
A8: Information Technology Services (ex. CIO) | B8: 0.0806 | C8: Yes
A9: Marketing & Communication | B9: 0.0101 | C9: =SCR_MktComm -> No
A10: Office of the CFO, CHRO and CIO | B10: 0.0028 | C10: No
A11: Office of the Chief Operating Office | B11: 0.005 | C11: No
A12: DVCR | B12: =SUM(B13:B20) -> 0.0909
A13: Office of the DVC Research (& Research Impact activities) | B13: 0.0186 | C13: No
A14: Office of Research Ethics & Integrity | B14: 0.0083 | C14: =SCR_OffResEthicsIntegrity -> No
A15: Research Office | B15: 0.0172 | C15: Yes
A16: Office of the PVC (Research) | B16: 0.0007 | C16: No
A17: PVC Research & International | B17: 0 | C17: No
A18: Research Infrastructure | B18: 0.0064 | C18: No
A19: Research Partnership Managers/ Business Dev't | B19: 0.0155 | C19: Yes
A20: Grad School (ex Scholarships) | B20: 0.0242 | C20: =SCR_GradSchool -> No
A21: DVCEE | B21: =SUM(B22:B22) -> 0.0058
A22: Global Engagement & Entrepreneurship, Future Students & Office of DVC (EE) | B22: 0.0058 | C22: No
A23: DVCA | B23: =SUM(B24:B26) -> 0.0667
A24: PVC T&L, Office of the DVCA, & Academic Services Division | B24: 0.0058 | C24: No
A25: Student Affairs Division | B25: 0.0036 | C25: No
A26: UQ Library | B26: 0.0573 | C26: Yes
A27: EXEC | B27: 0.0279
B29: =SCR_EXEC+SCR_DVCA+SCR_DVCEE+SCR_DVCR+SCR_COO -> 0.4336

Sheet Admin-Salaries (hidden)
A1: BaseSalary | B1: 2019 | C1: 2020 | D1: 2021 | E1: 2022 | F1: 2023 | G1: 2024 | H1: 2025 | I1: 2026 | J1: 2027 | K1: 2028 | L1: 2029 | M1: 2030 | N1: 2031 | O1: 2032 | P1: 2033 | Q1: 2034 | R1: 2035
A2: Senior Administrative (as entered)
A3: Other (as entered)
A4: HDR Stipend | B4: 27596 | C4: 28092 | D4: 28597 | E4: 28854 | F4: 32192 | G4: =F4*(100%+4.5%) -> 33640.64 | H4: =G4*(100%+4.04%) -> 34999.72186 | I4: =H4*(100%+2%) -> 35699.71629 | J4: =I4*(100%+2%) -> 36413.71062 | K4: =J4*(100%+2%) -> 37141.98483 | L4: 37884.82453 | M4: 38642.52102 | N4: 39415.37144 | O4: 40203.67887 | P4: 41007.75245 | Q4: 41827.90749 | R4: 42664.46564
A5: Academic E1 | B5: 181964.849 | C5: 185422.1812 | D5: 189130.6248 | E5: 192913.2373 | F5: 198700.63 | G5: 208288.73 | H5: 216703.59 | I5: 221037.66 | J5: =I5*(100%+2%) -> 225458.4132 | K5: =J5*(100%+2%) -> 229967.5815 | L5: =K5*(100%+2%) -> 234566.9331 | M5: =L5*(100%+2%) -> 239258.2718 | N5: =M5*(100%+2%) -> 244043.4372 | O5: =N5*(100%+2%) -> 248924.3059 | P5: =O5*(100%+2%) -> 253902.7921 | Q5: =P5*(100%+2%) -> 258980.8479 | R5: =Q5*(100%+2%) -> 264160.4649
A6: Academic D4 | B6: 155627.8329 | C6: 158584.7618 | D6: 161756.457 | E6: 164991.5861 | F6: 169941.34 | G6: 178367.57 | H6: 185573.62 | I6: 189285.09 | J6: 193070.7918 | K6: 196932.2076 | L6: 200870.8518 | M6: 204888.2688 | N6: 208986.0342 | O6: 213165.7549 | P6: 217429.07 | Q6: 221777.6514 | R6: 226213.2044
A7: Academic D3 | B7: 150839.3573 | C7: 153705.3051 | D7: 156779.4112 | E7: 159914.9994 | F7: 164712.46 | G7: 172927.44 | H7: 179913.71 | I7: 183511.98 | J7: 187182.2196 | K7: 190925.864 | L7: 194744.3813 | M7: 198639.2689 | N7: 202612.0543 | O7: 206664.2954 | P7: 210797.5813 | Q7: 215013.5329 | R7: 219313.8036
A8: Academic D2 | B8: 146050.31 | C8: 148825.2659 | D8: 151801.7712 | E8: 154837.8066 | F8: 159482.95 | G8: 167486.66 | H8: 174253.12 | I8: 177738.18 | J8: 181292.9436 | K8: 184918.8025 | L8: 188617.1785 | M8: 192389.5221 | N8: 196237.3125 | O8: 200162.0588 | P8: 204165.3 | Q8: 208248.606 | R8: 212413.5781
A9: Academic D1 | B9: 141261.8552 | C9: 143945.8304 | D9: 146824.747 | E9: 149761.242 | F9: 154254.09 | G9: 162046.55 | H9: 168593.23 | I9: 171965.09 | J9: 175404.3918 | K9: 178912.4796 | L9: 182490.7292 | M9: 186140.5438 | N9: 189863.3547 | O9: 193660.6218 | P9: 197533.8342 | Q9: 201484.5109 | R9: 205514.2011
A10: Academic C6 | B10: 135276.2528 | C10: 137846.5016 | D10: 140603.4317 | E10: 143415.5003 | F10: 147717.97 | G10: 155246.38 | H10: 161518.33 | I10: 164748.7 | J10: 168043.674 | K10: 171404.5475 | L10: 174832.6384 | M10: 178329.2912 | N10: 181895.877 | O10: 185533.7946 | P10: 189244.4705 | Q10: 193029.3599 | R10: 196889.9471
A11: Academic C5 | B11: 131685.4964 | C11: 134187.5208 | D11: 136871.2712 | E11: 139608.6966 | F11: 143796.95 | G11: 151166.95 | H11: 157274.09 | I11: 160419.57 | J11: 163627.9614 | K11: 166900.5206 | L11: 170238.531 | M11: 173643.3017 | N11: 177116.1677 | O11: 180658.491 | P11: 184271.6609 | Q11: 187957.0941 | R11: 191716.236
A12: Academic C4 | B12: 128094.6983 | C12: 130528.4976 | D12: 133139.0675 | E12: 135801.8489 | F12: 139875.91 | G12: 147087.5 | H12: 153029.83 | I12: 156090.43 | J12: 159212.2386 | K12: 162396.4834 | L12: 165644.413 | M12: 168957.3013 | N12: 172336.4473 | O12: 175783.1763 | P12: 179298.8398 | Q12: 182884.8166 | R12: 186542.5129
A13: Academic C3 | B13: 124502.1437 | C13: 126867.6844 | D13: 129405.0381 | E13: 131993.1389 | F13: 135952.92 | G13: 143006.02 | H13: 148783.46 | I13: 151759.13 | J13: 154794.3126 | K13: 157890.1989 | L13: 161048.0028 | M13: 164268.9629 | N13: 167554.3421 | O13: 170905.429 | P13: 174323.5376 | Q13: 177810.0083 | R13: 181366.2085
A14: Academic C2 | B14: 120911.3768 | C14: 123208.693 | D14: 125672.8668 | E14: 128186.3242 | F14: 132031.92 | G14: 138926.61 | H14: 144539.24 | I14: 147430.02 | J14: 150378.6204 | K14: 153386.1928 | L14: 156453.9167 | M14: 159582.995 | N14: 162774.6549 | O14: 166030.148 | P14: 169350.751 | Q14: 172737.766 | R14: 176192.5213
A15: Academic C1 | B15: 117319.4562 | C15: 119548.5259 | D15: 121939.4964 | E15: 124378.2863 | F15: 128109.64 | G15: 134845.87 | H15: 140293.64 | I15: 143099.52 | J15: 145961.5104 | K15: 148880.7406 | L15: 151858.3554 | M15: 154895.5225 | N15: 157993.433 | O15: 161153.3016 | P15: 164376.3677 | Q15: 167663.895 | R15: 171017.1729
A16: Academic B6 | B16: 113728.1281 | C16: 115888.9625 | D16: 118206.7418 | E16: 120570.8766 | F16: 124187.98 | G16: 130765.78 | H16: 136048.72 | I16: 138769.7 | J16: 141545.094 | K16: 144375.9959 | L16: 147263.5158 | M16: 150208.7861 | N16: 153212.9618 | O16: 156277.2211 | P16: 159402.7655 | Q16: 162590.8208 | R16: 165842.6372
A17: Academic B5 | B17: 110136.696 | C17: 112229.2932 | D17: 114473.8791 | E17: 116763.3567 | F17: 120266.27 | G17: 126685.63 | H17: 131803.73 | I17: 134439.8 | J17: 137128.596 | K17: 139871.1679 | L17: 142668.5913 | M17: 145521.9631 | N17: 148432.4024 | O17: 151401.0504 | P17: 154429.0714 | Q17: 157517.6529 | R17: 160668.0059
A18: Academic B4 | B18: 106545.3887 | C18: 108569.7511 | D18: 110741.1461 | E18: 112955.969 | F18: 116344.65 | G18: 122605.57 | H18: 127558.83 | I18: 130110.01 | J18: 132712.2102 | K18: 135366.4544 | L18: 138073.7835 | M18: 140835.2592 | N18: 143651.9643 | O18: 146525.0036 | P18: 149455.5037 | Q18: 152444.6138 | R18: 155493.5061
A19: Academic B3 | B19: 102954.019 | C19: 104910.1453 | D19: 107008.3482 | E19: 109148.5152 | F19: 112422.98 | G19: 118525.47 | H19: 123313.9 | I19: 125780.18 | J19: 128295.7836 | K19: 130861.6993 | L19: 133478.9333 | M19: 136148.5119 | N19: 138871.4822 | O19: 141648.9118 | P19: 144481.89 | Q19: 147371.5278 | R19: 150318.9584
A20: Academic B2 | B20: 99362.62845 | C20: 101250.5184 | D20: 103275.5288 | E20: 105341.0393 | F20: 108501.27 | G20: 114445.32 | H20: 119068.91 | I20: 121450.29 | J20: 123879.2958 | K20: 126356.8817 | L20: 128884.0194 | M20: 131461.6997 | N20: 134090.9337 | O20: 136772.7524 | P20: 139508.2075 | Q20: 142298.3716 | R20: 145144.339
A21: Academic B1 | B21: 95771.3211 | C21: 97590.9762 | D21: 99542.79573 | E21: 101533.6516 | F21: 104579.67 | G21: 110365.29 | H21: 114824.05 | I21: 117120.53 | J21: 119462.9406 | K21: 121852.1994 | L21: 124289.2434 | M21: 126775.0283 | N21: 129310.5288 | O21: 131896.7394 | P21: 134534.6742 | Q21: 137225.3677 | R21: 139969.875
A22: Academic A8 | B22: 90982.26342 | C22: 92782.26342 | D22: 94637.90869 | E22: 96530.66686 | F22: 99426.59 | G22: 105004.02 | H22: 109246.18 | I22: 111431.1 | J22: 113659.722 | K22: 115932.9164 | L22: 118251.5748 | M22: 120616.6063 | N22: 123028.9384 | O22: 125489.5172 | P22: 127999.3075 | Q22: 130559.2937 | R22: 133170.4795
A23: Academic A7 | B23: 87930.84489 | C23: 89730.84489 | D23: 91525.46179 | E23: 93355.97102 | F23: 96156.65 | G23: 101601.98 | H23: 105706.7 | I23: 107820.83 | J23: 109977.2466 | K23: 112176.7915 | L23: 114420.3274 | M23: 116708.7339 | N23: 119042.9086 | O23: 121423.7668 | P23: 123852.2421 | Q23: 126329.2869 | R23: 128855.8727
A24: Academic A6 | B24: 84878.4202 | C24: 86678.4202 | D24: 88411.9886 | E24: 90180.22838 | F24: 92885.64 | G24: 98198.82 | H24: 102166.05 | I24: 104209.37 | J24: 106293.5574 | K24: 108419.4285 | L24: 110587.8171 | M24: 112799.5735 | N24: 115055.5649 | O24: 117356.6762 | P24: 119703.8098 | Q24: 122097.8859 | R24: 124539.8437
A25: Academic A5 | B25: 81827.76857 | C25: 83627.76857 | D25: 85300.32394 | E25: 87006.33042 | F25: 89616.53 | G25: 94797.64 | H25: 98627.46 | I25: 100600.01 | J25: 102612.0102 | K25: 104664.2504 | L25: 106757.5354 | M25: 108892.6861 | N25: 111070.5398 | O25: 113291.9506 | P25: 115557.7897 | Q25: 117868.9454 | R25: 120226.3244
A26: Academic A4 | B26: 78775.9349 | C26: 80575.9349 | D26: 82187.4536 | E26: 83831.20267 | F26: 86346.14 | G26: 91395.12 | H26: 95087.48 | I26: 96989.23 | J26: 98929.0146 | K26: 100907.5949 | L26: 102925.7468 | M26: 104984.2617 | N26: 107083.947 | O26: 109225.6259 | P26: 111410.1384 | Q26: 113638.3412 | R26: 115911.108
A27: Academic A3 | B27: 75019.56463 | C27: 76819.56463 | D27: 78355.95592 | E27: 79923.07504 | F27: 82320.76 | G27: 87207.12 | H27: 90730.29 | I27: 92544.89 | J27: 94395.7878 | K27: 96283.70356 | L27: 98209.37763 | M27: 100173.5652 | N27: 102177.0365 | O27: 104220.5772 | P27: 106304.9888 | Q27: 108431.0885 | R27: 110599.7103
A28: Academic A2 | B28: 71264.34583 | C28: 73064.34583 | D28: 74525.63275 | E28: 76016.1454 | F28: 78296.63 | G28: 83020.41 | H28: 86374.44 | I28: 88101.93 | J28: 89863.9686 | K28: 91661.24797 | L28: 93494.47293 | M28: 95364.36239 | N28: 97271.64964 | O28: 99217.08263 | P28: 101201.4243 | Q28: 103225.4528 | R28: 105289.9618
A29: Academic A1 | B29: 67542.8865 | C29: 69342.8865 | D29: 70729.74423 | E29: 72144.33911 | F29: 74308.68 | G29: 78871.35 | H29: 82057.75 | I29: 83698.91 | J29: 85372.8882 | K29: 87080.34596 | L29: 88821.95288 | M29: 90598.39194 | N29: 92410.35978 | O29: 94258.56698 | P29: 96143.73831 | Q29: 98066.61308 | R29: 100027.9453
A30: HEW 9 4 | B30: 119678.3811 | C30: 121952.2704 | D30: 124391.3158 | E30: 126879.1421 | F30: 130685.52 | G30: 137525.81 | H30: 143081.86 | I30: 145943.5 | J30: 148862.37 | K30: 151839.6174 | L30: 154876.4097 | M30: 157973.9379 | N30: 161133.4167 | O30: 164356.085 | P30: 167643.2067 | Q30: 170996.0709 | R30: 174415.9923
A31: HEW 9 3 | B31: 117309.738 | C31: 119538.6231 | D31: 121929.3955 | E31: 124367.9834 | F31: 128099.03 | G31: 134834.83 | H31: 140282.16 | I31: 143087.8 | J31: 145949.556 | K31: 148868.5471 | L31: 151845.9181 | M31: 154882.8364 | N31: 157980.4932 | O31: 161140.103 | P31: 164362.9051 | Q31: 167650.1632 | R31: 171003.1664
A32: HEW 9 2 | B32: 115201.9274 | C32: 117390.764 | D32: 119738.5793 | E32: 122133.3508 | F32: 125797.35 | G32: 132440.16 | H32: 137790.75 | I32: 140546.56 | J32: 143357.4912 | K32: 146224.641 | L32: 149149.1338 | M32: 152132.1165 | N32: 155174.7589 | O32: 158278.254 | P32: 161443.8191 | Q32: 164672.6955 | R32: 167966.1494
A33: HEW 9 1 | B33: 113095.0833 | C33: 115243.8899 | D33: 117548.7677 | E33: 119899.743 | F33: 123496.74 | G33: 130046.6 | H33: 135300.48 | I33: 138006.49 | J33: 140766.6198 | K33: 143581.9522 | L33: 146453.5912 | M33: 149382.6631 | N33: 152370.3163 | O33: 155417.7227 | P33: 158526.0771 | Q33: 161696.5986 | R33: 164930.5306
A34: HEW 8 4 | B34: 108318.3631 | C34: 110376.412 | D34: 112583.9402 | E34: 114835.619 | F34: 118280.7 | G34: 124619.84 | H34: 129654.48 | I34: 132247.57 | J34: 134892.5214 | K34: 137590.3718 | L34: 140342.1793 | M34: 143149.0228 | N34: 146012.0033 | O34: 148932.2434 | P34: 151910.8882 | Q34: 154949.106 | R34: 158048.0881
A35: HEW 8 3 | B35: 104366.2246 | C35: 106349.1828 | D35: 108476.1665 | E35: 110645.6898 | F35: 113965.05 | G35: 120129.84 | H35: 124983.08 | I35: 127482.75 | J35: 130032.405 | K35: 132633.0531 | L35: 135285.7142 | M35: 137991.4284 | N35: 140751.257 | O35: 143566.2822 | P35: 146437.6078 | Q35: 149366.36 | R35: 152353.6872
A36: HEW 8 2 | B36: 100418.2436 | C36: 102326.1902 | D36: 104372.714 | E36: 106460.1683 | F36: 109653.96 | G36: 115644.58 | H36: 120316.62 | I36: 122722.95 | J36: 125177.409 | K36: 127680.9572 | L36: 130234.5763 | M36: 132839.2679 | N36: 135496.0532 | O36: 138205.9743 | P36: 140970.0938 | Q36: 143789.4956 | R36: 146665.2855
A37: HEW 8 1 | B37: 96466.06348 | C37: 98298.91869 | D37: 100264.8971 | E37: 102270.195 | F37: 105338.31 | G37: 111154.58 | H37: 115645.22 | I37: 117958.12 | J37: 120317.2824 | K37: 122723.628 | L37: 125178.1006 | M37: 127681.6626 | N37: 130235.2959 | O37: 132840.0018 | P37: 135496.8018 | Q37: 138206.7379 | R37: 140970.8726
A38: HEW 7 4 | B38: 93085.98933 | C38: 94885.98933 | D38: 96783.70911 | E38: 98719.3833 | F38: 101680.96 | G38: 107349.47 | H38: 111686.39 | I38: 113920.12 | J38: 116198.5224 | K38: 118522.4928 | L38: 120892.9427 | M38: 123310.8016 | N38: 125777.0176 | O38: 128292.5579 | P38: 130858.4091 | Q38: 133475.5773 | R38: 136145.0888
A39: HEW 7 3 | B39: 90438.12496 | C39: 92238.12496 | D39: 94082.88746 | E39: 95964.54521 | F39: 98843.48 | G39: 104397.36 | H39: 108615.01 | I39: 110787.31 | J39: 113003.0562 | K39: 115263.1173 | L39: 117568.3797 | M39: 119919.7473 | N39: 122318.1422 | O39: 124764.5051 | P39: 127259.7952 | Q39: 129804.9911 | R39: 132401.0909
A40: HEW 7 2 | B40: 87829.62762 | C40: 89629.62762 | D40: 91422.22017 | E40: 93250.66458 | F40: 96048.18 | G40: 101489.12 | H40: 105589.28 | I40: 107701.07 | J40: 109855.0914 | K40: 112052.1932 | L40: 114293.2371 | M40: 116579.1018 | N40: 118910.6839 | O40: 121288.8975 | P40: 123714.6755 | Q40: 126188.969 | R40: 128712.7484
A41: HEW 7 1 | B41: 85222.68935 | C41: 87022.68935 | D41: 88763.14314 | E41: 90538.406 | F41: 93254.55 | G41: 98582.63 | H41: 102565.37 | I41: 104616.68 | J41: 106709.0136 | K41: 108843.1939 | L41: 111020.0577 | M41: 113240.4589 | N41: 115505.2681 | O41: 117815.3734 | P41: 120171.6809 | Q41: 122575.1145 | R41: 125026.6168
A42: HEW 6 4 | B42: 83267.0755 | C42: 85067.0755 | D42: 86768.41701 | E42: 88503.78535 | F42: 91158.9 | G42: 96402.32 | H42: 100296.97 | I42: 102302.91 | J42: 104348.9682 | K42: 106435.9476 | L42: 108564.6665 | M42: 110735.9598 | N42: 112950.679 | O42: 115209.6926 | P42: 117513.8865 | Q42: 119864.1642 | R42: 122261.4475
A43: HEW 6 3 | B43: 81310.48341 | C43: 83110.48341 | D43: 84772.69308 | E43: 86468.14694 | F43: 89062.18 | G43: 94220.89 | H43: 98027.42 | I43: 99987.96 | J43: 101987.7192 | K43: 104027.4736 | L43: 106108.0231 | M43: 108230.1835 | N43: 110394.7872 | O43: 112602.6829 | P43: 114854.7366 | Q43: 117151.8313 | R43: 119494.8679
A44: HEW 6 2 | B44: 79356.87699 | C44: 81156.87699 | D44: 82780.01453 | E44: 84435.61482 | F44: 86968.69 | G44: 92042.82 | H44: 95761.35 | I44: 97676.58 | J44: 99630.1116 | K44: 101622.7138 | L44: 103655.1681 | M44: 105728.2715 | N44: 107842.8369 | O44: 109999.6936 | P44: 112199.6875 | Q44: 114443.6813 | R44: 116732.5549
A45: HEW 6 1 | B45: 77400.25433 | C45: 79200.25433 | D45: 80784.25942 | E45: 82399.9446 | F45: 84871.95 | G45: 89861.38 | H45: 93491.78 | I45: 95361.61 | J45: 97268.8422 | K45: 99214.21904 | L45: 101198.5034 | M45: 103222.4735 | N45: 105286.923 | O45: 107392.6614 | P45: 109540.5147 | Q45: 111731.3249 | R45: 113965.9514
A46: HEW 5 4 | B46: 75506.81986 | C46: 77306.81986 | D46: 78852.95626 | E46: 80430.01538 | F46: 82842.92 | G46: 87750.37 | H46: 91295.49 | I46: 93121.4 | J46: 94983.828 | K46: 96883.50456 | L46: 98821.17465 | M46: 100797.5981 | N46: 102813.5501 | O46: 104869.8211 | P46: 106967.2175 | Q46: 109106.5619 | R46: 111288.6931
A47: HEW 5 3 | B47: 72872.2565 | C47: 74672.2565 | D47: 76165.70163 | E47: 77689.01566 | F47: 80019.69 | G47: 84813.08 | H47: 88239.53 | I47: 90004.32 | J47: 91804.4064 | K47: 93640.49453 | L47: 95513.30442 | M47: 97423.57051 | N47: 99372.04192 | O47: 101359.4828 | P47: 103386.6724 | Q47: 105454.4059 | R47: 107563.494
A48: HEW 5 2 | B48: 70241.92199 | C48: 72041.92199 | D48: 73482.76043 | E48: 74952.41564 | F48: 77200.99 | G48: 81880.51 | H48: 85188.48 | I48: 86892.25 | J48: 88630.095 | K48: 90402.6969 | L48: 92210.75084 | M48: 94054.96585 | N48: 95936.06517 | O48: 97854.78648 | P48: 99811.8822 | Q48: 101808.1198 | R48: 103844.2822
A49: HEW 5 1 | B49: 67608.4082 | C49: 69408.4082 | D49: 70796.57636 | E49: 72212.50789 | F49: 74378.89 | G49: 78944.4 | H49: 82133.75 | I49: 83776.43 | J49: 85451.9586 | K49: 87160.99777 | L49: 88904.21773 | M49: 90682.30208 | N49: 92495.94812 | O49: 94345.86709 | P49: 96232.78443 | Q49: 98157.44012 | R49: 100120.5889
A50: HEW 4 4 | B50: 66291.94172 | C50: 68091.94172 | D50: 69453.78055 | E50: 70842.85617 | F50: 72968.15 | G50: 77476.66 | H50: 80606.71 | I50: 82218.84 | J50: 83863.2168 | K50: 85540.48114 | L50: 87251.29076 | M50: 88996.31657 | N50: 90776.24291 | O50: 92591.76776 | P50: 94443.60312 | Q50: 96332.47518 | R50: 98259.12468
A51: HEW 4 3 | B51: 64974.96574 | C51: 66774.96574 | D51: 68110.46505 | E51: 69472.67436 | F51: 71556.86 | G51: 76008.36 | H51: 79079.09 | I51: 80660.68 | J51: 82273.8936 | K51: 83919.37147 | L51: 85597.7589 | M51: 87309.71408 | N51: 89055.90836 | O51: 90837.02653 | P51: 92653.76706 | Q51: 94506.8424 | R51: 96396.97925
A52: HEW 4 2 | B52: 63657.96938 | C52: 65457.96938 | D52: 66767.12877 | E52: 68102.47134 | F52: 70145.54 | G52: 74540.02 | H52: 77551.44 | I52: 79102.47 | J52: 80684.5194 | K52: 82298.20979 | L52: 83944.17398 | M52: 85623.05746 | N52: 87335.51861 | O52: 89082.22898 | P52: 90863.87356 | Q52: 92681.15104 | R52: 94534.77406
A53: HEW 4 1 | B53: 62342.0124 | C53: 64142.0124 | D53: 65424.85265 | E53: 66733.3497 | F53: 68735.35 | G53: 73072.86 | H53: 76025 | I53: 77545.5 | J53: 79096.41 | K53: 80678.3382 | L53: 82291.90496 | M53: 83937.74306 | N53: 85616.49792 | O53: 87328.82788 | P53: 89075.40444 | Q53: 90856.91253 | R53: 92674.05078
A54: HEW 3 4 | B54: 60936.38342 | C54: 62736.38342 | D54: 63991.11109 | E54: 65270.93331 | F54: 67229.06 | G54: 71505.71 | H54: 74394.54 | I54: 75882.43 | J54: 77400.0786 | K54: 78948.08017 | L54: 80527.04178 | M54: 82137.58261 | N54: 83780.33426 | O54: 85455.94095 | P54: 87165.05977 | Q54: 88908.36096 | R54: 90686.52818
A55: HEW 3 3 | B55: 58978.61948 | C55: 60778.61948 | D55: 61994.19187 | E55: 63234.07571 | F55: 65131.09 | G55: 69322.98 | H55: 72123.63 | I55: 73566.1 | J55: 75037.422 | K55: 76538.17044 | L55: 78068.93385 | M55: 79630.31253 | N55: 81222.91878 | O55: 82847.37715 | P55: 84504.32469 | Q55: 86194.41119 | R55: 87918.29941
A56: HEW 3 2 | B56: 57023.51513 | C56: 58823.51513 | D56: 59999.98543 | E56: 61199.98514 | F56: 63035.99 | G56: 67143.24 | H56: 69855.82 | I56: 71252.94 | J56: 72677.9988 | K56: 74131.55878 | L56: 75614.18995 | M56: 77126.47375 | N56: 78669.00323 | O56: 80242.38329 | P56: 81847.23096 | Q56: 83484.17557 | R56: 85153.85909
A57: HEW 3 1 | B57: 55068.37002 | C57: 56868.37002 | D57: 58005.73742 | E57: 59165.85217 | F57: 60940.83 | G57: 64963.44 | H57: 67587.96 | I57: 68939.72 | J57: 70318.5144 | K57: 71724.88469 | L57: 73159.38238 | M57: 74622.57003 | N57: 76115.02143 | O57: 77637.32186 | P57: 79190.0683 | Q57: 80773.86966 | R57: 82389.34705
A58: HEW 2 2 | B58: 54015.68188 | C58: 55815.68188 | D58: 56931.99552 | E58: 58070.63543 | F58: 59812.75 | G58: 63789.79 | H58: 66366.89 | I58: 67694.23 | J58: 69048.1146 | K58: 70429.07689 | L58: 71837.65843 | M58: 73274.4116 | N58: 74739.89983 | O58: 76234.69783 | P58: 77759.39178 | Q58: 79314.57962 | R58: 80900.87121
A59: HEW 2 1 | B59: 52705.79814 | C59: 54505.79814 | D59: 55595.9141 | E59: 56707.83238 | F59: 58409.08 | G59: 62329.41 | H59: 64847.51 | I59: 66144.47 | J59: 67467.3594 | K59: 68816.70659 | L59: 70193.04072 | M59: 71596.90153 | N59: 73028.83956 | O59: 74489.41636 | P59: 75979.20468 | Q59: 77498.78878 | R59: 79048.76455
A60: HEW 1 3 | B60: 51373.09899 | C60: 53173.09899 | D60: 54236.56097 | E60: 55321.29219 | F60: 56980.93 | G60: 60843.56 | H60: 63301.64 | I60: 64567.67 | J60: 65859.0234 | K60: 67176.20387 | L60: 68519.72795 | M60: 69890.1225 | N60: 71287.92495 | O60: 72713.68345 | P60: 74167.95712 | Q60: 75651.31626 | R60: 77164.34259
A61: HEW 1 2 | B61: 50322.23486 | C61: 52122.23486 | D61: 53164.67956 | E61: 54227.97315 | F61: 55854.8 | G61: 59671.93 | H61: 62082.68 | I61: 63324.33 | J61: 64590.8166 | K61: 65882.63293 | L61: 67200.28559 | M61: 68544.2913 | N61: 69915.17713 | O61: 71313.48067 | P61: 72739.75028 | Q61: 74194.54529 | R61: 75678.4362
A62: HEW 1 1 | B62: 49267.67176 | C62: 51067.67176 | D62: 52089.0252 | E62: 53130.8057 | F62: 54724.72 | G62: 58496.19 | H62: 60859.43 | I62: 62076.62 | J62: 63318.1524 | K62: 64584.51545 | L62: 65876.20576 | M62: 67193.72987 | N62: 68537.60447 | O62: 69908.35656 | P62: 71306.52369 | Q62: 72732.65416 | R62: 74187.30725

Sheet Admin-Currencies (hidden)
A1: CountryCurrency | B1: CurrencyCode
A2: Australia Dollar | B2: AUD
A3: Canada Dollar | B3: CAD
A4: Euro Member Countries | B4: EUR
A5: United Kingdom Pound | B5: GBP
A6: Japan Yen | B6: JPY
A7: New Zealand Dollar | B7: NZD
A8: United States Dollar | B8: USD
A10: United Arab Emirates Dirham | B10: AED
A11: Afghanistan Afghani | B11: AFN
A12: Albania Lek | B12: ALL
A13: Armenia Dram | B13: AMD
A14: Netherlands Antilles Guilder | B14: ANG
A15: Angola Kwanza | B15: AOA
A16: Argentina Peso | B16: ARS
A17: Aruba Guilder | B17: AWG
A18: Azerbaijan New Manat | B18: AZN
A19: Bosnia and Herzegovina Convertible Marka | B19: BAM
A20: Barbados Dollar | B20: BBD
A21: Bangladesh Taka | B21: BDT
A22: Bulgaria Lev | B22: BGN
A23: Bahrain Dinar | B23: BHD
A24: Burundi Franc | B24: BIF
A25: Bermuda Dollar | B25: BMD
A26: Brunei Darussalam Dollar | B26: BND
A27: Bolivia Boliviano | B27: BOB
A28: Brazil Real | B28: BRL
A29: Bahamas Dollar | B29: BSD
A30: Bhutan Ngultrum | B30: BTN
A31: Botswana Pula | B31: BWP
A32: Belarus Ruble | B32: BYR
A33: Belize Dollar | B33: BZD
A34: Congo/Kinshasa Franc | B34: CDF
A35: Switzerland Franc | B35: CHF
A36: Chile Peso | B36: CLP
A37: China Yuan Renminbi | B37: CNY
A38: Colombia Peso | B38: COP
A39: Costa Rica Colon | B39: CRC
A40: Cuba Convertible Peso | B40: CUC
A41: Cuba Peso | B41: CUP
A42: Cape Verde Escudo | B42: CVE
A43: Czech Republic Koruna | B43: CZK
A44: Djibouti Franc | B44: DJF
A45: Denmark Krone | B45: DKK
A46: Dominican Republic Peso | B46: DOP
A47: Algeria Dinar | B47: DZD
A48: Egypt Pound | B48: EGP
A49: Eritrea Nakfa | B49: ERN
A50: Ethiopia Birr | B50: ETB
A51: Fiji Dollar | B51: FJD
A52: Falkland Islands (Malvinas) Pound | B52: FKP
A53: Georgia Lari | B53: GEL
A54: Guernsey Pound | B54: GGP
A55: Ghana Cedi | B55: GHS
A56: Gibraltar Pound | B56: GIP
A57: Gambia Dalasi | B57: GMD
A58: Guinea Franc | B58: GNF
A59: Guatemala Quetzal | B59: GTQ
A60: Guyana Dollar | B60: GYD
A61: Hong Kong Dollar | B61: HKD
A62: Honduras Lempira | B62: HNL
A63: Croatia Kuna | B63: HRK
A64: Haiti Gourde | B64: HTG
A65: Hungary Forint | B65: HUF
A66: Indonesia Rupiah | B66: IDR
A67: Israel Shekel | B67: ILS
A68: Isle of Man Pound | B68: IMP
A69: India Rupee | B69: INR
A70: Iraq Dinar | B70: IQD
A71: Iran Rial | B71: IRR
A72: Iceland Krona | B72: ISK
A73: Jersey Pound | B73: JEP
A74: Jamaica Dollar | B74: JMD
A75: Solomon Islands Dollar | B75: SBD
A76: Seychelles Rupee | B76: SCR
A77: Sudan Pound | B77: SDG
A78: Sweden Krona | B78: SEK
A79: Singapore Dollar | B79: SGD
A80: Saint Helena Pound | B80: SHP
A81: Sierra Leone Leone | B81: SLL
A82: Somalia Shilling | B82: SOS
A83: Seborga Luigino | B83: SPL
A84: Suriname Dollar | B84: SRD
A85: São Tomé and Príncipe Dobra | B85: STD
A86: El Salvador Colon | B86: SVC
A87: Syria Pound | B87: SYP
A88: Swaziland Lilangeni | B88: SZL
A89: Thailand Baht | B89: THB
A90: Tajikistan Somoni | B90: TJS
A91: Turkmenistan Manat | B91: TMT
A92: Tunisia Dinar | B92: TND
A93: Tonga Pa'anga | B93: TOP
A94: Turkey Lira | B94: TRY
A95: Trinidad and Tobago Dollar | B95: TTD
A96: Tuvalu Dollar | B96: TVD
A97: Taiwan New Dollar | B97: TWD
A98: Tanzania Shilling | B98: TZS
A99: Ukraine Hryvnia | B99: UAH
A100: Uganda Shilling | B100: UGX
A101: Uruguay Peso | B101: UYU
A102: Uzbekistan Som | B102: UZS
A103: Venezuela Bolivar | B103: VEF
A104: Viet Nam Dong | B104: VND
A105: Vanuatu Vatu | B105: VUV
A106: Samoa Tala | B106: WST
A107: Communauté Financière Africaine (BEAC) CFA Franc BEAC | B107: XAF
A108: East Caribbean Dollar | B108: XCD
A109: International Monetary Fund (IMF) Special Drawing Rights | B109: XDR
A110: Communauté Financière Africaine (BCEAO) Franc | B110: XOF
A111: Comptoirs Français du Pacifique (CFP) Franc | B111: XPF
A112: Yemen Rial | B112: YER
A113: South Africa Rand | B113: ZAR
A114: Zambia Kwacha | B114: ZMW
A115: Zimbabwe Dollar | B115: ZWD

Sheet Admin-Other (hidden)
A3: Data Entry | H3: UQ Standard Salary Oncosts
A4: Type | B4: Cost,In Kind Support,Outgoing Payment,Direct Cost w Indirect Cost as In Kind Support
A5: People Categories | B5: Personnel,Personnel - HDR | H5: Non-Casual
A6: Other Categories | B6: Consumables,Equipment,Travel - Domestic,Travel - International,Hospitality,Collaborator Payments,Subcontracts,Other | H6: Payroll Tax | I6: NonCasualPRT | J6: 0.057
A7: Cash Categories | B7: UQ Central Cash Support,UQ Faculty Cash Support,UQ School Cash Support,Other Cash Support | H7: Workers Compensation | I7: NonCasualWC | J7: 0.002
H8: Superannuation | I8: NonCasualSuper | J8: 0.17
H9: PRT on Superannuation | I9: NonCasualPRTSuper | J9: =NonCasualSuper*NonCasualPRT -> 0.00969
B10: Default Overheads | D10: Default Markup | H10: Long Service Leave | I10: NonCasualLSL | J10: 0.0244
B11: Research | C11: Consultancy | D11: Research | E11: Consultancy | H11: Recreation Leave | I11: NonCasualRec | J11: 0.015
A12: HDR | H12: Parental Leave | I12: NonCasualParent | J12: 0.0107
A13: Outgoing Payment | B13: 0.4 | C13: 0.4 | J13: =SUM(J6:J12) -> 0.28879
A14: Personnel | B14: 0.4 | C14: 0.4 | E14: 0.428571429
A15: Else (including In Kind) | B15: 0.4 | C15: 0.4 | H15: Casual
H16: Payroll Tax | I16: CasualPRT | J16: 0.057
A17: Unit Of Pay Calculators | H17: Workers Compensation | I17: CasualWC | J17: 0.002
A18: UnitsOfPay | B18: Time Divisor | C18: CasualLoading | D18: OncostMultiplier | H18: Superannuation | I18: CasualSuper | J18: 0.105
A19: Annual Salary | B19: 1 | D19: =IF(OncostsException="Yes: 30%", 1.3,(1+$J$13)) -> 1.28879 | H19: PRT on Superannuation | I19: CasualPRTSuper | J19: =CasualSuper*CasualPRT -> 0.005985
A20: Days | B20: 260.893 | D20: =IF(OncostsException="Yes: 30%", 1.3,(1+$J$13)) -> 1.28879 | H20: Long Service Leave | I20: -
A21: Hours | B21: 1891.47425 | D21: =IF(OncostsException="Yes: 30%", 1.3,(1+$J$13)) -> 1.28879 | H21: Recreation Leave | I21: -
A22: Casual Hours | B22: 1891.47425 | C22: 1.25 | D22: =IF(OncostsException="Yes: 30%", 1.3,(1+$J$23)) -> 1.169985 | H22: Parental Leave | I22: -
D23: nb. OnCosts are dependant on OncostsExemption Input | J23: =SUM(J16:J22) -> 0.169985
H27: UQ HDR Academic Area
H28: Architechture
H29: Argriculture and environment studies
H30: Creative Arts
H31: Dentistry
H32: Education
H33: Engineering
H34: Health
H35: Human Movement
H36: Information Technology
H37: Management and Commerce
H38: Mathematical Sciences
H39: Medical Studies
H40: Natural and physical sciences
H41: Pharmacy
H42: Psychology
H43: Social and cultural studies
H44: Veterinary Science
